Vendor,Category,Amount Paid,Payment Date
10 S. Riverside Property Owner LLC,Rental Expense,11257.2,1/3/2019
10 S. Riverside Property Owner LLC,Rental Expense,10982.2,1/18/2019
10 S. Riverside Property Owner LLC,Rental Expense,11257.2,2/27/2019
10 S. Riverside Property Owner LLC,Rental Expense,11119.7,3/29/2019
10 S. Riverside Property Owner LLC,Rental Expense,11119.7,5/7/2019
10 S. Riverside Property Owner LLC,Rental Expense,12432.85,5/22/2019
10 S. Riverside Property Owner LLC,Rental Expense,10691.25,6/18/2019
10 S. Riverside Property Owner LLC,Rental Expense,11562.05,8/1/2019
10 S. Riverside Property Owner LLC,Rental Expense,11424.55,9/3/2019
10 S. Riverside Property Owner LLC,Rental Expense,11427.17,9/18/2019
10 S. Riverside Property Owner LLC,Rental Expense,11733.75,10/16/2019
10 S. Riverside Property Owner LLC,Rental Expense,11736.37,11/27/2019
2423 Partners  LLC,Rental Expense,13645.66,1/23/2019
"3-2-1 Legal Video, Inc.",Claims & Insurance,542.45,1/29/2019
401 Properties Lp C/O: Eric Janssen  Receiver #133,Rental Expense,23586.03,1/3/2019
401 Properties Lp C/O: Eric Janssen  Receiver #133,Rental Expense,26620.69,1/24/2019
401 Properties Lp C/O: Eric Janssen  Receiver #133,Rental Expense,24684.22,2/27/2019
401 Properties Lp C/O: Eric Janssen  Receiver #133,Rental Expense,23789.22,4/1/2019
401 Properties Lp C/O: Eric Janssen  Receiver #133,Rental Expense,28129.12,5/8/2019
401 Properties Lp C/O: Eric Janssen  Receiver #133,Rental Expense,28457.55,5/22/2019
401 Properties Lp C/O: Eric Janssen  Receiver #133,Rental Expense,26982.55,6/21/2019
401 Properties Lp C/O: Eric Janssen  Receiver #133,Rental Expense,27482.55,8/1/2019
401 Properties Lp C/O: Eric Janssen  Receiver #133,Rental Expense,24902.55,9/3/2019
401 Properties Lp C/O: Eric Janssen  Receiver #133,Rental Expense,24342.55,10/1/2019
401 Properties Lp C/O: Eric Janssen  Receiver #133,Rental Expense,24657.55,11/1/2019
401 Properties Lp C/O: Eric Janssen  Receiver #133,Rental Expense,24892.55,11/26/2019
440 South Lasalle St.(Chicago)Owner Llc,Rental Expense,133801.75,1/3/2019
440 South Lasalle St.(Chicago)Owner Llc,Rental Expense,133310.13,2/5/2019
440 South Lasalle St.(Chicago)Owner Llc,Rental Expense,132255.73,2/27/2019
440 South Lasalle St.(Chicago)Owner Llc,Rental Expense,132222.83,4/1/2019
440 South Lasalle St.(Chicago)Owner Llc,Rental Expense,147612.88,5/28/2019
440 South Lasalle St.(Chicago)Owner Llc,Rental Expense,159049.29,6/18/2019
440 South Lasalle St.(Chicago)Owner Llc,Rental Expense,7302.15,7/17/2019
440 South Lasalle St.(Chicago)Owner Llc,Rental Expense,134312.06,8/12/2019
440 South Lasalle St.(Chicago)Owner Llc,Rental Expense,265270.97,9/18/2019
440 South Lasalle St.(Chicago)Owner Llc,Rental Expense,133166.99,10/16/2019
440 South Lasalle St.(Chicago)Owner Llc,Rental Expense,132222.83,11/1/2019
A & K Railroad Materials  Inc.,Materials,1822208,10/11/2019
A & L Relay Services Llc,Services,9775,1/2/2019
A & L Relay Services Llc,Materials,2125,4/1/2019
A & L Relay Services Llc,Materials,8400,4/1/2019
A & L Relay Services Llc,Services,8560,4/16/2019
A & L Relay Services Llc,Services,3375,8/21/2019
A & L Relay Services Llc,Services,7995,12/2/2019
A-1 Equipment Sales,Services,874.92,9/11/2019
A-1 Equipment Sales,Services,2060.49,9/13/2019
A-1 Equipment Sales,Services,3341.52,11/1/2019
A-Alert Exterminating Service,Services,210,1/10/2019
A-Alert Exterminating Service,Services,315,1/10/2019
A-Alert Exterminating Service,Services,75,1/15/2019
A-Alert Exterminating Service,Services,75,1/15/2019
A-Alert Exterminating Service,Services,45,1/16/2019
A-Alert Exterminating Service,Services,75,1/16/2019
A-Alert Exterminating Service,Services,105,1/16/2019
A-Alert Exterminating Service,Services,115,1/16/2019
A-Alert Exterminating Service,Services,700,1/16/2019
A-Alert Exterminating Service,Services,75,1/24/2019
A-Alert Exterminating Service,Services,75,1/24/2019
A-Alert Exterminating Service,Services,390,1/24/2019
A-Alert Exterminating Service,Services,45,2/5/2019
A-Alert Exterminating Service,Services,75,2/7/2019
A-Alert Exterminating Service,Services,75,2/7/2019
A-Alert Exterminating Service,Services,75,2/12/2019
A-Alert Exterminating Service,Services,115,2/12/2019
A-Alert Exterminating Service,Services,30,2/21/2019
A-Alert Exterminating Service,Services,315,2/21/2019
A-Alert Exterminating Service,Services,45,3/5/2019
A-Alert Exterminating Service,Services,75,3/5/2019
A-Alert Exterminating Service,Services,75,3/5/2019
A-Alert Exterminating Service,Services,75,3/5/2019
A-Alert Exterminating Service,Services,165,3/5/2019
A-Alert Exterminating Service,Services,765,3/5/2019
A-Alert Exterminating Service,Services,75,3/6/2019
A-Alert Exterminating Service,Services,250,3/6/2019
A-Alert Exterminating Service,Services,115,3/20/2019
A-Alert Exterminating Service,Services,315,3/20/2019
A-Alert Exterminating Service,Services,210,3/25/2019
A-Alert Exterminating Service,Services,460,3/25/2019
A-Alert Exterminating Service,Services,255,3/28/2019
A-Alert Exterminating Service,Services,385,3/28/2019
A-Alert Exterminating Service,Services,45,4/4/2019
A-Alert Exterminating Service,Services,75,4/4/2019
A-Alert Exterminating Service,Services,75,4/9/2019
A-Alert Exterminating Service,Services,75,4/9/2019
A-Alert Exterminating Service,Services,75,4/9/2019
A-Alert Exterminating Service,Services,190,4/9/2019
A-Alert Exterminating Service,Services,315,4/9/2019
A-Alert Exterminating Service,Services,60,4/23/2019
A-Alert Exterminating Service,Services,775,5/1/2019
A-Alert Exterminating Service,Services,240,5/9/2019
A-Alert Exterminating Service,Services,75,5/9/2019
A-Alert Exterminating Service,Services,115,5/9/2019
A-Alert Exterminating Service,Services,315,5/9/2019
A-Alert Exterminating Service,Services,45,5/13/2019
A-Alert Exterminating Service,Services,75,5/13/2019
A-Alert Exterminating Service,Services,75,5/13/2019
A-Alert Exterminating Service,Services,75,5/24/2019
A-Alert Exterminating Service,Services,435,5/24/2019
A-Alert Exterminating Service,Services,700,5/24/2019
A-Alert Exterminating Service,Services,75,5/30/2019
A-Alert Exterminating Service,Services,115,5/30/2019
A-Alert Exterminating Service,Services,45,6/12/2019
A-Alert Exterminating Service,Services,75,6/12/2019
A-Alert Exterminating Service,Services,75,6/12/2019
A-Alert Exterminating Service,Services,75,6/12/2019
A-Alert Exterminating Service,Services,75,6/12/2019
A-Alert Exterminating Service,Services,30,6/12/2019
A-Alert Exterminating Service,Services,315,6/13/2019
A-Alert Exterminating Service,Services,150,6/18/2019
A-Alert Exterminating Service,Services,285,6/26/2019
A-Alert Exterminating Service,Services,490,6/26/2019
A-Alert Exterminating Service,Services,210,6/27/2019
A-Alert Exterminating Service,Services,45,7/9/2019
A-Alert Exterminating Service,Services,75,7/9/2019
A-Alert Exterminating Service,Services,75,7/9/2019
A-Alert Exterminating Service,Services,115,7/9/2019
A-Alert Exterminating Service,Services,390,7/9/2019
A-Alert Exterminating Service,Services,30,7/19/2019
A-Alert Exterminating Service,Services,75,7/23/2019
A-Alert Exterminating Service,Services,315,7/24/2019
A-Alert Exterminating Service,Services,285,7/25/2019
A-Alert Exterminating Service,Services,385,8/1/2019
A-Alert Exterminating Service,Services,45,8/8/2019
A-Alert Exterminating Service,Services,75,8/15/2019
A-Alert Exterminating Service,Services,75,9/4/2019
A-Alert Exterminating Service,Services,75,9/4/2019
A-Alert Exterminating Service,Services,75,9/4/2019
A-Alert Exterminating Service,Services,105,9/4/2019
A-Alert Exterminating Service,Services,115,9/4/2019
A-Alert Exterminating Service,Services,855,9/4/2019
A-Alert Exterminating Service,Services,115,9/5/2019
A-Alert Exterminating Service,Services,385,9/5/2019
A-Alert Exterminating Service,Services,45,9/10/2019
A-Alert Exterminating Service,Services,75,9/11/2019
A-Alert Exterminating Service,Services,75,9/11/2019
A-Alert Exterminating Service,Services,315,9/11/2019
A-Alert Exterminating Service,Services,75,9/20/2019
A-Alert Exterminating Service,Services,375,10/1/2019
A-Alert Exterminating Service,Services,75,10/1/2019
A-Alert Exterminating Service,Services,385,10/10/2019
A-Alert Exterminating Service,Services,180,10/14/2019
A-Alert Exterminating Service,Services,115,10/14/2019
A-Alert Exterminating Service,Services,315,10/14/2019
A-Alert Exterminating Service,Services,75,10/16/2019
A-Alert Exterminating Service,Services,75,10/25/2019
A-Alert Exterminating Service,Services,90,10/25/2019
A-Alert Exterminating Service,Services,75,10/25/2019
A-Alert Exterminating Service,Services,45,10/30/2019
A-Alert Exterminating Service,Services,190,10/30/2019
A-Alert Exterminating Service,Services,75,11/1/2019
A-Alert Exterminating Service,Services,45,11/4/2019
A-Alert Exterminating Service,Services,315,11/4/2019
A-Alert Exterminating Service,Services,150,11/11/2019
A-Alert Exterminating Service,Services,775,11/13/2019
A-Alert Exterminating Service,Services,45,11/19/2019
A-Alert Exterminating Service,Services,75,11/19/2019
A-Alert Exterminating Service,Services,75,11/19/2019
A-Alert Exterminating Service,Services,75,11/26/2019
A-Alert Exterminating Service,Services,350,12/2/2019
A-Alert Exterminating Service,Services,135,12/3/2019
A-Alert Exterminating Service,Services,270,12/3/2019
A-Alert Exterminating Service,Services,105,12/4/2019
A-Alert Exterminating Service,Services,150,12/12/2019
A-Alert Exterminating Service,Services,360,12/12/2019
Aaron Gulbransen,Services,60.9,1/24/2019
Aaron Gulbransen,Services,385.14,1/24/2019
Aaron Gulbransen,Services,152.5,1/24/2019
Aaron Gulbransen,Services,99.53,3/13/2019
Aaron Gulbransen,Services,60.9,4/9/2019
Aaron Gulbransen,Services,34,4/9/2019
Aaron Gulbransen,Services,439.54,4/9/2019
Aaron Gulbransen,Services,165,4/9/2019
Aaron Gulbransen,Services,236.29,11/15/2019
Aaron Maertins,Services,54,6/14/2019
Aaron Maertins,Services,55.85,12/19/2019
Aaron Maertins,Services,346.67,12/19/2019
Aaron Maertins,Services,165,12/19/2019
Aaron Sanderson,Services,117.72,1/8/2019
Aaron Sanderson,Services,83.52,2/19/2019
Aaron Sanderson,Services,125.28,4/4/2019
Aaron Sanderson,Services,20.88,5/28/2019
Aaron Sanderson,Services,50.46,5/28/2019
Aaron Sanderson,Services,488.32,5/28/2019
Aaron Sanderson,Services,247.5,5/28/2019
Aaron Sanderson,Services,62.64,8/2/2019
Aaron Sanderson,Services,41.76,11/18/2019
Aaron Torres,Services,2304.5,3/14/2019
Aaron Willie,Services,58.86,1/11/2019
Aaron Willie,Services,43.6,1/11/2019
Aaron Willie,Services,34.8,12/9/2019
Aaron Willie,Services,106.72,12/9/2019
Abraham R. Castellano,Services,32.7,1/11/2019
Abraham R. Castellano,Services,174,2/14/2019
Abraham R. Castellano,Services,139.2,4/10/2019
Abraham R. Castellano,Services,53.36,4/10/2019
Abraham R. Castellano,Services,69.6,5/10/2019
Abraham R. Castellano,Services,53.36,5/10/2019
Abraham R. Castellano,Services,69.6,6/12/2019
Abraham R. Castellano,Services,34.8,6/12/2019
Abraham R. Castellano,Services,69.6,7/15/2019
Abraham R. Castellano,Services,53.36,7/15/2019
Abraham R. Castellano,Services,69.6,8/12/2019
Abraham R. Castellano,Services,243.6,8/12/2019
Abraham R. Castellano,Services,34.8,9/13/2019
Abraham R. Castellano,Services,53.36,9/13/2019
Abraham R. Castellano,Services,104.4,10/16/2019
Abraham R. Castellano,Services,104.4,11/8/2019
Abraham R. Castellano,Services,53.36,11/8/2019
Abraham R. Castellano,Services,104.4,12/18/2019
Abraham R. Castellano,Services,106.72,12/18/2019
Abt,Materials,1079,2/12/2019
Abt,Materials,977.98,2/12/2019
Abt,Materials,602.7,2/12/2019
Abt,Materials,179,2/12/2019
Abt,Materials,189,2/12/2019
Abt,Services,1035,2/12/2019
Abt,Materials,567,4/23/2019
Abt,Materials,378,4/23/2019
Abt,Materials,175.37,4/23/2019
Abt,Materials,739,4/23/2019
Abt,Materials,226,4/23/2019
Abt,Materials,189,4/24/2019
Abt,Materials,1018,4/30/2019
Abt,Materials,1429,4/30/2019
Abt,Materials,730,6/3/2019
Aca Compliance Services  Inc.,Services,12867,2/5/2019
Accel Construction Services Group,Capital Purchases,134513.38,1/2/2019
Accel Construction Services Group,Capital Purchases,270171.84,1/17/2019
Accel Construction Services Group,Capital Purchases,67994.91,2/1/2019
Accel Construction Services Group,Capital Purchases,348025.34,2/1/2019
Accel Construction Services Group,Capital Purchases,189512.85,3/19/2019
Accel Construction Services Group,Capital Purchases,160065.71,4/1/2019
Accel Construction Services Group,Capital Purchases,8831.61,5/1/2019
Accel Construction Services Group,Capital Purchases,118481.76,7/1/2019
Accel Construction Services Group,Capital Purchases,75004.03,8/1/2019
Accel Construction Services Group,Capital Purchases,538858.83,8/1/2019
Accel Construction Services Group,Capital Purchases,87760.03,9/3/2019
Accel Construction Services Group,Capital Purchases,97305.47,9/3/2019
Accel Construction Services Group,Capital Purchases,233136.71,11/1/2019
Accel Construction Services Group,Claims & Insurance,46915,11/20/2019
Accurate Reporting Co.  Inc.,Claims & Insurance,62,1/16/2019
Accurate Reporting Co.  Inc.,Claims & Insurance,235.8,1/16/2019
Accurate Reporting Co.  Inc.,Claims & Insurance,995.33,1/16/2019
Accurate Reporting Co.  Inc.,Services,1398.7,1/22/2019
Accurate Reporting Co.  Inc.,Services,798.45,1/22/2019
Accurate Reporting Co.  Inc.,Services,1512.25,1/22/2019
Accurate Reporting Co.  Inc.,Claims & Insurance,303.02,1/24/2019
Accurate Reporting Co.  Inc.,Materials,612.25,1/24/2019
Accurate Reporting Co.  Inc.,Services,62,1/24/2019
Accurate Reporting Co.  Inc.,Services,865.3,1/24/2019
Accurate Reporting Co.  Inc.,Services,814.3,1/24/2019
Accurate Reporting Co.  Inc.,Services,1408,1/29/2019
Accurate Reporting Co.  Inc.,Services,1341.7,1/31/2019
Accurate Reporting Co.  Inc.,Services,1123.1,2/1/2019
Accurate Reporting Co.  Inc.,Services,587.65,2/1/2019
Accurate Reporting Co.  Inc.,Services,374.55,2/1/2019
Accurate Reporting Co.  Inc.,Claims & Insurance,290.6,2/4/2019
Accurate Reporting Co.  Inc.,Claims & Insurance,347.7,2/4/2019
Accurate Reporting Co.  Inc.,Claims & Insurance,172,2/4/2019
Accurate Reporting Co.  Inc.,Claims & Insurance,946.7,2/5/2019
Accurate Reporting Co.  Inc.,Claims & Insurance,521,2/5/2019
Accurate Reporting Co.  Inc.,Claims & Insurance,241.5,2/12/2019
Accurate Reporting Co.  Inc.,Services,868.45,2/12/2019
Accurate Reporting Co.  Inc.,Services,696.5,2/27/2019
Accurate Reporting Co.  Inc.,Claims & Insurance,100.7,3/4/2019
Accurate Reporting Co.  Inc.,Claims & Insurance,186.45,3/5/2019
Accurate Reporting Co.  Inc.,Claims & Insurance,266.4,3/5/2019
Accurate Reporting Co.  Inc.,Claims & Insurance,113.7,3/5/2019
Accurate Reporting Co.  Inc.,Services,693.65,3/5/2019
Accurate Reporting Co.  Inc.,Claims & Insurance,673.78,3/18/2019
Accurate Reporting Co.  Inc.,Claims & Insurance,331.05,3/18/2019
Accurate Reporting Co.  Inc.,Claims & Insurance,788.9,3/20/2019
Accurate Reporting Co.  Inc.,Services,478.6,3/20/2019
Accurate Reporting Co.  Inc.,Services,741.95,3/25/2019
Accurate Reporting Co.  Inc.,Services,728.45,3/26/2019
Accurate Reporting Co.  Inc.,Claims & Insurance,198,4/4/2019
Accurate Reporting Co.  Inc.,Claims & Insurance,148.05,4/10/2019
Accurate Reporting Co.  Inc.,Claims & Insurance,222.8,4/11/2019
Accurate Reporting Co.  Inc.,Claims & Insurance,635,4/16/2019
Accurate Reporting Co.  Inc.,Services,453.15,4/16/2019
Accurate Reporting Co.  Inc.,Claims & Insurance,287,4/24/2019
Accurate Reporting Co.  Inc.,Materials,566.85,5/1/2019
Accurate Reporting Co.  Inc.,Claims & Insurance,287,5/2/2019
Accurate Reporting Co.  Inc.,Claims & Insurance,142.6,5/2/2019
Accurate Reporting Co.  Inc.,Claims & Insurance,288,5/2/2019
Accurate Reporting Co.  Inc.,Services,923.95,5/2/2019
Accurate Reporting Co.  Inc.,Services,839.85,5/16/2019
Accurate Reporting Co.  Inc.,Services,2730.65,5/22/2019
Accurate Reporting Co.  Inc.,Claims & Insurance,849.5,5/28/2019
Accurate Reporting Co.  Inc.,Claims & Insurance,236.6,5/28/2019
Accurate Reporting Co.  Inc.,Claims & Insurance,446.3,5/30/2019
Accurate Reporting Co.  Inc.,Claims & Insurance,232.2,5/30/2019
Accurate Reporting Co.  Inc.,Services,1914,5/30/2019
Accurate Reporting Co.  Inc.,Services,1718,5/31/2019
Accurate Reporting Co.  Inc.,Services,1038,5/31/2019
Accurate Reporting Co.  Inc.,Claims & Insurance,972.8,6/3/2019
Accurate Reporting Co.  Inc.,Claims & Insurance,217.7,6/3/2019
Accurate Reporting Co.  Inc.,Claims & Insurance,281,6/3/2019
Accurate Reporting Co.  Inc.,Claims & Insurance,35.75,6/4/2019
Accurate Reporting Co.  Inc.,Claims & Insurance,185.3,6/4/2019
Accurate Reporting Co.  Inc.,Services,665.75,6/4/2019
Accurate Reporting Co.  Inc.,Services,1176.65,6/5/2019
Accurate Reporting Co.  Inc.,Services,203.75,6/5/2019
Accurate Reporting Co.  Inc.,Services,62,6/12/2019
Accurate Reporting Co.  Inc.,Claims & Insurance,435.6,6/14/2019
Accurate Reporting Co.  Inc.,Claims & Insurance,301.5,6/14/2019
Accurate Reporting Co.  Inc.,Claims & Insurance,928.6,6/14/2019
Accurate Reporting Co.  Inc.,Services,748.1,6/17/2019
Accurate Reporting Co.  Inc.,Services,355.4,6/20/2019
Accurate Reporting Co.  Inc.,Claims & Insurance,221.4,7/8/2019
Accurate Reporting Co.  Inc.,Services,290.15,7/8/2019
Accurate Reporting Co.  Inc.,Services,1372.65,7/8/2019
Accurate Reporting Co.  Inc.,Services,869.9,7/8/2019
Accurate Reporting Co.  Inc.,Services,2123,7/8/2019
Accurate Reporting Co.  Inc.,Claims & Insurance,381.6,7/15/2019
Accurate Reporting Co.  Inc.,Claims & Insurance,243,7/15/2019
Accurate Reporting Co.  Inc.,Services,1379,7/15/2019
Accurate Reporting Co.  Inc.,Claims & Insurance,45,7/22/2019
Accurate Reporting Co.  Inc.,Claims & Insurance,526.4,8/1/2019
Accurate Reporting Co.  Inc.,Services,319,8/1/2019
Accurate Reporting Co.  Inc.,Services,967.8,8/8/2019
Accurate Reporting Co.  Inc.,Claims & Insurance,324.6,8/12/2019
Accurate Reporting Co.  Inc.,Claims & Insurance,337.95,8/15/2019
Accurate Reporting Co.  Inc.,Claims & Insurance,723.5,8/15/2019
Accurate Reporting Co.  Inc.,Claims & Insurance,323.1,8/15/2019
Accurate Reporting Co.  Inc.,Claims & Insurance,708.2,8/15/2019
Accurate Reporting Co.  Inc.,Claims & Insurance,232.1,8/15/2019
Accurate Reporting Co.  Inc.,Services,496.6,8/15/2019
Accurate Reporting Co.  Inc.,Claims & Insurance,236.2,8/19/2019
Accurate Reporting Co.  Inc.,Claims & Insurance,587.6,9/3/2019
Accurate Reporting Co.  Inc.,Claims & Insurance,519.1,9/3/2019
Accurate Reporting Co.  Inc.,Claims & Insurance,381.5,9/3/2019
Accurate Reporting Co.  Inc.,Services,45,9/18/2019
Accurate Reporting Co.  Inc.,Services,1443.2,9/18/2019
Aci Worldwide Corp.,Services,24274,1/2/2019
Aci Worldwide Corp.,Services,49048,1/29/2019
Aci Worldwide Corp.,Services,770,2/4/2019
Aci Worldwide Corp.,Services,49548,3/18/2019
Aci Worldwide Corp.,Services,24774,4/17/2019
Aci Worldwide Corp.,Services,10003.14,5/8/2019
Aci Worldwide Corp.,Services,24774,5/14/2019
Aci Worldwide Corp.,Services,5826.57,6/13/2019
Aci Worldwide Corp.,Services,37613.08,6/21/2019
Aci Worldwide Corp.,Services,1804.69,7/15/2019
Aci Worldwide Corp.,Services,24774,7/19/2019
Aci Worldwide Corp.,Services,6187.51,8/5/2019
Aci Worldwide Corp.,Services,24774,9/11/2019
Aci Worldwide Corp.,Services,24774,9/13/2019
Aci Worldwide Corp.,Services,18511,10/1/2019
Aci Worldwide Corp.,Services,24774,11/14/2019
Aci Worldwide Corp.,Services,24774,12/12/2019
Aci Worldwide Corp.,Services,9126.64,12/16/2019
Acorn Garage  Inc.,Services,5792.78,1/11/2019
Adam Farence,Services,306.24,4/29/2019
Adam Farence,Services,257.52,7/22/2019
Adam Farence,Services,330.02,7/26/2019
Adam Farence,Services,9.4,7/26/2019
Adam Farence,Services,181.23,8/2/2019
Adam Farence,Services,168.2,8/19/2019
Adam Farence,Services,140.36,9/25/2019
Adam Gibson,Services,44.14,1/7/2019
Adam Gibson,Services,26.74,1/7/2019
Adam Gibson,Services,826.32,11/6/2019
Adam Gibson,Services,385,11/6/2019
Adam Haywood,Services,106.72,4/11/2019
Adam Haywood,Services,53.36,5/10/2019
Adam Haywood,Services,53.36,7/16/2019
Adam Haywood,Services,119.48,8/6/2019
Adam Haywood,Services,106.72,8/19/2019
Adam Krogul,Services,117.86,7/1/2019
Adam Krogul,Services,76.8,7/1/2019
Adam Krogul,Services,39.74,7/1/2019
Adam Krogul,Services,2386.36,7/1/2019
Adam Krogul,Services,380,7/1/2019
Adam Krogul,Services,153.12,7/9/2019
Adam Krogul,Services,169.1,7/9/2019
Adam Krogul,Services,381.6,7/9/2019
Adam Krogul,Services,727.04,7/9/2019
Adam Krogul,Services,952,7/9/2019
Adam Krogul,Services,60,7/9/2019
Adam Singer,Services,148.48,9/3/2019
Adam Singer,Services,89.32,10/4/2019
Adams & Westlake  Ltd.,Materials,16790.24,1/24/2019
Adams & Westlake  Ltd.,Materials,4121.3,1/31/2019
Adams & Westlake  Ltd.,Materials,10433.08,2/27/2019
Adams & Westlake  Ltd.,Materials,4047.42,3/18/2019
Adams & Westlake  Ltd.,Materials,373.6,4/4/2019
Adams & Westlake  Ltd.,Materials,4121.3,4/8/2019
Adams & Westlake  Ltd.,Materials,420.75,4/16/2019
Adams & Westlake  Ltd.,Materials,3193.8,4/17/2019
Adams & Westlake  Ltd.,Materials,5345.78,4/24/2019
Adams & Westlake  Ltd.,Materials,934,5/3/2019
Adams & Westlake  Ltd.,Materials,2217,5/29/2019
Adams & Westlake  Ltd.,Materials,2404.8,6/6/2019
Adams & Westlake  Ltd.,Materials,5771.8,6/18/2019
Adams & Westlake  Ltd.,Materials,9105.65,6/27/2019
Adams & Westlake  Ltd.,Materials,4481.8,7/1/2019
Adams & Westlake  Ltd.,Materials,8963.6,7/3/2019
Adams & Westlake  Ltd.,Materials,13211.52,7/12/2019
Adams & Westlake  Ltd.,Materials,4263,7/24/2019
Adams & Westlake  Ltd.,Materials,1290,7/25/2019
Adams & Westlake  Ltd.,Materials,4258.4,7/30/2019
Adams & Westlake  Ltd.,Materials,420.75,8/5/2019
Adams & Westlake  Ltd.,Materials,12372.52,9/10/2019
Adams & Westlake  Ltd.,Materials,9794.32,10/1/2019
Adams & Westlake  Ltd.,Materials,10455.74,10/15/2019
Adams & Westlake  Ltd.,Materials,26794.1,11/4/2019
Adams & Westlake  Ltd.,Materials,21104.1,12/9/2019
Adaptive Micro Systems Inc.,Capital Purchases,211964,1/24/2019
Adaptive Micro Systems Inc.,Capital Purchases,99505,7/17/2019
Adaptive Micro Systems Inc.,Capital Purchases,28430,8/19/2019
Adaptive Micro Systems Inc.,Capital Purchases,39802,10/1/2019
Addison Electric  Inc.,Materials,806.4,2/27/2019
Addison Electric  Inc.,Materials,460,3/4/2019
Addison Electric  Inc.,Materials,230,3/15/2019
Addison Electric  Inc.,Materials,140,4/4/2019
Addison Electric  Inc.,Materials,114.99,4/8/2019
Addison Electric  Inc.,Materials,174,5/1/2019
Addison Electric  Inc.,Materials,504,6/21/2019
Addison Electric  Inc.,Materials,302.4,10/1/2019
Addison Electric  Inc.,Materials,1008,11/4/2019
Addison Group,Services,9642.5,7/3/2019
Addison Group,Services,3002,7/15/2019
Addison Group,Services,3800,7/19/2019
Addison Group,Services,3396.25,7/25/2019
Addison Group,Services,14843.75,9/11/2019
Addison Group,Services,3800,10/1/2019
Addison Group,Services,4671.23,11/1/2019
Addison Group,Services,30958.75,12/2/2019
"ADR Systems Of America, LLC",Claims & Insurance,1495,10/1/2019
"ADR Systems Of America, LLC",Claims & Insurance,842.5,11/5/2019
Adrian R Bravo,Services,7.68,2/7/2019
Adriana S. Mena,Services,10.5,2/22/2019
Advance Search Technical Staffing,Services,14120,1/17/2019
Advance Search Technical Staffing,Services,5120,1/31/2019
Advance Search Technical Staffing,Services,6120,2/27/2019
Advance Search Technical Staffing,Services,7055,3/20/2019
Advance Search Technical Staffing,Services,9860,4/10/2019
Advance Search Technical Staffing,Services,10200,4/24/2019
Advance Search Technical Staffing,Services,8075,5/13/2019
Advance Search Technical Staffing,Services,10117.5,5/29/2019
Advance Search Technical Staffing,Services,6982.5,6/20/2019
Advance Search Technical Staffing,Services,11809,7/1/2019
Advance Search Technical Staffing,Services,19891.25,7/11/2019
Advance Search Technical Staffing,Services,10976,7/18/2019
Advance Search Technical Staffing,Services,8502.5,8/1/2019
Advance Search Technical Staffing,Services,30249.5,9/11/2019
Advance Search Technical Staffing,Services,32884,10/1/2019
Advance Search Technical Staffing,Services,58027,12/10/2019
Advanced Pain Care MD PC,Claims & Insurance,500,8/1/2019
Advanced Resources  Llc,Claims & Insurance,7587,1/22/2019
Advent Systems  Inc.,Materials,219806,4/1/2019
Aecom Technical Services  Inc.,Capital Purchases,322832.82,1/2/2019
Aecom Technical Services  Inc.,Capital Purchases,137065.21,3/1/2019
Aecom Technical Services  Inc.,Capital Purchases,11858.77,3/5/2019
Aecom Technical Services  Inc.,Capital Purchases,103359.98,3/6/2019
Aecom Technical Services  Inc.,Capital Purchases,72570.06,4/11/2019
Aecom Technical Services  Inc.,Services,3595.62,4/16/2019
Aecom Technical Services  Inc.,Capital Purchases,78666.71,5/1/2019
Aecom Technical Services  Inc.,Capital Purchases,6359.58,5/7/2019
Aecom Technical Services  Inc.,Capital Purchases,83083,6/10/2019
Aecom Technical Services  Inc.,Capital Purchases,78773.39,7/3/2019
Aecom Technical Services  Inc.,Capital Purchases,72597.92,8/1/2019
Aecom Technical Services  Inc.,Capital Purchases,78786.08,9/12/2019
Aecom Technical Services  Inc.,Services,973.37,9/13/2019
Aecom Technical Services  Inc.,Capital Purchases,53205.01,11/1/2019
Aecom Technical Services  Inc.,Capital Purchases,59507.23,11/20/2019
Aecom Technical Services  Inc.,Capital Purchases,66115.54,12/2/2019
"AeroVista Innovations, LLC",Services,799,5/15/2019
"AeroVista Innovations, LLC",Services,500,5/31/2019
Aetna Disability,Claims & Insurance,8784.45,11/12/2019
Aetna Life Insurance Co. Nccc,Services,72425.68,2/28/2019
Aetna Life Insurance Co. Nccc,Services,573.03,8/2/2019
Aetna Life Insurance Co. Nccc,Services,63.67,8/2/2019
AFBK LLC,Capital Purchases,45000,8/23/2019
Afc International  Inc.,Materials,2814.36,2/1/2019
Afc International  Inc.,Services,0,2/1/2019
Afc International  Inc.,Services,1277,2/7/2019
Afc International  Inc.,Materials,1397.5,5/16/2019
Afc International  Inc.,Materials,12774.4,11/8/2019
Afc International  Inc.,Services,119.71,11/8/2019
AFL Telecommunications LLC,Materials,4843.08,1/16/2019
AFL Telecommunications LLC,Materials,3104,3/28/2019
AFL Telecommunications LLC,Materials,8915.67,4/12/2019
"Ahead of Our Time Publishing, Inc.",Services,500,4/22/2019
Aircraft & Commercial Enterprises Inc.,Capital Purchases,1170,1/17/2019
Aircraft & Commercial Enterprises Inc.,Capital Purchases,1170,1/24/2019
Aircraft & Commercial Enterprises Inc.,Materials,764,1/24/2019
Aircraft & Commercial Enterprises Inc.,Capital Purchases,4800,2/1/2019
Aircraft & Commercial Enterprises Inc.,Capital Purchases,2340,2/27/2019
Aircraft & Commercial Enterprises Inc.,Capital Purchases,4680,3/20/2019
Aircraft & Commercial Enterprises Inc.,Capital Purchases,3510,6/5/2019
Aircraft & Commercial Enterprises Inc.,Capital Purchases,4618,6/13/2019
Aircraft & Commercial Enterprises Inc.,Capital Purchases,770,7/1/2019
Aircraft & Commercial Enterprises Inc.,Materials,3050,7/10/2019
Aircraft & Commercial Enterprises Inc.,Capital Purchases,1920,7/15/2019
Aircraft & Commercial Enterprises Inc.,Capital Purchases,2925,9/11/2019
Aircraft & Commercial Enterprises Inc.,Capital Purchases,3510,10/1/2019
Aircraft & Commercial Enterprises Inc.,Materials,4898,10/1/2019
Aircraft & Commercial Enterprises Inc.,Capital Purchases,863,11/14/2019
Aka Comp Solutions  Inc.,Capital Purchases,103032.65,4/1/2019
Aka Comp Solutions  Inc.,Services,33374.15,8/7/2019
Aka Comp Solutions  Inc.,Services,14290,9/11/2019
Aka Comp Solutions  Inc.,Services,291573.55,11/12/2019
Alan A. Buchko,Claims & Insurance,500,3/7/2019
Alan B. Bakotic,Services,1287.32,2/13/2019
Alan B. Bakotic,Services,1001.28,2/13/2019
Alan B. Bakotic,Services,497,2/13/2019
Alan B. Bakotic,Services,120,2/13/2019
Alan B. Bakotic,Services,52,3/11/2019
Alan B. Bakotic,Services,1078.66,3/11/2019
Alan B. Bakotic,Services,506.54,3/11/2019
Alan B. Bakotic,Services,198,3/11/2019
Alan B. Bakotic,Services,192.6,3/22/2019
Alan B. Bakotic,Services,1016.16,3/22/2019
Alan B. Bakotic,Services,228,3/22/2019
Alan B. Bakotic,Services,1386.52,5/3/2019
Alan B. Bakotic,Services,1944.78,5/3/2019
Alan B. Bakotic,Services,462,5/3/2019
Alan B. Bakotic,Services,499.96,6/13/2019
Alan B. Bakotic,Services,1154.08,6/13/2019
Alan B. Bakotic,Services,380,6/13/2019
Alan B. Bakotic,Services,60,6/13/2019
Alan B. Bakotic,Services,294.64,6/19/2019
Alan B. Bakotic,Services,21.8,6/19/2019
Alan B. Bakotic,Services,539.68,6/19/2019
Alan B. Bakotic,Services,275,6/19/2019
Alan B. Bakotic,Services,564.7,8/28/2019
Alan B. Bakotic,Services,855,8/28/2019
Alan B. Bakotic,Services,392,8/28/2019
Alan B. Bakotic,Services,430.52,9/30/2019
Alan B. Bakotic,Services,1418.88,9/30/2019
Alan B. Bakotic,Services,494,9/30/2019
Alan B. Bakotic,Services,384.22,10/30/2019
Alan B. Bakotic,Services,549,10/30/2019
Alan B. Bakotic,Services,192.6,12/6/2019
Alan B. Bakotic,Services,380,12/6/2019
Alan B. Bakotic,Services,198,12/13/2019
"Alan Gray, LLC",Services,65840.38,10/30/2019
Alan Ratliff,Services,101.5,12/2/2019
Alan Ratliff,Services,285.58,12/2/2019
Alan Ratliff,Services,650,12/2/2019
Alan Ratliff,Services,631.04,12/2/2019
Alan Ratliff,Services,275,12/2/2019
Alan T. Hall II,Services,34.8,2/19/2019
Alan T. Hall II,Services,11.6,3/14/2019
Alan T. Hall II,Services,44.08,3/14/2019
Alan T. Hall II,Services,69.6,4/11/2019
Alan T. Hall II,Services,81.2,4/11/2019
Alan T. Hall II,Services,53.36,5/10/2019
Alan T. Hall II,Services,53.36,6/13/2019
Alan T. Hall II,Services,34.8,7/16/2019
Alan T. Hall II,Services,34.8,10/10/2019
Alan T. Hall II,Services,34.8,11/13/2019
Alan T. Hall II,Services,34.8,11/13/2019
Alan T. Hall II,Services,34.8,11/13/2019
Albertini Mfg. & Supply  Inc.,Capital Purchases,21000,1/24/2019
Albertini Mfg. & Supply  Inc.,Capital Purchases,21000,6/7/2019
Albertsons LLC,Claims & Insurance,50,7/16/2019
Alcohol & Drug Testing Services Llc,Services,19549,1/17/2019
Alcohol & Drug Testing Services Llc,Services,17940.5,3/5/2019
Alcohol & Drug Testing Services Llc,Services,5540.5,4/1/2019
Alcohol & Drug Testing Services Llc,Services,12110,4/4/2019
Alcohol & Drug Testing Services Llc,Services,11498,4/17/2019
Alcohol & Drug Testing Services Llc,Services,23414.5,6/5/2019
Alcohol & Drug Testing Services Llc,Services,6543,7/19/2019
Alcohol & Drug Testing Services Llc,Services,4258.5,8/1/2019
Alcohol & Drug Testing Services Llc,Services,19883,8/28/2019
Alcohol & Drug Testing Services Llc,Services,11668.5,9/12/2019
Alcohol & Drug Testing Services Llc,Services,33506,12/10/2019
Alejandro Zendejas,Services,54,6/13/2019
Alex Valenzuela,Services,37.12,10/14/2019
Alex Valenzuela,Services,37.12,11/6/2019
Alex Valenzuela,Services,31.32,11/6/2019
Alex Valenzuela,Services,25.52,11/6/2019
Alex Valenzuela,Services,92.8,12/11/2019
Alex Valenzuela,Services,37.12,12/11/2019
Alex Valenzuela,Services,237.8,12/11/2019
Alexis Karas,Services,769.35,2/1/2019
Alexis Karas,Services,69.9,6/5/2019
Alexis Karas,Services,1048.8,6/5/2019
Alexis Karas,Services,308,6/5/2019
Alexis Karas,Services,60,6/5/2019
Alfonso Becerra,Services,32.7,1/14/2019
Alfonso Becerra,Services,55.1,3/26/2019
Alfonso Becerra,Services,69.6,6/10/2019
Alfonso Becerra,Services,69.6,9/4/2019
Alfonso Becerra,Services,34.8,9/30/2019
Alfonso Becerra,Services,34.8,10/10/2019
Alfonso Becerra,Services,104.4,11/12/2019
Alfred A. Kozmel  III,Services,117.4,2/7/2019
Alfred A. Kozmel  III,Services,52.08,5/28/2019
Alfred Benesch & Co.,Capital Purchases,795.56,9/23/2019
ALGA (Assoc. Of Local Government Auditors),Services,175,5/10/2019
Alina Haseeb,Services,157.84,2/12/2019
All Covered It Services From Konica Minolta,Capital Purchases,1402.5,3/5/2019
All Covered It Services From Konica Minolta,Capital Purchases,82.5,3/13/2019
All Covered It Services From Konica Minolta,Capital Purchases,82.5,4/4/2019
All Covered It Services From Konica Minolta,Capital Purchases,2475,5/6/2019
All Covered It Services From Konica Minolta,Capital Purchases,5197.5,6/5/2019
All Covered It Services From Konica Minolta,Capital Purchases,4372.5,7/9/2019
All Covered It Services From Konica Minolta,Capital Purchases,495,8/1/2019
All Covered It Services From Konica Minolta,Capital Purchases,412.5,10/14/2019
All Covered It Services From Konica Minolta,Capital Purchases,7863.27,11/12/2019
Allen M. Debraal,Services,10,6/6/2019
Allen M. Debraal,Services,1.25,6/6/2019
Allen M. Debraal,Services,177.5,6/6/2019
Allied Electronics Inc.,Materials,8635,1/11/2019
Allied Electronics Inc.,Materials,8635,2/1/2019
Allied Electronics Inc.,Materials,1513.4,3/18/2019
Allied Electronics Inc.,Materials,172.5,5/3/2019
Allied Electronics Inc.,Materials,159.45,6/4/2019
Allied Electronics Inc.,Materials,50.4,9/13/2019
Allied Electronics Inc.,Materials,868.98,9/13/2019
Allied Electronics Inc.,Materials,1180.56,9/13/2019
Allied Property & Casualty Insurance Co.,Claims & Insurance,3917.19,2/7/2019
Allison Buchwach,Services,3630,1/11/2019
Allison Buchwach,Services,11.19,5/10/2019
Allison Buchwach,Services,22.05,9/6/2019
Alloy Sling Chain Industries,Materials,60,1/15/2019
Alloy Sling Chain Industries,Services,325,1/15/2019
Alloy Sling Chain Industries,Services,339.89,2/20/2019
Alloy Sling Chain Industries,Services,169.95,5/8/2019
Alloy Sling Chain Industries,Services,250,5/13/2019
Alma Cervantes,Services,1032,1/8/2019
Alma Cervantes,Services,10500,5/30/2019
Alma Cervantes,Services,108,6/13/2019
Alonti Deli,Services,405.9,9/12/2019
Alstom Signaling  Inc.,Capital Purchases,20000,1/2/2019
Alstom Signaling  Inc.,Materials,3113.76,1/11/2019
Alstom Signaling  Inc.,Materials,100.33,1/17/2019
Alstom Signaling  Inc.,Materials,84800,2/1/2019
Alstom Signaling  Inc.,Materials,2340.09,4/4/2019
Alstom Signaling  Inc.,Materials,174,4/9/2019
Alstom Signaling  Inc.,Materials,900,6/27/2019
Alstom Signaling  Inc.,Materials,2036.45,7/15/2019
Alstom Signaling  Inc.,Materials,714,8/22/2019
Alstom Signaling  Inc.,Capital Purchases,55000,8/30/2019
Alstom Signaling  Inc.,Materials,313.75,9/3/2019
Alstom Signaling  Inc.,Materials,900,9/24/2019
Alstom Signaling  Inc.,Services,199042.37,10/25/2019
Alstom Signaling Operation  LLC,Materials,13250.64,1/2/2019
Alstom Signaling Operation  LLC,Capital Purchases,457.6,1/3/2019
Alstom Signaling Operation  LLC,Capital Purchases,12678.5,1/9/2019
Alstom Signaling Operation  LLC,Materials,12761.43,1/11/2019
Alstom Signaling Operation  LLC,Capital Purchases,6067.94,1/11/2019
Alstom Signaling Operation  LLC,Materials,4045.96,1/11/2019
Alstom Signaling Operation  LLC,Materials,13794,1/11/2019
Alstom Signaling Operation  LLC,Materials,25570.32,1/22/2019
Alstom Signaling Operation  LLC,Capital Purchases,2630.16,1/22/2019
Alstom Signaling Operation  LLC,Capital Purchases,5734.76,1/22/2019
Alstom Signaling Operation  LLC,Capital Purchases,871.52,1/24/2019
Alstom Signaling Operation  LLC,Capital Purchases,52265.9,1/24/2019
Alstom Signaling Operation  LLC,Materials,4072.9,1/29/2019
Alstom Signaling Operation  LLC,Materials,13299.16,1/31/2019
Alstom Signaling Operation  LLC,Materials,806,2/1/2019
Alstom Signaling Operation  LLC,Materials,11004.24,2/1/2019
Alstom Signaling Operation  LLC,Services,6070,2/1/2019
Alstom Signaling Operation  LLC,Capital Purchases,8337.76,2/4/2019
Alstom Signaling Operation  LLC,Materials,653.12,2/6/2019
Alstom Signaling Operation  LLC,Capital Purchases,212.52,2/6/2019
Alstom Signaling Operation  LLC,Capital Purchases,38224.94,2/8/2019
Alstom Signaling Operation  LLC,Capital Purchases,73837.8,2/8/2019
Alstom Signaling Operation  LLC,Materials,1377.75,2/12/2019
Alstom Signaling Operation  LLC,Capital Purchases,457.6,2/14/2019
Alstom Signaling Operation  LLC,Services,1380,2/20/2019
Alstom Signaling Operation  LLC,Capital Purchases,1731.28,2/21/2019
Alstom Signaling Operation  LLC,Capital Purchases,453.21,2/21/2019
Alstom Signaling Operation  LLC,Materials,5485,2/21/2019
Alstom Signaling Operation  LLC,Capital Purchases,183275.01,2/25/2019
Alstom Signaling Operation  LLC,Materials,653.12,2/27/2019
Alstom Signaling Operation  LLC,Materials,814.58,3/1/2019
Alstom Signaling Operation  LLC,Capital Purchases,666.8,3/4/2019
Alstom Signaling Operation  LLC,Capital Purchases,9558.06,3/5/2019
Alstom Signaling Operation  LLC,Capital Purchases,36962.58,3/5/2019
Alstom Signaling Operation  LLC,Capital Purchases,2186.3,3/7/2019
Alstom Signaling Operation  LLC,Capital Purchases,32634.49,3/8/2019
Alstom Signaling Operation  LLC,Capital Purchases,24784.02,3/8/2019
Alstom Signaling Operation  LLC,Materials,2608.83,3/14/2019
Alstom Signaling Operation  LLC,Materials,14890.72,3/15/2019
Alstom Signaling Operation  LLC,Services,3075,3/15/2019
Alstom Signaling Operation  LLC,Materials,326.56,3/18/2019
Alstom Signaling Operation  LLC,Capital Purchases,1118.36,3/19/2019
Alstom Signaling Operation  LLC,Capital Purchases,83043.88,3/19/2019
Alstom Signaling Operation  LLC,Services,2925,3/19/2019
Alstom Signaling Operation  LLC,Materials,14945.83,3/20/2019
Alstom Signaling Operation  LLC,Capital Purchases,5767.28,3/21/2019
Alstom Signaling Operation  LLC,Capital Purchases,1271.25,3/22/2019
Alstom Signaling Operation  LLC,Capital Purchases,2435.44,3/22/2019
Alstom Signaling Operation  LLC,Materials,14890.72,3/25/2019
Alstom Signaling Operation  LLC,Materials,2574.08,3/29/2019
Alstom Signaling Operation  LLC,Materials,8677.52,4/1/2019
Alstom Signaling Operation  LLC,Materials,3970.88,4/1/2019
Alstom Signaling Operation  LLC,Services,150,4/1/2019
Alstom Signaling Operation  LLC,Materials,24608.44,4/4/2019
Alstom Signaling Operation  LLC,Capital Purchases,1695,4/4/2019
Alstom Signaling Operation  LLC,Capital Purchases,304.43,4/4/2019
Alstom Signaling Operation  LLC,Materials,3667.8,4/4/2019
Alstom Signaling Operation  LLC,Services,1680,4/4/2019
Alstom Signaling Operation  LLC,Services,2430,4/4/2019
Alstom Signaling Operation  LLC,Materials,10106.87,4/16/2019
Alstom Signaling Operation  LLC,Capital Purchases,26186.55,4/23/2019
Alstom Signaling Operation  LLC,Materials,2517.72,4/24/2019
Alstom Signaling Operation  LLC,Materials,16550.3,4/25/2019
Alstom Signaling Operation  LLC,Materials,10005.45,5/1/2019
Alstom Signaling Operation  LLC,Capital Purchases,64265.08,5/1/2019
Alstom Signaling Operation  LLC,Materials,5184,5/2/2019
Alstom Signaling Operation  LLC,Capital Purchases,1142.92,5/7/2019
Alstom Signaling Operation  LLC,Services,900,5/7/2019
Alstom Signaling Operation  LLC,Capital Purchases,2162.46,5/10/2019
Alstom Signaling Operation  LLC,Services,545,5/16/2019
Alstom Signaling Operation  LLC,Materials,1802.04,5/20/2019
Alstom Signaling Operation  LLC,Capital Purchases,30937,5/23/2019
Alstom Signaling Operation  LLC,Capital Purchases,707.2,5/23/2019
Alstom Signaling Operation  LLC,Capital Purchases,9504,5/29/2019
Alstom Signaling Operation  LLC,Materials,1530,5/30/2019
Alstom Signaling Operation  LLC,Materials,5715,5/31/2019
Alstom Signaling Operation  LLC,Materials,14193.39,5/31/2019
Alstom Signaling Operation  LLC,Capital Purchases,988595,6/3/2019
Alstom Signaling Operation  LLC,Capital Purchases,1170.88,6/3/2019
Alstom Signaling Operation  LLC,Services,220,6/3/2019
Alstom Signaling Operation  LLC,Materials,1068,6/4/2019
Alstom Signaling Operation  LLC,Materials,41344,6/5/2019
Alstom Signaling Operation  LLC,Capital Purchases,1359.5,6/5/2019
Alstom Signaling Operation  LLC,Services,565,6/13/2019
Alstom Signaling Operation  LLC,Materials,3258,6/17/2019
Alstom Signaling Operation  LLC,Capital Purchases,2121.6,6/18/2019
Alstom Signaling Operation  LLC,Capital Purchases,2250,6/19/2019
Alstom Signaling Operation  LLC,Materials,24153.42,6/27/2019
Alstom Signaling Operation  LLC,Capital Purchases,956.34,7/1/2019
Alstom Signaling Operation  LLC,Services,5910,7/1/2019
Alstom Signaling Operation  LLC,Services,270,7/1/2019
Alstom Signaling Operation  LLC,Materials,8600,7/2/2019
Alstom Signaling Operation  LLC,Services,8060,7/2/2019
Alstom Signaling Operation  LLC,Capital Purchases,20110.47,7/5/2019
Alstom Signaling Operation  LLC,Materials,4887.48,7/15/2019
Alstom Signaling Operation  LLC,Materials,600,7/15/2019
Alstom Signaling Operation  LLC,Materials,1448,7/19/2019
Alstom Signaling Operation  LLC,Materials,1509.06,7/22/2019
Alstom Signaling Operation  LLC,Materials,57154.2,7/30/2019
Alstom Signaling Operation  LLC,Materials,2592,8/1/2019
Alstom Signaling Operation  LLC,Capital Purchases,743.82,8/1/2019
Alstom Signaling Operation  LLC,Materials,2320,8/5/2019
Alstom Signaling Operation  LLC,Materials,1780,8/8/2019
Alstom Signaling Operation  LLC,Capital Purchases,4167.87,8/12/2019
Alstom Signaling Operation  LLC,Capital Purchases,2542.5,8/15/2019
Alstom Signaling Operation  LLC,Capital Purchases,12448.66,8/15/2019
Alstom Signaling Operation  LLC,Capital Purchases,29785.6,8/15/2019
Alstom Signaling Operation  LLC,Capital Purchases,495.87,8/19/2019
Alstom Signaling Operation  LLC,Capital Purchases,89356.8,9/3/2019
Alstom Signaling Operation  LLC,Services,3415,9/3/2019
Alstom Signaling Operation  LLC,Materials,20672,9/18/2019
Alstom Signaling Operation  LLC,Materials,25814.24,9/23/2019
Alstom Signaling Operation  LLC,Materials,4731.13,9/23/2019
Alstom Signaling Operation  LLC,Materials,600,9/23/2019
Alstom Signaling Operation  LLC,Services,150,9/23/2019
Alstom Signaling Operation  LLC,Materials,18014.27,10/11/2019
Alstom Signaling Operation  LLC,Capital Purchases,19700.69,10/11/2019
Alstom Signaling Operation  LLC,Capital Purchases,14093.26,10/11/2019
Alstom Signaling Operation  LLC,Services,150,10/11/2019
Alstom Signaling Operation  LLC,Capital Purchases,1204.26,10/14/2019
Alstom Signaling Operation  LLC,Services,3785,10/17/2019
Alstom Signaling Operation  LLC,Materials,38120,11/1/2019
Alstom Signaling Operation  LLC,Services,450,11/1/2019
Alstom Signaling Operation  LLC,Materials,14959.94,11/15/2019
Alstom Signaling Operation  LLC,Materials,20541.2,11/18/2019
Alstom Signaling Operation  LLC,Services,3580,11/18/2019
Alstom Signaling Operation  LLC,Services,495,11/19/2019
Alstom Signaling Operation  LLC,Capital Purchases,2883.64,12/2/2019
Alstom Signaling Operation  LLC,Services,0.02,12/2/2019
Alstom Signaling Operation  LLC,Materials,14394.92,12/17/2019
Alstom Signaling Operation  LLC,Capital Purchases,996.03,12/17/2019
Alstom Signaling Operation  LLC,Materials,7861.05,12/17/2019
Alstom Signaling Operation  LLC,Services,2000,12/17/2019
Alstom Signaling Operation  LLC,Services,720,12/17/2019
Alstom Signaling Operation  LLC,Services,8510,12/18/2019
Alstom Signaling Operation LLC,Materials,1150,2/1/2019
Alstom Signaling Operation LLC,Materials,873.08,3/15/2019
Alstom Signaling Operation LLC,Materials,3356.96,5/1/2019
Alstom Transportation  Inc.,Materials,145860,1/16/2019
Alstom Transportation  Inc.,Materials,48620,1/17/2019
Alstom Transportation  Inc.,Materials,47560,1/29/2019
Alstom Transportation  Inc.,Materials,512,1/29/2019
Alstom Transportation  Inc.,Materials,143990,1/31/2019
Alstom Transportation  Inc.,Materials,46944,2/22/2019
Alstom Transportation  Inc.,Materials,87890,3/14/2019
Alstom Transportation  Inc.,Materials,302940,3/15/2019
Alstom Transportation  Inc.,Materials,340340,4/4/2019
Alstom Transportation  Inc.,Materials,97240,4/9/2019
Alstom Transportation  Inc.,Materials,48620,4/16/2019
Alstom Transportation  Inc.,Materials,48620,4/24/2019
Alstom Transportation  Inc.,Materials,97240,5/2/2019
Alstom Transportation  Inc.,Materials,48620,5/16/2019
Alstom Transportation  Inc.,Materials,145860,6/5/2019
Alstom Transportation  Inc.,Materials,194480,6/18/2019
Alstom Transportation  Inc.,Materials,97240,12/17/2019
Alstom Transportation  Inc.,Materials,145860,12/18/2019
Alternate Power  Inc.,Services,443.8,1/18/2019
Alternate Power  Inc.,Services,1591.1,2/5/2019
Alternate Power  Inc.,Services,823.8,3/5/2019
Alternate Power  Inc.,Materials,202.19,4/9/2019
Alternate Power  Inc.,Services,2647.88,5/14/2019
Alternate Power  Inc.,Services,1646.11,5/16/2019
Alternate Power  Inc.,Services,477.33,6/3/2019
Alternate Power  Inc.,Services,1172.96,6/14/2019
Alternate Power  Inc.,Services,2559.17,6/17/2019
Alternate Power  Inc.,Services,722.7,7/1/2019
Alternate Power  Inc.,Materials,2299.96,8/8/2019
Alternate Power  Inc.,Services,3139.05,8/8/2019
Alternate Power  Inc.,Services,6719.6,8/8/2019
Alternate Power  Inc.,Services,1844.13,11/1/2019
Alternate Power  Inc.,Services,1540.47,11/1/2019
Alternate Power  Inc.,Services,1355.16,11/1/2019
Alternate Power  Inc.,Services,922.95,12/2/2019
Altorfer Industries Inc.,Materials,8683.22,2/1/2019
Altorfer Industries Inc.,Materials,525.38,2/5/2019
Altorfer Industries Inc.,Materials,7678.36,2/5/2019
Altorfer Industries Inc.,Materials,54.12,2/6/2019
Altorfer Industries Inc.,Materials,785.57,2/8/2019
Altorfer Industries Inc.,Materials,7739.2,2/20/2019
Altorfer Industries Inc.,Materials,17865.27,3/1/2019
Altorfer Industries Inc.,Materials,45.34,3/1/2019
Altorfer Industries Inc.,Materials,3142.28,3/5/2019
Altorfer Industries Inc.,Materials,896.7,3/11/2019
Altorfer Industries Inc.,Materials,1275,3/11/2019
Altorfer Industries Inc.,Materials,1275,3/11/2019
Altorfer Industries Inc.,Materials,6284.56,3/18/2019
Altorfer Industries Inc.,Materials,1650,4/3/2019
Altorfer Industries Inc.,Materials,1650,4/3/2019
Altorfer Industries Inc.,Materials,3300,4/3/2019
Altorfer Industries Inc.,Materials,547.32,4/23/2019
Altorfer Industries Inc.,Materials,43.62,4/23/2019
Altorfer Industries Inc.,Materials,9730.79,4/24/2019
Altorfer Industries Inc.,Services,4929.75,4/24/2019
Altorfer Industries Inc.,Materials,413.68,4/25/2019
Altorfer Industries Inc.,Materials,5136.64,5/1/2019
Altorfer Industries Inc.,Materials,1851.51,5/1/2019
Altorfer Industries Inc.,Materials,1851.51,5/1/2019
Altorfer Industries Inc.,Materials,1424.92,5/7/2019
Altorfer Industries Inc.,Materials,72.87,5/7/2019
Altorfer Industries Inc.,Materials,1484.26,5/17/2019
Altorfer Industries Inc.,Services,2842.46,5/17/2019
Altorfer Industries Inc.,Materials,255.76,5/20/2019
Altorfer Industries Inc.,Services,683.6,5/20/2019
Altorfer Industries Inc.,Materials,896.47,5/28/2019
Altorfer Industries Inc.,Materials,69.39,5/28/2019
Altorfer Industries Inc.,Materials,1280.64,6/10/2019
Altorfer Industries Inc.,Materials,358.06,6/10/2019
Altorfer Industries Inc.,Materials,1322.67,6/10/2019
Altorfer Industries Inc.,Services,27.59,6/10/2019
Altorfer Industries Inc.,Materials,6284.56,6/21/2019
Altorfer Industries Inc.,Materials,204.75,7/1/2019
Altorfer Industries Inc.,Materials,2356.71,7/8/2019
Altorfer Industries Inc.,Materials,7880.66,7/22/2019
Altorfer Industries Inc.,Materials,1739.68,7/23/2019
Altorfer Industries Inc.,Materials,461.89,7/23/2019
Altorfer Industries Inc.,Materials,6284.56,8/1/2019
Altorfer Industries Inc.,Materials,4338.18,8/8/2019
Altorfer Industries Inc.,Materials,1382.97,8/8/2019
Altorfer Industries Inc.,Materials,2737.25,8/12/2019
Altorfer Industries Inc.,Services,28650.5,8/12/2019
Altorfer Industries Inc.,Services,1732.38,8/12/2019
Altorfer Industries Inc.,Materials,703.34,8/22/2019
Altorfer Industries Inc.,Materials,114.64,8/22/2019
Altorfer Industries Inc.,Materials,761.5,8/22/2019
Altorfer Industries Inc.,Materials,8619.14,9/3/2019
Altorfer Industries Inc.,Materials,404.79,9/3/2019
Altorfer Industries Inc.,Materials,12.54,9/10/2019
Altorfer Industries Inc.,Services,14003.66,9/10/2019
Altorfer Industries Inc.,Services,12141.36,9/10/2019
Altorfer Industries Inc.,Materials,2467.05,9/13/2019
Altorfer Industries Inc.,Services,1014.5,9/13/2019
Altorfer Industries Inc.,Materials,785.57,9/18/2019
Altorfer Industries Inc.,Materials,1571.14,9/25/2019
Altorfer Industries Inc.,Services,8552.5,10/28/2019
Altorfer Industries Inc.,Materials,3142.28,11/12/2019
Altorfer Industries Inc.,Services,12800,11/12/2019
Altorfer Industries Inc.,Materials,13912.43,12/6/2019
Altorfer Industries Inc.,Services,12800,12/6/2019
Alvarez  Inc.,Services,2212,5/3/2019
Alvarez  Inc.,Services,2558,5/3/2019
Alvarez  Inc.,Services,2212,6/4/2019
Alvarez  Inc.,Services,2558,6/4/2019
Alvarez  Inc.,Services,2212,7/8/2019
Alvarez  Inc.,Services,2558,7/8/2019
Alvarez  Inc.,Services,2212,9/13/2019
Alvarez  Inc.,Services,2558,9/13/2019
Alvarez  Inc.,Services,4424,11/12/2019
Alvarez  Inc.,Services,5116,11/12/2019
Alvin T. Terry,Services,1000,4/17/2019
Alvin T. Terry,Services,1000,6/3/2019
Alvin T. Terry,Services,57.71,9/9/2019
Alvin T. Terry,Services,41.12,10/4/2019
Alvin T. Terry,Services,20.47,10/21/2019
Alvin T. Terry,Services,2376,11/5/2019
Alvin Toro,Services,135,9/23/2019
Alvin Toro,Services,522.99,9/23/2019
Alvin Toro,Services,196,9/23/2019
Amalgamated Services  Inc.,Services,1680,1/2/2019
Amalgamated Services  Inc.,Materials,1896.75,1/4/2019
Amalgamated Services  Inc.,Services,11224,1/4/2019
Amalgamated Services  Inc.,Services,11376,1/18/2019
Amalgamated Services  Inc.,Materials,2068.06,2/1/2019
Amalgamated Services  Inc.,Services,5192,2/1/2019
Amalgamated Services  Inc.,Materials,6817.32,2/4/2019
Amalgamated Services  Inc.,Services,3360,2/4/2019
Amalgamated Services  Inc.,Materials,140.93,2/21/2019
Amalgamated Services  Inc.,Services,5250,2/21/2019
Amalgamated Services  Inc.,Services,2520,3/5/2019
Amalgamated Services  Inc.,Materials,474.98,3/14/2019
Amalgamated Services  Inc.,Services,840,3/14/2019
Amalgamated Services  Inc.,Materials,949.11,3/20/2019
Amalgamated Services  Inc.,Services,8552,3/20/2019
Amalgamated Services  Inc.,Materials,2068.36,4/4/2019
Amalgamated Services  Inc.,Services,14048,4/4/2019
Amalgamated Services  Inc.,Materials,234.09,4/16/2019
Amalgamated Services  Inc.,Services,6720,4/16/2019
Amalgamated Services  Inc.,Materials,722.78,5/1/2019
Amalgamated Services  Inc.,Services,2520,5/1/2019
Amalgamated Services  Inc.,Materials,85.71,5/2/2019
Amalgamated Services  Inc.,Services,3512,5/2/2019
Amalgamated Services  Inc.,Services,2520,5/24/2019
Amalgamated Services  Inc.,Materials,3.33,6/11/2019
Amalgamated Services  Inc.,Services,2100,6/11/2019
Amalgamated Services  Inc.,Materials,115.52,6/20/2019
Amalgamated Services  Inc.,Services,2520,6/20/2019
Amalgamated Services  Inc.,Materials,887.65,6/26/2019
Amalgamated Services  Inc.,Services,2520,6/26/2019
Amalgamated Services  Inc.,Materials,2294.82,7/1/2019
Amalgamated Services  Inc.,Services,9245.2,7/1/2019
Amalgamated Services  Inc.,Materials,124.42,8/5/2019
Amalgamated Services  Inc.,Services,1984,8/5/2019
Amalgamated Services  Inc.,Materials,71.3,8/7/2019
Amalgamated Services  Inc.,Services,744,8/7/2019
Amalgamated Services  Inc.,Materials,1214.29,9/3/2019
Amalgamated Services  Inc.,Services,7717.46,9/3/2019
Amalgamated Services  Inc.,Materials,1194.63,9/20/2019
Amalgamated Services  Inc.,Services,11445,9/20/2019
Amalgamated Services  Inc.,Materials,28.16,10/1/2019
Amalgamated Services  Inc.,Services,1680,10/1/2019
Amalgamated Services  Inc.,Materials,158.81,10/15/2019
Amalgamated Services  Inc.,Services,5040,10/15/2019
Amalgamated Services  Inc.,Services,5880,11/1/2019
Amalgamated Services  Inc.,Materials,84.68,11/14/2019
Amalgamated Services  Inc.,Services,2992.5,11/14/2019
Amalgamated Services  Inc.,Materials,63.16,11/19/2019
Amalgamated Services  Inc.,Services,840,11/19/2019
Amalgamated Services  Inc.,Services,840,11/20/2019
Amalgamated Services  Inc.,Materials,1579.4,12/2/2019
Amalgamated Services  Inc.,Services,4904,12/2/2019
Amalgamated Services  Inc.,Services,2361.5,12/6/2019
Amalgamated Services  Inc.,Services,840,12/17/2019
Amanda D. Smith,Services,111.94,6/10/2019
Amanda D. Smith,Services,134.33,7/18/2019
Amazon.Com/Tool Crib,Materials,411,12/18/2019
Amazon.Com/Tool Crib,Materials,149.94,12/18/2019
Amazon.Com/Tool Crib,Materials,136.39,12/18/2019
Amazon.Com/Tool Crib,Materials,1934.1,12/18/2019
Amazon.Com/Tool Crib,Services,4.49,12/18/2019
Amazon.Com/Tool Crib,Materials,2521.01,12/19/2019
Amazon.Com/Tool Crib,Materials,722,12/19/2019
Amazon.Com/Tool Crib,Materials,599.38,12/19/2019
Amazon.Com/Tool Crib,Materials,260.97,12/19/2019
Amazon.Com/Tool Crib,Materials,144.98,12/19/2019
Amazon.Com/Tool Crib,Materials,253.88,12/19/2019
Amazon.Com/Tool Crib,Materials,211.4,12/19/2019
Amazon.Com/Tool Crib,Materials,1364.31,12/19/2019
Amazon.Com/Tool Crib,Services,95.7,12/19/2019
Amazon.Com/Tool Crib,Services,132.93,12/19/2019
American Battery Charging Inc.,Materials,2450,1/16/2019
American Battery Charging Inc.,Materials,990,2/1/2019
American Battery Charging Inc.,Materials,990,4/9/2019
American Battery Charging Inc.,Materials,10504,6/5/2019
American Building Services  Llc,Services,3098.75,1/10/2019
American Building Services  Llc,Services,2523.82,2/12/2019
American Building Services  Llc,Services,11808.33,3/19/2019
American Building Services  Llc,Services,514,5/2/2019
American Building Services  Llc,Services,5746.47,5/2/2019
American Building Services  Llc,Services,5746.47,5/8/2019
American Building Services  Llc,Services,3351.91,7/1/2019
American Building Services  Llc,Services,7830.2,7/3/2019
American Building Services  Llc,Materials,1945.9,10/1/2019
American Building Services  Llc,Services,855.84,10/1/2019
American Building Services  Llc,Materials,257,10/21/2019
American Building Services  Llc,Services,285.28,10/21/2019
American Building Services  Llc,Materials,5567.2,12/2/2019
American Building Services  Llc,Materials,2926.09,12/12/2019
American Building Services  Llc,Services,1198.16,12/12/2019
American Building Services  Llc,Materials,113.02,12/16/2019
American Building Services  Llc,Materials,2519.22,12/16/2019
American Building Services  Llc,Services,1198.16,12/16/2019
American Calibration  Inc.,Materials,66,1/2/2019
American Calibration  Inc.,Materials,396,1/2/2019
American Calibration  Inc.,Materials,132,1/2/2019
American Calibration  Inc.,Materials,392.4,1/7/2019
American Calibration  Inc.,Materials,305.2,1/18/2019
American Calibration  Inc.,Services,163.5,2/4/2019
American Calibration  Inc.,Materials,781.5,2/7/2019
American Calibration  Inc.,Services,330,2/7/2019
American Calibration  Inc.,Materials,114.45,3/1/2019
American Calibration  Inc.,Services,1086.5,3/1/2019
American Calibration  Inc.,Services,109,3/5/2019
American Calibration  Inc.,Services,218,4/1/2019
American Calibration  Inc.,Services,132,4/1/2019
American Calibration  Inc.,Services,103.55,4/5/2019
American Calibration  Inc.,Services,130.8,4/8/2019
American Calibration  Inc.,Materials,43.6,4/11/2019
American Calibration  Inc.,Services,511,4/17/2019
American Calibration  Inc.,Materials,719.65,4/25/2019
American Calibration  Inc.,Services,316.1,5/13/2019
American Calibration  Inc.,Services,63.22,5/30/2019
American Calibration  Inc.,Materials,327,6/3/2019
American Calibration  Inc.,Services,103.55,6/3/2019
American Calibration  Inc.,Services,43.6,6/3/2019
American Calibration  Inc.,Services,103.55,6/3/2019
American Calibration  Inc.,Services,1677.95,6/4/2019
American Calibration  Inc.,Services,99,6/4/2019
American Calibration  Inc.,Services,66,6/5/2019
American Calibration  Inc.,Services,650.35,6/10/2019
American Calibration  Inc.,Services,43.6,6/12/2019
American Calibration  Inc.,Services,132,6/12/2019
American Calibration  Inc.,Services,198,7/1/2019
American Calibration  Inc.,Materials,294.3,7/12/2019
American Calibration  Inc.,Services,109,7/12/2019
American Calibration  Inc.,Services,198,7/12/2019
American Calibration  Inc.,Services,53.15,8/1/2019
American Calibration  Inc.,Materials,518.25,8/8/2019
American Calibration  Inc.,Materials,441.99,9/10/2019
American Calibration  Inc.,Materials,144.99,9/10/2019
American Calibration  Inc.,Materials,330,9/10/2019
American Calibration  Inc.,Services,66,9/10/2019
American Calibration  Inc.,Services,66,9/10/2019
American Calibration  Inc.,Services,218.6,9/10/2019
American Calibration  Inc.,Services,132,10/1/2019
American Calibration  Inc.,Materials,92.84,11/5/2019
American Calibration  Inc.,Services,164.66,11/5/2019
American Calibration  Inc.,Services,264,11/22/2019
American Calibration  Inc.,Services,36.02,11/22/2019
American Calibration  Inc.,Services,735,12/20/2019
American Inst. Of Architects,Services,1500,1/23/2019
American Medical Billing Inc.,Claims & Insurance,40,6/14/2019
American Planning Assn.,Services,644,9/6/2019
American Public Transit Assoc.,Services,875,12/19/2019
American Public Transportation Ass Meeting Department Apta,Services,925,2/20/2019
American Public Transportation Ass Meeting Department Apta,Services,3500,4/10/2019
American Public Transportation Ass Meeting Department Apta,Services,850,4/29/2019
American Public Transportation Ass Meeting Department Apta,Services,675,6/19/2019
American Public Transportation Ass Meeting Department Apta,Services,975,8/1/2019
American Public Transportation Ass Meeting Department Apta,Services,975,8/12/2019
American Public Transportation Ass Meeting Department Apta,Services,6000,8/14/2019
American Recycling & Disposal  Inc.,Capital Purchases,27855.58,5/28/2019
American Recycling & Disposal  Inc.,Services,4828.73,6/20/2019
American Recycling & Disposal  Inc.,Capital Purchases,17274.16,7/8/2019
American Recycling & Disposal  Inc.,Capital Purchases,20865.44,7/15/2019
American Recycling & Disposal  Inc.,Capital Purchases,59319.84,8/8/2019
American Recycling & Disposal  Inc.,Services,1575.42,8/8/2019
American Recycling & Disposal  Inc.,Capital Purchases,38888.02,8/28/2019
American Recycling & Disposal  Inc.,Capital Purchases,75952.92,9/20/2019
American Recycling & Disposal  Inc.,Capital Purchases,5831.36,10/15/2019
American Recycling & Disposal  Inc.,Services,22266.72,10/24/2019
American Recycling & Disposal  Inc.,Capital Purchases,47043.36,11/1/2019
American Recycling & Disposal  Inc.,Services,3644.56,11/1/2019
American Recycling & Disposal  Inc.,Capital Purchases,3196.35,11/7/2019
American Recycling & Disposal  Inc.,Capital Purchases,43428.91,11/7/2019
American Recycling & Disposal  Inc.,Services,4710.72,11/7/2019
American Recycling & Disposal  Inc.,Capital Purchases,35803.59,11/14/2019
American Solutions For Business,Services,1940.4,1/7/2019
American Solutions For Business,Services,750,1/7/2019
American Solutions For Business,Services,30750,2/7/2019
American Solutions For Business,Services,1428.8,3/1/2019
American Solutions For Business,Services,750,3/1/2019
American Solutions For Business,Services,19593,4/3/2019
American Solutions For Business,Services,6734.9,4/5/2019
American Solutions For Business,Services,1023.2,4/24/2019
American Solutions For Business,Services,750,4/24/2019
American Solutions For Business,Services,1023.2,5/1/2019
American Solutions For Business,Services,750,5/1/2019
American Solutions For Business,Services,41962,5/6/2019
American Solutions For Business,Services,5442.5,6/3/2019
American Solutions For Business,Services,434.1,6/18/2019
American Solutions For Business,Services,14150.5,6/20/2019
American Solutions For Business,Services,132.84,6/26/2019
American Solutions For Business,Services,1084.4,7/19/2019
American Solutions For Business,Services,750,7/19/2019
American Solutions For Business,Services,11130,7/30/2019
American Solutions For Business,Services,17416,8/19/2019
American Solutions For Business,Services,10885,9/3/2019
American Solutions For Business,Services,30750,9/11/2019
American Solutions For Business,Services,12231.1,10/15/2019
American Solutions For Business,Services,14365.1,12/9/2019
Amerigas,Materials,1114.33,1/4/2019
Amerigas,Services,220.06,1/4/2019
Amerigas,Materials,352.36,1/18/2019
Amerigas,Materials,520.44,1/23/2019
Amerigas,Materials,2201.34,2/1/2019
Amerigas,Services,599.65,2/1/2019
Amerigas,Services,227.06,2/1/2019
Amerigas,Materials,834.31,2/5/2019
Amerigas,Materials,609.88,2/7/2019
Amerigas,Materials,970.34,2/25/2019
Amerigas,Materials,362.01,3/1/2019
Amerigas,Materials,380.93,3/7/2019
Amerigas,Materials,169.26,3/11/2019
Amerigas,Materials,1013.6,4/8/2019
Amerigas,Materials,1753.47,4/9/2019
Amerigas,Materials,249.36,4/10/2019
Amerigas,Materials,193.4,4/10/2019
Amerigas,Materials,2974.7,4/10/2019
Amerigas,Materials,198.31,4/16/2019
Amerigas,Materials,461.8,4/16/2019
Amerigas,Materials,134.42,4/16/2019
Amerigas,Materials,405.87,4/24/2019
Amerigas,Materials,218.9,4/25/2019
Amerigas,Materials,176.22,4/29/2019
Amerigas,Materials,82.33,5/6/2019
Amerigas,Materials,332.4,5/7/2019
Amerigas,Materials,108.56,5/13/2019
Amerigas,Materials,90.28,5/21/2019
Amerigas,Materials,436.97,5/28/2019
Amerigas,Materials,110.92,5/28/2019
Amerigas,Materials,187.78,6/11/2019
Amerigas,Materials,142.24,7/24/2019
Amerigas,Materials,193.92,8/7/2019
Amerigas,Materials,123.21,8/28/2019
Amerigas,Materials,291.83,11/7/2019
Amerigas,Materials,762.1,11/8/2019
Amerigas,Materials,1035.57,12/5/2019
"Amsted Rail Company, Inc.",Capital Purchases,30360,12/2/2019
Amtrak,Capital Purchases,697500,10/15/2019
Amy E. Fischer,Services,54,6/13/2019
Anali De La O,Services,43.09,7/29/2019
Anali De La O,Services,43.09,10/21/2019
Analytic Systems,Capital Purchases,62910,2/1/2019
Analytic Systems,Materials,10965,3/19/2019
Analytic Systems,Materials,3030,7/9/2019
Analytic Systems,Capital Purchases,50600.1,7/9/2019
Analytic Systems,Capital Purchases,12309.9,7/9/2019
Analytic Systems,Materials,13158,7/16/2019
Analytic Systems,Materials,21930,8/2/2019
"Analytica Systems International, Inc. (ASI)",Claims & Insurance,1462.5,1/16/2019
"Analytica Systems International, Inc. (ASI)",Claims & Insurance,1625,3/14/2019
Anchor Brake Shoe Co.,Materials,87992.64,1/23/2019
Anchor Brake Shoe Co.,Materials,78876,2/21/2019
Anchor Brake Shoe Co.,Materials,26320.14,2/27/2019
Anchor Brake Shoe Co.,Materials,9999,3/19/2019
Anchor Brake Shoe Co.,Materials,15998.4,4/5/2019
Anchor Brake Shoe Co.,Materials,14622.3,4/10/2019
Anchor Brake Shoe Co.,Materials,19998,5/1/2019
Anchor Brake Shoe Co.,Materials,3999.6,5/7/2019
Anchor Brake Shoe Co.,Materials,19998,5/16/2019
Anchor Brake Shoe Co.,Materials,37394.28,5/21/2019
Anchor Brake Shoe Co.,Materials,5848.92,5/29/2019
Anchor Brake Shoe Co.,Materials,37996.2,5/31/2019
Anchor Brake Shoe Co.,Materials,5999.4,6/11/2019
Anchor Brake Shoe Co.,Materials,13998.6,6/12/2019
Anchor Brake Shoe Co.,Materials,3999.6,6/24/2019
Anchor Brake Shoe Co.,Materials,54018,7/8/2019
Anchor Brake Shoe Co.,Materials,9999,7/11/2019
Anchor Brake Shoe Co.,Materials,20471.22,7/24/2019
Anchor Brake Shoe Co.,Materials,21997.8,7/30/2019
Anchor Brake Shoe Co.,Materials,5999.4,8/21/2019
Anchor Brake Shoe Co.,Materials,11998.8,8/28/2019
Anchor Brake Shoe Co.,Materials,11998.8,9/23/2019
Anchor Brake Shoe Co.,Materials,80465.22,10/1/2019
Anchor Brake Shoe Co.,Materials,45995.4,10/14/2019
Anchor Brake Shoe Co.,Materials,14772.78,11/1/2019
Anchor Brake Shoe Co.,Materials,44019,11/7/2019
Anchor Brake Shoe Co.,Materials,5999.4,11/14/2019
Anchor Brake Shoe Co.,Materials,19697.04,12/9/2019
Anderson Lock Co.,Materials,61.8,1/7/2019
Anderson Lock Co.,Materials,1207.8,1/7/2019
Anderson Lock Co.,Materials,1674.4,3/19/2019
Anderson Lock Co.,Materials,1599.2,4/5/2019
Anderson Lock Co.,Materials,5979,4/25/2019
Anderson Lock Co.,Materials,725,5/2/2019
Anderson Lock Co.,Materials,708.4,5/13/2019
Anderson Lock Co.,Materials,1071.72,6/10/2019
Anderson Lock Co.,Materials,644,7/8/2019
Anderson Lock Co.,Materials,772.8,8/2/2019
Anderson Lock Co.,Materials,11236.36,8/7/2019
Anderson Lock Co.,Materials,833.5,8/28/2019
Andre Hunt,Services,38.5,1/23/2019
Andre Hunt,Services,273.34,1/23/2019
Andre Hunt,Services,385.14,1/23/2019
Andre Hunt,Services,152.5,1/23/2019
Andre Hunt,Services,34,4/1/2019
Andre Hunt,Services,439.54,4/1/2019
Andre Hunt,Services,165,4/1/2019
Andre Hunt,Services,60,4/1/2019
Andre Hunt,Services,508.77,5/30/2019
Andre Hunt,Services,196,5/30/2019
Andre Hunt,Services,30,5/30/2019
Andre Hunt,Services,40,9/16/2019
Andre Hunt,Services,4.5,9/16/2019
Andre Hunt,Services,57,9/16/2019
Andre Hunt,Services,65.99,9/23/2019
Andre Hunt,Services,23,9/23/2019
Andre Hunt,Services,468.16,9/23/2019
Andre Hunt,Services,250,9/23/2019
Andre Hunt,Services,39.99,12/13/2019
Andre Hunt,Services,145.58,12/13/2019
Andre Hunt,Services,114,12/13/2019
Andre Johnson,Services,577.92,10/1/2019
Andre Johnson,Services,247.5,10/1/2019
Andre Page,Services,31.9,8/14/2019
Andre R. Feliciano,Services,43.6,1/11/2019
Andre R. Feliciano,Services,34.88,1/11/2019
Andre R. Feliciano,Services,46.4,4/16/2019
Andrea Clark,Services,116,12/9/2019
Andrea D. Peek,Services,181.49,1/11/2019
Andrea D. Peek,Services,141.64,2/11/2019
Andrea D. Peek,Services,7.31,4/18/2019
Andrea D. Peek,Services,29.23,4/18/2019
Andrea D. Peek,Services,7.31,5/14/2019
Andrea D. Peek,Services,109.62,5/14/2019
Andrea D. Peek,Services,131.54,6/14/2019
Andrea D. Peek,Services,138.85,7/18/2019
Andrea D. Peek,Services,175.38,8/8/2019
Andrea D. Peek,Services,182.7,9/17/2019
Andrea D. Peek,Services,168.08,10/7/2019
Andrea D. Peek,Services,175.39,11/6/2019
Andrea D. Peek,Services,80.39,12/9/2019
Andrea Lurry,Services,270.85,1/14/2019
Andrea Lurry,Services,286.17,5/13/2019
Andrea Lurry,Services,257.46,6/10/2019
Andrea Lurry,Services,329.86,7/12/2019
Andrea Lurry,Services,276.35,8/5/2019
Andrew Brashler,Services,16.11,3/28/2019
Andrew Brashler,Services,11.42,4/12/2019
Andrew Brashler,Services,14.46,9/16/2019
Andrew Dorsey,Services,61.42,3/6/2019
Andrew Grigg,Services,43.09,10/22/2019
Andrew Shay,Services,440.8,4/12/2019
Angel Valdes,Services,339,6/14/2019
Angel Valdes,Services,395.5,6/19/2019
Angel Valdes,Services,395.5,7/8/2019
Angel Valdes,Services,452,8/19/2019
Angel Valdes,Services,904,9/17/2019
Angel Valdes,Services,452,10/4/2019
Angel Valdes,Services,678,10/25/2019
Angel Valdes,Services,226,11/6/2019
Angel Valdes,Services,565,11/26/2019
Angela G. Pegues,Services,334.07,1/14/2019
Angela G. Pegues,Services,183.78,2/13/2019
Angela G. Pegues,Services,216.09,3/13/2019
Angela G. Pegues,Services,21.84,4/9/2019
Angela G. Pegues,Services,172.41,4/12/2019
Angela G. Pegues,Services,245.54,5/14/2019
Angela G. Pegues,Services,21.84,6/10/2019
Angela G. Pegues,Services,97.24,6/14/2019
Angela G. Pegues,Services,465.52,7/12/2019
Angela G. Pegues,Services,109.21,8/8/2019
Angela G. Pegues,Services,385.57,8/12/2019
Angela G. Pegues,Services,21.84,9/9/2019
Angela G. Pegues,Services,218.43,9/12/2019
Angela G. Pegues,Services,21.84,10/9/2019
Angela G. Pegues,Services,183.06,10/10/2019
Angela G. Pegues,Services,398.32,11/8/2019
Angela G. Pegues,Services,109.21,11/12/2019
Angela G. Pegues,Services,131.06,12/9/2019
Angela G. Pegues,Services,226.75,12/13/2019
Angela L. Miller,Services,26.99,1/4/2019
Angela L. Miller,Services,2.35,1/4/2019
Angelia D. Simpkins,Services,207,7/26/2019
Anita Ayala-Ortega,Services,34.8,3/12/2019
Anita Ayala-Ortega,Services,69.6,4/11/2019
Anita Ayala-Ortega,Services,104.4,5/14/2019
Anita Ayala-Ortega,Services,106.72,5/14/2019
Anita Ayala-Ortega,Services,53.36,6/14/2019
Anita Ayala-Ortega,Services,34.8,9/11/2019
Anita Ayala-Ortega,Services,88.16,10/14/2019
Anita Ayala-Ortega,Services,11.6,10/14/2019
Anita Ayala-Ortega,Services,31.32,11/8/2019
Ann Hammo,Services,54,6/13/2019
Ann M Hammo,Services,54,6/13/2019
Annette Bubalo,Services,207,7/30/2019
Anthem Insurance Companies  Inc.,Services,11239.8,5/13/2019
Anthem Insurance Companies  Inc.,Services,11239.8,6/21/2019
Anthem Insurance Companies  Inc.,Services,11239.8,9/12/2019
Anthem Insurance Companies  Inc.,Services,13373.92,11/13/2019
Anthony Adams,Services,42.92,2/14/2019
Anthony Adams,Services,249.4,3/22/2019
Anthony Adams,Services,85.84,4/22/2019
Anthony Adams,Services,54.52,5/10/2019
Anthony Adams,Services,42.92,5/10/2019
Anthony Adams,Services,17.4,5/22/2019
Anthony Adams,Services,110.2,6/10/2019
Anthony Adams,Services,24.36,7/1/2019
Anthony Adams,Services,42.92,7/1/2019
Anthony Adams,Services,60.32,7/11/2019
Anthony Adams,Services,110.2,7/22/2019
Anthony Adams,Services,42.92,8/19/2019
Anthony Adams,Services,12.76,8/19/2019
Anthony Adams,Services,110.2,9/23/2019
Anthony Adams,Services,42.92,10/17/2019
Anthony Adams,Services,42.92,11/12/2019
Anthony B. Davis,Services,32.7,1/11/2019
Anthony B. Davis,Services,50.14,1/11/2019
Anthony B. Davis,Services,32.7,1/11/2019
Anthony B. Davis,Services,69.6,2/15/2019
Anthony B. Davis,Services,160.08,2/15/2019
Anthony B. Davis,Services,11.6,2/15/2019
Anthony B. Davis,Services,34.8,3/22/2019
Anthony B. Davis,Services,88.16,3/22/2019
Anthony B. Davis,Services,13.92,3/22/2019
Anthony B. Davis,Services,11.6,3/22/2019
Anthony B. Davis,Services,69.6,4/10/2019
Anthony B. Davis,Services,211.12,4/10/2019
Anthony B. Davis,Services,34.8,4/10/2019
Anthony B. Davis,Services,104.4,5/14/2019
Anthony B. Davis,Services,160.08,5/14/2019
Anthony B. Davis,Services,48.72,5/14/2019
Anthony B. Davis,Services,69.6,6/12/2019
Anthony B. Davis,Services,53.36,6/12/2019
Anthony B. Davis,Services,39.44,6/12/2019
Anthony B. Davis,Services,69.6,7/15/2019
Anthony B. Davis,Services,160.08,7/15/2019
Anthony B. Davis,Services,23.2,7/15/2019
Anthony B. Davis,Services,69.6,8/8/2019
Anthony B. Davis,Services,248.24,8/8/2019
Anthony B. Davis,Services,13.92,8/8/2019
Anthony B. Davis,Services,533.6,9/23/2019
Anthony B. Davis,Services,11.6,9/23/2019
Anthony B. Davis,Services,46.4,10/10/2019
Anthony B. Davis,Services,23.2,10/10/2019
Anthony B. Davis,Services,229.68,11/12/2019
Anthony B. Davis,Services,160.08,11/12/2019
Anthony B. Davis,Services,23.2,11/12/2019
Anthony C. Elmore,Services,336,1/15/2019
Anthony D. Bruce,Services,46.4,11/7/2019
Anthony D. Bruce,Services,131.08,11/7/2019
Anthony E. Jones,Services,181,1/29/2019
Anthony E. Jones,Services,24.36,2/11/2019
Anthony E. Jones,Services,33.64,2/11/2019
Anthony E. Jones,Services,24.36,3/21/2019
Anthony E. Jones,Services,48.72,6/14/2019
Anthony E. Jones,Services,48.72,6/14/2019
Anthony E. Jones,Services,97.44,6/19/2019
Anthony E. Jones,Services,24.36,6/19/2019
Anthony E. Jones,Services,73.08,6/27/2019
Anthony E. Jones,Services,73.08,6/27/2019
Anthony E. Jones,Services,73.08,7/9/2019
Anthony E. Jones,Services,24.36,7/19/2019
Anthony E. Jones,Services,24.36,7/19/2019
Anthony E. Jones,Services,194.88,8/5/2019
Anthony E. Jones,Services,48.72,8/20/2019
Anthony E. Jones,Services,24.36,8/20/2019
Anthony E. Jones,Services,97.44,9/13/2019
Anthony E. Jones,Services,178.64,10/15/2019
Anthony Hagan,Services,175,12/19/2019
Anthony Ognibene,Services,54,6/19/2019
Antoine Haynes,Services,46.4,2/8/2019
Antoine Haynes,Services,37.12,3/13/2019
Antoine Haynes,Services,46.4,4/11/2019
Antoine Haynes,Services,46.4,4/11/2019
Antoine Haynes,Services,83.52,6/25/2019
Antoine Haynes,Services,37.12,6/25/2019
Antoine Haynes,Services,83.52,7/11/2019
Antoine Haynes,Services,37.12,10/18/2019
Antoine Haynes,Services,37.12,10/18/2019
Antoine L. Lowery,Services,24.36,4/11/2019
Antwian T. Windmon,Services,3525,1/2/2019
Aon (Bermuda) Ltd.,Claims & Insurance,175765,6/20/2019
Aon (Bermuda) Ltd.,Claims & Insurance,1522716,7/12/2019
Aon (Uk) Ltd,Claims & Insurance,334857.14,8/5/2019
Aon Risk Services  Inc. Of Maryland,Services,14500,1/14/2019
Aon Risk Services  Inc. Of Maryland,Claims & Insurance,35254,1/16/2019
Aon Risk Services  Inc. Of Maryland,Claims & Insurance,21000,3/15/2019
Aon Risk Services  Inc. Of Maryland,Services,72000,4/16/2019
Aon Risk Services  Inc. Of Maryland,Claims & Insurance,34012,4/23/2019
Aon Risk Services  Inc. Of Maryland,Claims & Insurance,727269,6/21/2019
Aon Risk Services  Inc. Of Maryland,Claims & Insurance,15298,6/24/2019
Aon Risk Services  Inc. Of Maryland,Claims & Insurance,110323,6/27/2019
Aon Risk Services  Inc. Of Maryland,Claims & Insurance,133714.28,7/8/2019
Aon Risk Services  Inc. Of Maryland,Claims & Insurance,100285,7/8/2019
Aon Risk Services  Inc. Of Maryland,Claims & Insurance,18067,7/11/2019
Aon Risk Services  Inc. Of Maryland,Claims & Insurance,11670,7/12/2019
Aon Risk Services  Inc. Of Maryland,Claims & Insurance,43833.04,7/16/2019
Aon Risk Services  Inc. Of Maryland,Claims & Insurance,107250,7/18/2019
Aon Risk Services  Inc. Of Maryland,Claims & Insurance,288000,7/24/2019
Aon Risk Services  Inc. Of Maryland,Claims & Insurance,340,8/5/2019
Aon Risk Services  Inc. Of Maryland,Claims & Insurance,9500,10/2/2019
Aon Risk Services  Inc. Of Maryland,Claims & Insurance,28427,10/3/2019
Aon Risk Services  Inc. Of Maryland,Claims & Insurance,27415,12/13/2019
Aon Risk Services  Inc. Of Maryland,Claims & Insurance,5000,12/19/2019
AP Electric & Generators LLC,Capital Purchases,29811,11/8/2019
Apperson  Inc,Materials,430.5,8/22/2019
Apperson  Inc,Services,47.55,8/22/2019
Applied Industrial Technologies,Materials,809.7,1/7/2019
Applied Industrial Technologies,Materials,215.92,5/3/2019
Applied Industrial Technologies,Materials,971.64,6/10/2019
Applied Industrial Technologies,Materials,215.92,6/18/2019
Applied Power Systems,Capital Purchases,35811,5/10/2019
April Kilgore,Services,1489.5,8/23/2019
April Kilgore,Services,3157,11/26/2019
Aql Technologies  Inc.,Services,35200,1/7/2019
Aql Technologies  Inc.,Services,9680,1/15/2019
Aql Technologies  Inc.,Services,15840,2/1/2019
Aql Technologies  Inc.,Services,36080,2/12/2019
Aql Technologies  Inc.,Services,34320,3/20/2019
Aql Technologies  Inc.,Services,36960,5/3/2019
Aql Technologies  Inc.,Services,19360,5/13/2019
Aql Technologies  Inc.,Services,11440,5/17/2019
Aql Technologies  Inc.,Services,19360,7/1/2019
Aql Technologies  Inc.,Services,16720,8/1/2019
Aql Technologies  Inc.,Services,19360,8/21/2019
Aql Technologies  Inc.,Services,19360,10/1/2019
Aql Technologies  Inc.,Services,17600,10/15/2019
Aql Technologies  Inc.,Services,20240,11/8/2019
Aqua Illinois,Utilities,89.4,1/4/2019
Aqua Illinois,Utilities,12.29,1/17/2019
Aqua Illinois,Utilities,61.74,2/7/2019
Aqua Illinois,Utilities,353.43,2/27/2019
Aqua Illinois,Utilities,191.4,3/29/2019
Aqua Illinois,Utilities,156.58,5/6/2019
Aqua Illinois,Utilities,142.87,5/28/2019
Aqua Illinois,Utilities,116.11,8/9/2019
Aqua Illinois,Utilities,106.45,9/12/2019
Aqua Illinois,Utilities,112.88,10/3/2019
Aqua Illinois,Utilities,83.15,11/1/2019
Aqua Illinois,Utilities,81.54,12/16/2019
Arc Document Solutions LLC,Materials,2905.2,1/4/2019
Arc Document Solutions LLC,Services,2181.5,6/4/2019
Arc Document Solutions LLC,Materials,4731.26,8/21/2019
Arcadis Us  Inc.,Capital Purchases,353389.36,2/1/2019
Arcadis Us  Inc.,Capital Purchases,342033.23,2/1/2019
Arcadis Us  Inc.,Capital Purchases,39308.48,2/14/2019
Arcadis Us  Inc.,Capital Purchases,88221.39,3/20/2019
Arcadis Us  Inc.,Capital Purchases,28844.83,3/22/2019
Arcadis Us  Inc.,Capital Purchases,26371.9,3/22/2019
Arcadis Us  Inc.,Capital Purchases,41402.49,3/25/2019
Arcadis Us  Inc.,Capital Purchases,26632.28,4/12/2019
Arcadis Us  Inc.,Capital Purchases,90261.96,4/12/2019
Arcadis Us  Inc.,Capital Purchases,90890.26,4/18/2019
Arcadis Us  Inc.,Capital Purchases,6815.32,6/3/2019
Arcadis Us  Inc.,Capital Purchases,7423.43,6/18/2019
Arcadis Us  Inc.,Capital Purchases,29302.11,7/1/2019
Arcadis Us  Inc.,Capital Purchases,35745.37,7/5/2019
Arcadis Us  Inc.,Capital Purchases,52604.4,8/1/2019
Arcadis Us  Inc.,Capital Purchases,4485.69,8/1/2019
Arcadis Us  Inc.,Capital Purchases,87681.56,9/3/2019
Arcadis Us  Inc.,Capital Purchases,72597.25,9/3/2019
Arcadis Us  Inc.,Capital Purchases,128263.06,10/24/2019
Arcadis Us  Inc.,Capital Purchases,47755.9,10/24/2019
Arcadis Us  Inc.,Capital Purchases,32726.93,11/1/2019
Arcadis Us  Inc.,Capital Purchases,25806.05,11/1/2019
Arema,Services,2013,3/15/2019
Arema,Services,183,5/10/2019
Arema,Services,183,5/20/2019
Arema,Services,815,8/9/2019
Arema,Services,2713,8/9/2019
Arema,Services,1630,8/9/2019
Arema,Services,2445,8/9/2019
Arema,Services,1630,8/9/2019
Arema,Services,2730,12/17/2019
Argo Inc.,Services,149500,1/4/2019
Argo Inc.,Services,53760,10/15/2019
Arlington Park Racecourse Llc Churchill Downs Inc.,Rental Expense,20815.56,1/7/2019
Arlington Park Racecourse Llc Churchill Downs Inc.,Rental Expense,20815.56,2/7/2019
Arlington Park Racecourse Llc Churchill Downs Inc.,Rental Expense,20815.56,2/28/2019
Arlington Park Racecourse Llc Churchill Downs Inc.,Rental Expense,20815.56,3/29/2019
Arlington Park Racecourse Llc Churchill Downs Inc.,Rental Expense,20815.56,5/7/2019
Arlington Park Racecourse Llc Churchill Downs Inc.,Rental Expense,20815.56,5/22/2019
Arlington Park Racecourse Llc Churchill Downs Inc.,Rental Expense,20815.56,6/18/2019
Arlington Park Racecourse Llc Churchill Downs Inc.,Rental Expense,20815.56,7/17/2019
Arlington Park Racecourse Llc Churchill Downs Inc.,Rental Expense,20815.56,9/3/2019
Arlington Park Racecourse Llc Churchill Downs Inc.,Rental Expense,20815.56,9/18/2019
Arlington Park Racecourse Llc Churchill Downs Inc.,Rental Expense,62446.68,12/23/2019
Arnold Maxey,Services,152.06,1/4/2019
Arnold Maxey,Services,262.62,1/18/2019
Arnold Maxey,Services,319.92,2/13/2019
Arnold Maxey,Services,508.77,2/25/2019
Arnold Maxey,Services,215.64,3/6/2019
Arnold Maxey,Services,269.58,3/20/2019
Arnold Maxey,Services,293.24,4/3/2019
Arnold Maxey,Services,255.54,4/26/2019
Arnold Maxey,Services,297.07,5/10/2019
Arnold Maxey,Services,408.66,5/17/2019
Arnold Maxey,Services,153.58,5/28/2019
Arnold Maxey,Services,145.35,11/26/2019
Arnold Maxey,Services,278.75,12/5/2019
Arnold Maxey,Services,279.79,12/19/2019
Arsenio Pomales,Services,13,10/30/2019
Arthur R. Perez,Services,27.97,7/29/2019
Arthur R. Perez,Services,13.71,10/21/2019
Artur Swider,Services,577.92,10/1/2019
Artur Swider,Services,247.5,10/1/2019
Arturo J Mota,Services,17,1/14/2019
Arturo J Mota,Services,31.32,2/11/2019
Arturo J Mota,Services,118.15,3/6/2019
Arturo J Mota,Services,60.2,4/2/2019
Arturo J Mota,Services,212.57,4/26/2019
Arturo J Mota,Services,48.6,8/22/2019
Arturo J Mota,Services,96.8,9/25/2019
Arturo J Mota,Services,138.74,11/5/2019
Arturo J Mota,Services,66.7,11/26/2019
Arturo J Mota,Services,81.26,12/19/2019
Aruj Chaudhry,Services,8.14,11/26/2019
Arun Saxena,Services,486.3,6/21/2019
Asas/Tysol  Inc.,Materials,3024,9/25/2019
Asg Technologies Group Inc.,Services,16243.5,2/20/2019
Asis International,Services,20,1/24/2019
Asis International,Services,195,11/5/2019
ASPA,Services,102,1/31/2019
"Asplundh Tree Expert, LLC",Services,17434.2,1/2/2019
"Asplundh Tree Expert, LLC",Services,59166.76,7/1/2019
"Asplundh Tree Expert, LLC",Services,63349.54,7/12/2019
"Asplundh Tree Expert, LLC",Services,46588,8/21/2019
"Asplundh Tree Expert, LLC",Services,19698.8,8/28/2019
"Asplundh Tree Expert, LLC",Services,18396.4,8/28/2019
"Asplundh Tree Expert, LLC",Services,5046.8,8/28/2019
"Asplundh Tree Expert, LLC",Services,18722,9/5/2019
ASQ,Services,159,1/11/2019
ASQ,Services,328,5/2/2019
Assn. Of American Railroads (AAR),Services,4091,1/3/2019
Assn. Of American Railroads (AAR),Services,4091,1/31/2019
Assn. Of American Railroads (AAR),Services,4091,3/4/2019
Assn. Of American Railroads (AAR),Services,4091,3/28/2019
Assn. Of American Railroads (AAR),Services,4091,5/13/2019
Assn. Of American Railroads (AAR),Services,4091,6/5/2019
Assn. Of American Railroads (AAR),Services,4091,7/8/2019
Assn. Of American Railroads (AAR),Services,4091,7/31/2019
Assn. Of American Railroads (AAR),Services,4091,9/6/2019
Assn. Of American Railroads (AAR),Services,375,9/12/2019
Assn. Of American Railroads (AAR),Services,89595,9/12/2019
Assn. Of American Railroads (AAR),Services,2022,9/16/2019
Assn. Of American Railroads (AAR),Services,4091,10/3/2019
Assn. Of American Railroads (AAR),Services,4091,11/7/2019
Assn. Of American Railroads (AAR),Services,4091,12/11/2019
Association for Financial Professionals,Services,495,1/22/2019
Association for Financial Professionals,Services,495,2/7/2019
Association of Certified Fraud Examiners,Services,225,8/22/2019
Association of Certified Fraud Examiners,Services,195,12/19/2019
AT & T,Utilities,10396.94,1/3/2019
AT & T,Utilities,314886.18,1/7/2019
AT & T,Utilities,1224,1/7/2019
AT & T,Utilities,5988.28,1/7/2019
AT & T,Utilities,7451.7,1/7/2019
AT & T,Utilities,38638.27,1/8/2019
AT & T,Utilities,2760,1/8/2019
AT & T,Utilities,582.14,1/11/2019
AT & T,Utilities,17303.47,1/11/2019
AT & T,Utilities,530.01,1/18/2019
AT & T,Utilities,342.54,1/24/2019
AT & T,Utilities,1221.4,1/25/2019
AT & T,Utilities,7441.3,1/25/2019
AT & T,Utilities,17927.24,1/25/2019
AT & T,Utilities,11152.62,2/1/2019
AT & T,Utilities,330170.58,2/5/2019
AT & T,Utilities,55940.16,2/8/2019
AT & T,Utilities,2760,2/8/2019
AT & T,Utilities,604.34,2/15/2019
AT & T,Utilities,757.51,2/15/2019
AT & T,Utilities,10537.76,2/21/2019
AT & T,Utilities,3512.59,2/21/2019
AT & T,Utilities,21603.79,2/27/2019
AT & T,Utilities,341.26,2/28/2019
AT & T,Utilities,1221.4,3/4/2019
AT & T,Utilities,10045.62,3/4/2019
AT & T,Utilities,10791.3,3/4/2019
AT & T,Utilities,10351.36,3/4/2019
AT & T,Utilities,311842.95,3/7/2019
AT & T,Utilities,17282.19,3/7/2019
AT & T,Utilities,38664.32,3/13/2019
AT & T,Utilities,2760,3/13/2019
AT & T,Utilities,581.42,3/18/2019
AT & T,Utilities,19824.26,3/18/2019
AT & T,Utilities,1811.41,3/26/2019
AT & T,Utilities,7441.3,3/26/2019
AT & T,Utilities,342.75,4/2/2019
AT & T,Utilities,10379.33,4/4/2019
AT & T,Utilities,55939.85,4/9/2019
AT & T,Utilities,2760,4/9/2019
AT & T,Utilities,601.65,4/12/2019
AT & T,Utilities,320000,4/26/2019
AT & T,Utilities,590.01,4/26/2019
AT & T,Utilities,20379.43,4/26/2019
AT & T,Utilities,1221.4,4/29/2019
AT & T,Utilities,6721.19,4/29/2019
AT & T,Utilities,7441.3,4/29/2019
AT & T,Utilities,345.75,4/29/2019
AT & T,Utilities,5392.73,4/30/2019
AT & T,Utilities,348637.56,5/8/2019
AT & T,Utilities,14966.23,5/8/2019
AT & T,Utilities,12854.14,5/8/2019
AT & T,Utilities,38664.32,5/13/2019
AT & T,Utilities,3432.7,5/13/2019
AT & T,Utilities,590.01,5/17/2019
AT & T,Utilities,19862,5/17/2019
AT & T,Utilities,1221.4,5/28/2019
AT & T,Utilities,7441.3,5/28/2019
AT & T,Utilities,346.39,5/28/2019
AT & T,Utilities,7329.16,5/30/2019
AT & T,Utilities,343904.02,6/4/2019
AT & T,Utilities,10599.83,6/4/2019
AT & T,Utilities,18451.71,6/5/2019
AT & T,Utilities,2164.76,6/5/2019
AT & T,Utilities,655.07,6/11/2019
AT & T,Utilities,590.01,6/19/2019
AT & T,Utilities,12122.6,6/19/2019
AT & T,Utilities,1707.75,6/20/2019
AT & T,Utilities,1221.4,6/24/2019
AT & T,Utilities,7441.3,6/24/2019
AT & T,Utilities,7952.9,6/24/2019
AT & T,Utilities,347.46,6/27/2019
AT & T,Utilities,379006.54,7/8/2019
AT & T,Utilities,7329.16,7/8/2019
AT & T,Utilities,92298.38,7/9/2019
AT & T,Utilities,5520,7/9/2019
AT & T,Utilities,2259.28,7/9/2019
AT & T,Utilities,654.94,7/16/2019
AT & T,Utilities,9420,7/22/2019
AT & T,Utilities,590.01,7/23/2019
AT & T,Utilities,23190.3,7/23/2019
AT & T,Utilities,1080.93,7/23/2019
AT & T,Utilities,1221.4,7/31/2019
AT & T,Utilities,7329.16,7/31/2019
AT & T,Utilities,7441.3,7/31/2019
AT & T,Utilities,9768.86,7/31/2019
AT & T,Utilities,1201.8,7/31/2019
AT & T,Utilities,2266.74,8/5/2019
AT & T,Utilities,361417.77,8/6/2019
AT & T,Utilities,15181.64,8/6/2019
AT & T,Utilities,38645.04,8/15/2019
AT & T,Utilities,2760,8/15/2019
AT & T,Utilities,2568.45,8/22/2019
AT & T,Utilities,10446.67,8/22/2019
AT & T,Utilities,23285.18,8/22/2019
AT & T,Utilities,1811.41,8/27/2019
AT & T,Utilities,7441.3,8/27/2019
AT & T,Utilities,388949.84,9/5/2019
AT & T,Utilities,3301.26,9/5/2019
AT & T,Utilities,13504.58,9/5/2019
AT & T,Utilities,9776.13,9/5/2019
AT & T,Utilities,1268.98,9/5/2019
AT & T,Utilities,53850.69,9/10/2019
AT & T,Utilities,2760,9/10/2019
AT & T,Utilities,1034.52,9/23/2019
AT & T,Utilities,9078.97,9/23/2019
AT & T,Utilities,590.01,9/25/2019
AT & T,Utilities,1349.28,9/25/2019
AT & T,Utilities,1221.4,10/1/2019
AT & T,Utilities,7329.16,10/1/2019
AT & T,Utilities,7441.3,10/1/2019
AT & T,Utilities,446702.19,10/7/2019
AT & T,Utilities,17445.46,10/7/2019
AT & T,Utilities,1710.04,10/7/2019
AT & T,Utilities,38664.32,10/8/2019
AT & T,Utilities,3554.02,10/8/2019
AT & T,Utilities,2760,10/8/2019
AT & T,Utilities,608.64,10/18/2019
AT & T,Utilities,1297.86,10/24/2019
AT & T,Utilities,2850.94,10/28/2019
AT & T,Utilities,7677.52,10/28/2019
AT & T,Utilities,7441.3,10/28/2019
AT & T,Utilities,59507.3,10/28/2019
AT & T,Utilities,1528.09,10/28/2019
AT & T,Utilities,1710.04,10/31/2019
AT & T,Utilities,4787.98,11/1/2019
AT & T,Utilities,424328.81,11/7/2019
AT & T,Utilities,57047.69,11/7/2019
AT & T,Utilities,2828,11/7/2019
AT & T,Utilities,610.29,11/20/2019
AT & T,Utilities,349.29,11/25/2019
AT & T,Utilities,456163.66,12/5/2019
AT & T,Utilities,20294.65,12/5/2019
AT & T,Utilities,7677.52,12/5/2019
AT & T,Utilities,26758.27,12/5/2019
AT & T,Utilities,53743.9,12/5/2019
AT & T,Utilities,1998.33,12/5/2019
AT & T,Utilities,7441.3,12/5/2019
AT & T,Utilities,5375.03,12/11/2019
AT & T,Utilities,40617.66,12/17/2019
AT & T,Utilities,2813,12/17/2019
AT & T,Utilities,24075.81,12/20/2019
Athletico Ltd.,Claims & Insurance,400,2/14/2019
"ATI  Holdings, LLC",Claims & Insurance,400,3/14/2019
A-Tire County Service  Inc.,Services,410,1/7/2019
A-Tire County Service  Inc.,Services,23.5,1/7/2019
A-Tire County Service  Inc.,Services,696.87,1/10/2019
A-Tire County Service  Inc.,Services,875.14,1/18/2019
A-Tire County Service  Inc.,Services,1101.66,2/1/2019
A-Tire County Service  Inc.,Services,946.51,2/6/2019
A-Tire County Service  Inc.,Services,2991.43,3/1/2019
A-Tire County Service  Inc.,Services,820.16,3/5/2019
A-Tire County Service  Inc.,Services,827.51,3/18/2019
A-Tire County Service  Inc.,Services,23.5,3/18/2019
A-Tire County Service  Inc.,Services,7468.78,3/19/2019
A-Tire County Service  Inc.,Services,360,3/19/2019
A-Tire County Service  Inc.,Services,2339.17,3/26/2019
A-Tire County Service  Inc.,Services,23.5,3/26/2019
A-Tire County Service  Inc.,Services,524.82,4/5/2019
A-Tire County Service  Inc.,Services,1488.54,4/8/2019
A-Tire County Service  Inc.,Services,3678.14,4/17/2019
A-Tire County Service  Inc.,Services,46,4/17/2019
A-Tire County Service  Inc.,Services,301.76,4/23/2019
A-Tire County Service  Inc.,Services,3892.65,5/1/2019
A-Tire County Service  Inc.,Services,70.5,5/1/2019
A-Tire County Service  Inc.,Services,485,5/7/2019
A-Tire County Service  Inc.,Services,7724.89,5/24/2019
A-Tire County Service  Inc.,Services,210.5,5/24/2019
A-Tire County Service  Inc.,Services,90,5/28/2019
A-Tire County Service  Inc.,Services,23.5,5/28/2019
A-Tire County Service  Inc.,Services,3740.3,7/25/2019
A-Tire County Service  Inc.,Services,23.5,7/25/2019
A-Tire County Service  Inc.,Services,551.65,7/30/2019
A-Tire County Service  Inc.,Services,2191.2,8/19/2019
A-Tire County Service  Inc.,Services,9121.89,9/5/2019
A-Tire County Service  Inc.,Services,5925.01,9/19/2019
A-Tire County Service  Inc.,Services,44,9/25/2019
A-Tire County Service  Inc.,Services,2203.58,10/14/2019
A-Tire County Service  Inc.,Services,1494.09,11/8/2019
A-Tire County Service  Inc.,Services,241.16,12/6/2019
A-Tire County Service  Inc.,Services,3692.63,12/9/2019
A-Tire County Service  Inc.,Services,3712.02,12/16/2019
A-Tire County Service  Inc.,Services,378.22,12/16/2019
A-Tire County Service  Inc.,Services,23,12/16/2019
Atlas & Associates  Inc.,Materials,90500,5/28/2019
Atlas & Associates  Inc.,Materials,63000,8/28/2019
Atlas Bobcat Llc,Materials,72557,2/1/2019
Atlas Copco Compressors LLC,Materials,12200,7/15/2019
Atlas Copco Compressors LLC,Services,6500,7/19/2019
Atlas Copco Compressors LLC,Services,567,9/24/2019
Atlas Copco Compressors LLC,Services,974,11/11/2019
Atlas Gaskets Inc.,Materials,1406.25,2/5/2019
Atlas Gaskets Inc.,Services,88.9,2/5/2019
Atlas/First Access,Services,3266.3,1/7/2019
Atlas/First Access,Services,710,1/9/2019
Atlas/First Access,Services,1188.64,1/15/2019
Atlas/First Access,Services,508.2,1/15/2019
Atlas/First Access,Services,84,1/15/2019
Atlas/First Access,Services,811.96,1/18/2019
Atlas/First Access,Services,981.06,2/1/2019
Atlas/First Access,Services,393.12,2/12/2019
Atlas/First Access,Services,8261.52,2/20/2019
Atlas/First Access,Services,7608,3/14/2019
Atlas/First Access,Services,907.84,3/20/2019
Atlas/First Access,Services,4003.02,3/26/2019
Atlas/First Access,Services,11.38,3/26/2019
Atlas/First Access,Services,2326.38,4/4/2019
Atlas/First Access,Services,3563.94,4/16/2019
Atlas/First Access,Services,107.36,4/16/2019
Atlas/First Access,Capital Purchases,6210,6/12/2019
Atlas/First Access,Services,109.65,6/14/2019
Atlas/First Access,Services,3134.24,6/25/2019
Atlas/First Access,Services,415.17,7/1/2019
Atlas/First Access,Services,6951,7/8/2019
Atlas/First Access,Services,280.8,7/11/2019
Atlas/First Access,Capital Purchases,114171,7/15/2019
Atlas/First Access,Services,210.6,8/1/2019
Atlas/First Access,Services,625,8/5/2019
Atlas/First Access,Services,745.64,8/21/2019
Atlas/First Access,Services,446.39,9/24/2019
Atlas/First Access,Services,1924.07,9/25/2019
Atlas/First Access,Services,1878.35,10/24/2019
Atlas/First Access,Services,2791.89,11/4/2019
Atlas/First Access,Services,125.08,11/4/2019
Atlas/First Access,Capital Purchases,3105,11/8/2019
Atlas/First Access,Services,557.11,12/2/2019
Atlas/First Access,Services,27.25,12/2/2019
Atlas/First Access,Services,3394.91,12/11/2019
Atlas/First Access,Services,1963,12/11/2019
Atlas/First Access,Services,46,12/11/2019
Atomic Transmissions,Services,3290,1/18/2019
Atomic Transmissions,Services,3145,2/1/2019
Atomic Transmissions,Services,1295,5/8/2019
Atomic Transmissions,Services,2065,6/24/2019
Atomic Transmissions,Services,1845,8/8/2019
Atomic Transmissions,Materials,3125,9/24/2019
Atomic Transmissions,Services,2070,9/24/2019
Attorney Registration & Disciplinary  Commission,Services,6160,10/31/2019
Attorney Registration & Disciplinary  Commission,Services,770,12/6/2019
Audio Supply  Inc.,Materials,20433.22,4/8/2019
Aurelio E. Rocha,Services,134.56,10/14/2019
Aurelio E. Rocha,Services,189.66,11/8/2019
Aurelio E. Rocha,Services,16.24,11/8/2019
Aurelio E. Rocha,Services,148.48,11/20/2019
Aurelio E. Rocha,Services,153.12,12/6/2019
Auto Truck Group  Llc,Services,282.94,2/27/2019
Auto Truck Group  Llc,Services,657.69,9/20/2019
Automated Railroad Mntce. Systems Systems  Inc. (Arms  Inc.),Capital Purchases,2750.16,1/7/2019
Automated Railroad Mntce. Systems Systems  Inc. (Arms  Inc.),Materials,4583.6,1/7/2019
Automated Railroad Mntce. Systems Systems  Inc. (Arms  Inc.),Capital Purchases,4348.62,1/9/2019
Automated Railroad Mntce. Systems Systems  Inc. (Arms  Inc.),Capital Purchases,11906.2,1/18/2019
Automated Railroad Mntce. Systems Systems  Inc. (Arms  Inc.),Capital Purchases,4583.6,4/8/2019
Automated Railroad Mntce. Systems Systems  Inc. (Arms  Inc.),Capital Purchases,2381.24,5/1/2019
Automated Railroad Mntce. Systems Systems  Inc. (Arms  Inc.),Capital Purchases,7143.72,8/21/2019
Averson R. Chandler,Services,78.11,1/18/2019
Averson R. Chandler,Services,140.16,2/11/2019
Averson R. Chandler,Services,171.22,3/12/2019
Averson R. Chandler,Services,190.24,4/9/2019
Averson R. Chandler,Services,216.92,5/14/2019
Averson R. Chandler,Services,118.32,6/7/2019
Averson R. Chandler,Services,39.44,7/17/2019
Averson R. Chandler,Services,133.17,8/6/2019
Averson R. Chandler,Services,19.02,8/12/2019
Averson R. Chandler,Services,57.07,9/11/2019
Averson R. Chandler,Services,114.14,10/11/2019
Averson R. Chandler,Services,38.05,11/14/2019
"Axon Enterprise, Inc",Materials,11780,1/9/2019
"Axon Enterprise, Inc",Materials,39485,4/8/2019
"Axon Enterprise, Inc",Services,142200,4/23/2019
"Axon Enterprise, Inc",Services,1495,5/22/2019
"Axon Enterprise, Inc",Materials,2275,10/24/2019
"Axon Enterprise, Inc",Materials,11200,11/19/2019
Ayodeji Ariyo,Services,54,6/19/2019
Azura Investigations Llc,Services,226,1/4/2019
Azura Investigations Llc,Services,1922,1/18/2019
Azura Investigations Llc,Services,1420,2/6/2019
Azura Investigations Llc,Services,1034,3/28/2019
Azura Investigations Llc,Services,6660,5/7/2019
Azura Investigations Llc,Services,4133,6/5/2019
Azura Investigations Llc,Services,2819,7/15/2019
Azura Investigations Llc,Services,1721,8/2/2019
Azura Investigations Llc,Services,1227,10/1/2019
Azura Investigations Llc,Services,1562,10/24/2019
Azura Investigations Llc,Services,1827,12/2/2019
B & H Photo Video Corp.,Services,8476.42,8/20/2019
Bach-Simpson Div. Of Wabtec Canada  Inc.,Capital Purchases,947,1/2/2019
Bach-Simpson Div. Of Wabtec Canada  Inc.,Services,695,1/2/2019
Bach-Simpson Div. Of Wabtec Canada  Inc.,Materials,799,1/4/2019
Bach-Simpson Div. Of Wabtec Canada  Inc.,Materials,995,1/14/2019
Bach-Simpson Div. Of Wabtec Canada  Inc.,Services,2795,1/14/2019
Bach-Simpson Div. Of Wabtec Canada  Inc.,Materials,4780,1/23/2019
Bach-Simpson Div. Of Wabtec Canada  Inc.,Materials,4170,2/1/2019
Bach-Simpson Div. Of Wabtec Canada  Inc.,Materials,2765,2/4/2019
Bach-Simpson Div. Of Wabtec Canada  Inc.,Materials,8615,2/6/2019
Bach-Simpson Div. Of Wabtec Canada  Inc.,Capital Purchases,947,3/1/2019
Bach-Simpson Div. Of Wabtec Canada  Inc.,Services,595,3/7/2019
Bach-Simpson Div. Of Wabtec Canada  Inc.,Materials,2985,3/8/2019
Bach-Simpson Div. Of Wabtec Canada  Inc.,Materials,1990,3/20/2019
Bach-Simpson Div. Of Wabtec Canada  Inc.,Capital Purchases,1894,4/1/2019
Bach-Simpson Div. Of Wabtec Canada  Inc.,Materials,10290,4/8/2019
Bach-Simpson Div. Of Wabtec Canada  Inc.,Materials,3464,4/10/2019
Bach-Simpson Div. Of Wabtec Canada  Inc.,Materials,3485,4/16/2019
Bach-Simpson Div. Of Wabtec Canada  Inc.,Capital Purchases,947,4/18/2019
Bach-Simpson Div. Of Wabtec Canada  Inc.,Materials,425,5/1/2019
Bach-Simpson Div. Of Wabtec Canada  Inc.,Materials,1495,5/3/2019
Bach-Simpson Div. Of Wabtec Canada  Inc.,Materials,10392,5/6/2019
Bach-Simpson Div. Of Wabtec Canada  Inc.,Capital Purchases,947,5/6/2019
Bach-Simpson Div. Of Wabtec Canada  Inc.,Materials,5196,5/17/2019
Bach-Simpson Div. Of Wabtec Canada  Inc.,Capital Purchases,10417,5/23/2019
Bach-Simpson Div. Of Wabtec Canada  Inc.,Services,595,6/3/2019
Bach-Simpson Div. Of Wabtec Canada  Inc.,Services,1190,6/3/2019
Bach-Simpson Div. Of Wabtec Canada  Inc.,Materials,595,6/20/2019
Bach-Simpson Div. Of Wabtec Canada  Inc.,Materials,1705,7/1/2019
Bach-Simpson Div. Of Wabtec Canada  Inc.,Capital Purchases,8523,7/1/2019
Bach-Simpson Div. Of Wabtec Canada  Inc.,Capital Purchases,1994,7/11/2019
Bach-Simpson Div. Of Wabtec Canada  Inc.,Materials,1580,7/15/2019
Bach-Simpson Div. Of Wabtec Canada  Inc.,Services,2995.04,8/5/2019
Bach-Simpson Div. Of Wabtec Canada  Inc.,Materials,360,8/22/2019
Bach-Simpson Div. Of Wabtec Canada  Inc.,Materials,11873,9/3/2019
Bach-Simpson Div. Of Wabtec Canada  Inc.,Materials,1650,9/3/2019
Bach-Simpson Div. Of Wabtec Canada  Inc.,Services,595,9/3/2019
Bach-Simpson Div. Of Wabtec Canada  Inc.,Capital Purchases,947,9/4/2019
Bach-Simpson Div. Of Wabtec Canada  Inc.,Materials,8260,9/16/2019
Bach-Simpson Div. Of Wabtec Canada  Inc.,Materials,4540,10/9/2019
Bach-Simpson Div. Of Wabtec Canada  Inc.,Materials,4190,10/16/2019
Bach-Simpson Div. Of Wabtec Canada  Inc.,Capital Purchases,4735,10/16/2019
Bach-Simpson Div. Of Wabtec Canada  Inc.,Materials,1785,10/22/2019
Bach-Simpson Div. Of Wabtec Canada  Inc.,Materials,4190,10/23/2019
Bach-Simpson Div. Of Wabtec Canada  Inc.,Capital Purchases,2891,11/1/2019
Bach-Simpson Div. Of Wabtec Canada  Inc.,Capital Purchases,997,11/1/2019
Bach-Simpson Div. Of Wabtec Canada  Inc.,Materials,5137,11/1/2019
Bach-Simpson Div. Of Wabtec Canada  Inc.,Services,350,11/1/2019
Bach-Simpson Div. Of Wabtec Canada  Inc.,Materials,15641,11/6/2019
Bach-Simpson Div. Of Wabtec Canada  Inc.,Materials,845,11/6/2019
Bach-Simpson Div. Of Wabtec Canada  Inc.,Materials,15455,11/21/2019
Bach-Simpson Div. Of Wabtec Canada  Inc.,Materials,1650,12/2/2019
Bach-Simpson Div. Of Wabtec Canada  Inc.,Services,595,12/2/2019
Bach-Simpson Div. Of Wabtec Canada  Inc.,Capital Purchases,1944,12/4/2019
Bach-Simpson Div. Of Wabtec Canada  Inc.,Materials,12990,12/9/2019
Bach-Simpson Div. Of Wabtec Canada  Inc.,Materials,3590,12/9/2019
Bake For Me,Services,530.35,1/4/2019
Bake For Me,Services,123.45,1/4/2019
Bake For Me,Services,246.9,1/23/2019
Bake For Me,Services,637.8,4/16/2019
Bake For Me,Services,347.45,4/16/2019
Bake For Me,Services,123.45,4/25/2019
Bake For Me,Services,206.9,6/14/2019
Bake For Me,Services,224,6/14/2019
Bake For Me,Services,1154.35,6/21/2019
Bake For Me,Services,72,6/25/2019
Bake For Me,Services,200,7/8/2019
Bake For Me,Services,837.9,7/10/2019
Bake For Me,Services,123.45,8/20/2019
Bake For Me,Services,200,8/23/2019
Bake For Me,Services,195.45,8/29/2019
Bake For Me,Services,142.8,9/17/2019
Bake For Me,Services,1522.26,10/8/2019
Bake For Me,Services,184.8,10/24/2019
Bake For Me,Services,200,11/7/2019
Bake For Me,Services,1220.37,12/16/2019
Baker Tilly Virchow Krause  Llp,Services,17741.25,3/14/2019
Baker Tilly Virchow Krause  Llp,Services,11770,3/29/2019
Baker Tilly Virchow Krause  Llp,Services,5188.75,5/30/2019
Baker Tilly Virchow Krause  Llp,Services,4121.25,7/22/2019
Baker Tilly Virchow Krause  Llp,Services,6625,8/20/2019
Baker Tilly Virchow Krause  Llp,Services,21981.25,11/22/2019
Ballast Tools  Inc.,Materials,5225,1/18/2019
Ballast Tools  Inc.,Materials,7298,2/4/2019
Ballast Tools  Inc.,Materials,5575,3/27/2019
Ballast Tools  Inc.,Materials,10832,4/16/2019
Ballast Tools  Inc.,Materials,4208,5/6/2019
Ballast Tools  Inc.,Materials,3156,6/13/2019
Ballast Tools  Inc.,Materials,2880,9/16/2019
Ballast Tools  Inc.,Materials,1356,10/9/2019
Ballast Tools  Inc.,Materials,4208,11/6/2019
Bank Of America,Services,16011.32,1/7/2019
Bank Of America,Services,6042876.15,1/9/2019
Bank Of America,Services,5728864.17,1/24/2019
Bank Of America,Services,16779.63,1/24/2019
Bank Of America,Services,7057268.91,2/8/2019
Bank Of America,Services,17578.6,2/28/2019
Bank Of America,Services,14963.3,3/29/2019
Bank Of America,Services,15965.93,5/2/2019
Bank Of America,Services,16084.6,6/3/2019
Bank Of America,Services,17612.42,7/2/2019
Bank Of America,Services,15652.05,9/4/2019
Bank Of America,Services,18816.36,9/17/2019
Bank Of America,Services,15487.21,10/17/2019
Bank Of America,Services,15519.11,11/5/2019
Bank Of America,Services,17862.28,12/3/2019
Bank Of America,Services,15297.25,12/19/2019
Bank Of America Merrill Lynch,Services,15408.78,5/15/2019
Bank Of America Merrill Lynch,Services,7538.98,9/4/2019
Bank Of America Merrill Lynch,Services,7909.7,11/5/2019
Barbara K. Nelson,Services,57.5,3/6/2019
Barber Spring Co.,Materials,1208.36,3/15/2019
Barber Spring Co.,Materials,2080.28,6/19/2019
Barber Spring Co.,Materials,3255.29,10/9/2019
Barber Spring Co.,Materials,6107.36,12/16/2019
Barrett's Technology Solutions,Capital Purchases,3089,9/9/2019
BBA Project  Inc.,Materials,6985.5,1/4/2019
BBA Project  Inc.,Materials,3762,1/14/2019
BBA Project  Inc.,Materials,2232,1/23/2019
BBA Project  Inc.,Capital Purchases,227167.42,1/23/2019
BBA Project  Inc.,Materials,1395,3/1/2019
BBA Project  Inc.,Materials,11413.5,3/27/2019
BBA Project  Inc.,Materials,1215,3/27/2019
BBA Project  Inc.,Capital Purchases,64596.32,4/1/2019
BBA Project  Inc.,Materials,13920,4/15/2019
BBA Project  Inc.,Capital Purchases,122878.8,5/1/2019
BBA Project  Inc.,Capital Purchases,138025.72,5/7/2019
BBA Project  Inc.,Capital Purchases,32476.64,6/10/2019
BBA Project  Inc.,Capital Purchases,144230,7/1/2019
BBA Project  Inc.,Materials,5934,7/22/2019
BBA Project  Inc.,Capital Purchases,4160.16,9/3/2019
BBA Project  Inc.,Capital Purchases,9985.24,10/9/2019
BBA Project  Inc.,Capital Purchases,53975.08,12/5/2019
BCBS Of Illinois,Services,979830.92,1/11/2019
BCBS Of Illinois,Claims & Insurance,20,2/21/2019
BCBS Of Illinois,Services,820253.61,2/28/2019
BCBS Of Illinois,Services,62256.01,3/15/2019
BCBS Of Illinois,Services,942172.94,3/29/2019
BCBS Of Illinois,Services,745557.77,3/31/2019
BCBS Of Illinois,Services,850203.75,4/23/2019
BCBS Of Illinois,Services,917468.46,5/30/2019
BCBS Of Illinois,Services,913529.1,6/21/2019
BCBS Of Illinois,Claims & Insurance,20,7/12/2019
BCBS Of Illinois,Services,917375.17,7/24/2019
BCBS Of Illinois,Claims & Insurance,123012.62,7/31/2019
BCBS Of Illinois,Services,910961.45,9/10/2019
BCBS Of Illinois,Services,940183.12,10/1/2019
BCBS Of Illinois,Claims & Insurance,2861.94,10/11/2019
BCBS Of Illinois,Services,920487.18,11/12/2019
BCBS Of Illinois,Services,952036.85,12/11/2019
Bebon Office Machines Co.  Inc.,Services,600,1/4/2019
Bebon Office Machines Co.  Inc.,Services,400,1/18/2019
Bebon Office Machines Co.  Inc.,Services,400,4/18/2019
Bebon Office Machines Co.  Inc.,Services,250,5/13/2019
Bebon Office Machines Co.  Inc.,Services,1050,6/3/2019
Bebon Office Machines Co.  Inc.,Services,180,7/10/2019
Bebon Office Machines Co.  Inc.,Services,650,9/17/2019
Bebon Office Machines Co.  Inc.,Services,650,12/4/2019
Beligh Sraieb,Services,37.12,7/18/2019
Beligh Sraieb,Services,23.2,12/4/2019
Beligh Sraieb,Services,23.2,12/4/2019
Bellwood Electric Motors Inc.,Materials,18900,1/4/2019
Bellwood Electric Motors Inc.,Materials,3090,2/4/2019
Bellwood Electric Motors Inc.,Materials,5900,2/6/2019
Bellwood Electric Motors Inc.,Capital Purchases,3500,3/5/2019
Bellwood Electric Motors Inc.,Capital Purchases,3500,3/6/2019
Bellwood Electric Motors Inc.,Materials,400,3/8/2019
Bellwood Electric Motors Inc.,Materials,12400,3/14/2019
Bellwood Electric Motors Inc.,Materials,21000,3/27/2019
Bellwood Electric Motors Inc.,Materials,14770,4/10/2019
Bellwood Electric Motors Inc.,Services,0.03,4/10/2019
Bellwood Electric Motors Inc.,Materials,9100,4/25/2019
Bellwood Electric Motors Inc.,Materials,29690,5/6/2019
Bellwood Electric Motors Inc.,Capital Purchases,3500,5/6/2019
Bellwood Electric Motors Inc.,Materials,5900,5/17/2019
Bellwood Electric Motors Inc.,Materials,5590,5/28/2019
Bellwood Electric Motors Inc.,Materials,6900,6/3/2019
Bellwood Electric Motors Inc.,Materials,4600,6/4/2019
Bellwood Electric Motors Inc.,Materials,35200,7/1/2019
Bellwood Electric Motors Inc.,Materials,3360,7/10/2019
Bellwood Electric Motors Inc.,Materials,8200,8/20/2019
Bellwood Electric Motors Inc.,Capital Purchases,3500,8/28/2019
Bellwood Electric Motors Inc.,Materials,4600,9/17/2019
Bellwood Electric Motors Inc.,Materials,4600,10/9/2019
Bellwood Electric Motors Inc.,Materials,12800,10/23/2019
Bellwood Electric Motors Inc.,Materials,4500,11/6/2019
Bellwood Electric Motors Inc.,Materials,3500,11/11/2019
Bellwood Electric Motors Inc.,Materials,18900,12/9/2019
Belt Railway Co. Of Chicago,Services,3000,10/28/2019
Benefit Resource Inc.,Services,32162.25,1/9/2019
Benefit Resource Inc.,Services,51757.05,1/11/2019
Benefit Resource Inc.,Services,48258.95,1/25/2019
Benefit Resource Inc.,Services,48021.03,2/8/2019
Benefit Resource Inc.,Services,34761.43,2/15/2019
Benefit Resource Inc.,Services,88614.64,2/28/2019
Benefit Resource Inc.,Services,110.42,3/4/2019
Benefit Resource Inc.,Services,228462.1,3/8/2019
Benefit Resource Inc.,Services,52448.57,3/15/2019
Benefit Resource Inc.,Services,88104.46,3/31/2019
Benefit Resource Inc.,Services,52190.23,4/15/2019
Benefit Resource Inc.,Services,57069,4/22/2019
Benefit Resource Inc.,Services,57069,4/23/2019
Benefit Resource Inc.,Services,58401.39,4/30/2019
Benefit Resource Inc.,Services,3886,5/15/2019
Benefit Resource Inc.,Services,181720.11,5/30/2019
Benefit Resource Inc.,Services,40686.73,5/31/2019
Benefit Resource Inc.,Services,3954,6/15/2019
Benefit Resource Inc.,Services,165336.44,6/21/2019
Benefit Resource Inc.,Services,40156.51,6/30/2019
Benefit Resource Inc.,Services,3029.75,7/15/2019
Benefit Resource Inc.,Services,152215.74,7/17/2019
Benefit Resource Inc.,Services,40535.01,7/31/2019
Benefit Resource Inc.,Services,3763.99,8/1/2019
Benefit Resource Inc.,Services,151707.2,8/14/2019
Benefit Resource Inc.,Services,8636.55,9/27/2019
Benefit Resource Inc.,Services,149009.02,10/1/2019
Benefit Resource Inc.,Services,192912.97,11/12/2019
Benefit Resource Inc.,Services,357840.43,12/11/2019
Beni V. Calderon,Services,125,1/29/2019
"Benjamin A. Goldberg, MD",Claims & Insurance,125,1/11/2019
"Benjamin A. Goldberg, MD",Claims & Insurance,49534.61,2/14/2019
"Benjamin A. Goldberg, MD",Claims & Insurance,2500,5/2/2019
"Benjamin A. Goldberg, MD",Claims & Insurance,1500,5/31/2019
"Benjamin A. Goldberg, MD",Claims & Insurance,15500,12/5/2019
"Benjamin A. Goldberg, MD",Claims & Insurance,5000,12/5/2019
"Benjamin A. Goldberg, MD",Claims & Insurance,3000,12/26/2019
Bentley Systems  Inc.,Capital Purchases,126784,7/9/2019
Bentley Systems  Inc.,Capital Purchases,97624.46,9/3/2019
Bentley Systems  Inc.,Capital Purchases,223709,11/6/2019
Berkeley Simulation Software  LLC,Services,5000,5/1/2019
Bernard Powell,Services,226,11/25/2019
Berts Car Wash  Inc.,Services,885,1/14/2019
Berts Car Wash  Inc.,Services,1152,2/12/2019
Berts Car Wash  Inc.,Services,1690,3/27/2019
Berts Car Wash  Inc.,Services,1496,4/25/2019
Berts Car Wash  Inc.,Services,1146,5/9/2019
Berts Car Wash  Inc.,Services,760,6/20/2019
Berts Car Wash  Inc.,Services,1290,7/22/2019
Berts Car Wash  Inc.,Services,1193,9/16/2019
Berts Car Wash  Inc.,Services,1622,9/17/2019
Berts Car Wash  Inc.,Services,1288,11/6/2019
Berts Car Wash  Inc.,Services,1116,12/4/2019
Berts Car Wash  Inc.,Services,1013,12/9/2019
Beverly Douglas,Services,292.51,1/11/2019
"Bevil Reporting Service, Inc.",Claims & Insurance,1329.44,1/25/2019
"Bevil Reporting Service, Inc.",Claims & Insurance,352.05,2/11/2019
"Bevil Reporting Service, Inc.",Claims & Insurance,371.5,8/9/2019
"Bevil Reporting Service, Inc.",Claims & Insurance,535.05,11/13/2019
Bhargav Mudda MD,Claims & Insurance,500,3/20/2019
Big Tex Trailer World Inc.,Materials,2999.99,1/7/2019
Bis At U Of I,Claims & Insurance,50,5/28/2019
Bis At U Of I,Claims & Insurance,50,7/12/2019
Black Dog Petroleum LLC,Materials,2945,2/1/2019
Black Dog Petroleum LLC,Materials,1767,2/4/2019
Black Dog Petroleum LLC,Materials,1767,2/6/2019
Black Dog Petroleum LLC,Materials,1914.25,3/5/2019
Black Dog Petroleum LLC,Materials,1619.75,3/27/2019
Black Dog Petroleum LLC,Materials,1767,5/1/2019
Black Dog Petroleum LLC,Materials,1914.25,6/3/2019
Black Dog Petroleum LLC,Materials,2945,6/10/2019
Black Dog Petroleum LLC,Materials,1767,6/20/2019
Black Dog Petroleum LLC,Materials,1619.75,7/22/2019
Black Dog Petroleum LLC,Materials,8098.75,8/5/2019
Black Dog Petroleum LLC,Materials,2945,10/23/2019
Black Dog Petroleum LLC,Materials,2650.5,12/5/2019
BLET GCA Local 294 & 575,Services,20,1/14/2019
BLET GCA Local 294 & 575,Services,20,2/15/2019
Blinderman Construction Co.  Inc.,Capital Purchases,1021185.94,1/2/2019
Blinderman Construction Co.  Inc.,Capital Purchases,187881.43,8/1/2019
Blinderman Construction Co.  Inc.,Capital Purchases,143928.63,10/1/2019
Blinderman Construction Co.  Inc.,Capital Purchases,225168.22,10/1/2019
Blinderman Construction Co.  Inc.,Services,11163.75,10/1/2019
Blinderman Construction Co.  Inc.,Claims & Insurance,58170.69,12/12/2019
Blitt & Gaines  P.C.,Services,382.01,3/15/2019
Blitt & Gaines  P.C.,Services,347.28,3/31/2019
Blitt & Gaines  P.C.,Services,208.37,4/15/2019
Blitt & Gaines  P.C.,Services,669.31,5/15/2019
Blitt & Gaines  P.C.,Services,669.31,5/31/2019
Blitt & Gaines  P.C.,Services,669.31,6/15/2019
Blitt & Gaines  P.C.,Services,344.01,6/30/2019
Blitt & Gaines  P.C.,Services,1079.12,8/30/2019
Blue Island Fire Department,Services,100,2/11/2019
Blue Print Shoppe  Inc.,Capital Purchases,206.56,5/1/2019
Blue Print Shoppe  Inc.,Capital Purchases,20,7/11/2019
Blue Print Shoppe  Inc.,Capital Purchases,6102,10/1/2019
Blue Print Shoppe  Inc.,Capital Purchases,861,10/1/2019
Blue Print Shoppe  Inc.,Capital Purchases,890.19,11/1/2019
"BMO Harris Bank, N.A.",Claims & Insurance,41.15,7/11/2019
Bnsf Railway Co.,Capital Purchases,868160.72,1/24/2019
Bnsf Railway Co.,Capital Purchases,128529.71,1/24/2019
Bnsf Railway Co.,Services,4824407.69,1/24/2019
Bnsf Railway Co.,Capital Purchases,196.77,1/25/2019
Bnsf Railway Co.,Capital Purchases,35388.6,1/25/2019
Bnsf Railway Co.,Capital Purchases,54675.67,1/25/2019
Bnsf Railway Co.,Capital Purchases,674458.34,2/1/2019
Bnsf Railway Co.,Capital Purchases,88591.47,2/1/2019
Bnsf Railway Co.,Services,4859094.05,2/22/2019
Bnsf Railway Co.,Capital Purchases,26994.62,2/27/2019
Bnsf Railway Co.,Capital Purchases,181969.26,2/27/2019
Bnsf Railway Co.,Capital Purchases,25765.92,2/28/2019
Bnsf Railway Co.,Capital Purchases,1142005.78,3/1/2019
Bnsf Railway Co.,Capital Purchases,20419.26,3/1/2019
Bnsf Railway Co.,Capital Purchases,10374.57,3/19/2019
Bnsf Railway Co.,Capital Purchases,15350.85,3/19/2019
Bnsf Railway Co.,Capital Purchases,420777.86,3/25/2019
Bnsf Railway Co.,Services,5036694.22,3/25/2019
Bnsf Railway Co.,Capital Purchases,1549.43,3/26/2019
Bnsf Railway Co.,Capital Purchases,109095.85,3/26/2019
Bnsf Railway Co.,Capital Purchases,17310.65,3/26/2019
Bnsf Railway Co.,Capital Purchases,281873.25,4/1/2019
Bnsf Railway Co.,Capital Purchases,1040.89,4/1/2019
Bnsf Railway Co.,Capital Purchases,8846.45,4/3/2019
Bnsf Railway Co.,Services,11338.08,4/18/2019
Bnsf Railway Co.,Services,5075523.96,4/29/2019
Bnsf Railway Co.,Services,3779.36,5/1/2019
Bnsf Railway Co.,Capital Purchases,397709.15,5/8/2019
Bnsf Railway Co.,Capital Purchases,44751.76,5/8/2019
Bnsf Railway Co.,Services,5367137.06,5/28/2019
Bnsf Railway Co.,Capital Purchases,7425.02,5/30/2019
Bnsf Railway Co.,Capital Purchases,525.93,6/3/2019
Bnsf Railway Co.,Services,3779.36,6/3/2019
Bnsf Railway Co.,Capital Purchases,39421.25,6/11/2019
Bnsf Railway Co.,Capital Purchases,766,6/11/2019
Bnsf Railway Co.,Capital Purchases,8478.78,6/11/2019
Bnsf Railway Co.,Capital Purchases,42352.67,6/12/2019
Bnsf Railway Co.,Capital Purchases,16403.97,6/12/2019
Bnsf Railway Co.,Capital Purchases,24189.57,6/20/2019
Bnsf Railway Co.,Services,3779.36,6/20/2019
Bnsf Railway Co.,Capital Purchases,10506.7,6/27/2019
Bnsf Railway Co.,Capital Purchases,14620.13,6/27/2019
Bnsf Railway Co.,Capital Purchases,925.8,6/27/2019
Bnsf Railway Co.,Services,5349094.95,6/27/2019
Bnsf Railway Co.,Capital Purchases,532947.16,7/1/2019
Bnsf Railway Co.,Capital Purchases,12544.12,7/1/2019
Bnsf Railway Co.,Capital Purchases,35281.16,7/8/2019
Bnsf Railway Co.,Capital Purchases,89766.44,7/8/2019
Bnsf Railway Co.,Capital Purchases,56166.28,7/8/2019
Bnsf Railway Co.,Capital Purchases,29282.78,7/19/2019
Bnsf Railway Co.,Capital Purchases,58906.66,7/19/2019
Bnsf Railway Co.,Services,3779.36,7/23/2019
Bnsf Railway Co.,Services,5123140.81,7/25/2019
Bnsf Railway Co.,Capital Purchases,52453.99,7/30/2019
Bnsf Railway Co.,Capital Purchases,164759.5,7/30/2019
Bnsf Railway Co.,Capital Purchases,156338.76,8/1/2019
Bnsf Railway Co.,Capital Purchases,15007.61,8/1/2019
Bnsf Railway Co.,Services,260700.28,8/7/2019
Bnsf Railway Co.,Capital Purchases,117377.68,8/13/2019
Bnsf Railway Co.,Capital Purchases,53389.94,8/13/2019
Bnsf Railway Co.,Capital Purchases,28540.06,8/13/2019
Bnsf Railway Co.,Capital Purchases,6931.7,8/15/2019
Bnsf Railway Co.,Capital Purchases,9049.18,8/15/2019
Bnsf Railway Co.,Capital Purchases,20841.45,8/22/2019
Bnsf Railway Co.,Capital Purchases,56428.5,8/22/2019
Bnsf Railway Co.,Services,3594461.49,8/28/2019
Bnsf Railway Co.,Services,2063160.25,8/28/2019
Bnsf Railway Co.,Capital Purchases,12520.25,9/3/2019
Bnsf Railway Co.,Capital Purchases,269.44,9/3/2019
Bnsf Railway Co.,Capital Purchases,12433.05,9/3/2019
Bnsf Railway Co.,Capital Purchases,72450.48,9/4/2019
Bnsf Railway Co.,Capital Purchases,391.52,9/11/2019
Bnsf Railway Co.,Capital Purchases,115191.34,9/11/2019
Bnsf Railway Co.,Capital Purchases,132425.92,9/11/2019
Bnsf Railway Co.,Capital Purchases,127938.09,9/18/2019
Bnsf Railway Co.,Capital Purchases,11101.15,9/25/2019
Bnsf Railway Co.,Capital Purchases,150891.38,9/25/2019
Bnsf Railway Co.,Capital Purchases,15515.22,9/25/2019
Bnsf Railway Co.,Services,3541399.95,9/27/2019
Bnsf Railway Co.,Services,1985804.17,9/27/2019
Bnsf Railway Co.,Capital Purchases,1469.48,10/1/2019
Bnsf Railway Co.,Capital Purchases,101037.39,10/1/2019
Bnsf Railway Co.,Capital Purchases,1995.76,10/1/2019
Bnsf Railway Co.,Capital Purchases,127865.75,10/2/2019
Bnsf Railway Co.,Capital Purchases,177059.27,10/2/2019
Bnsf Railway Co.,Services,7758.46,10/7/2019
Bnsf Railway Co.,Capital Purchases,6396.56,10/8/2019
Bnsf Railway Co.,Capital Purchases,64752.53,10/9/2019
Bnsf Railway Co.,Capital Purchases,193459.38,10/18/2019
Bnsf Railway Co.,Capital Purchases,63217.96,10/18/2019
Bnsf Railway Co.,Capital Purchases,174623.56,10/21/2019
Bnsf Railway Co.,Capital Purchases,7897.98,10/21/2019
Bnsf Railway Co.,Services,3879.23,10/22/2019
Bnsf Railway Co.,Services,3434194.42,10/24/2019
Bnsf Railway Co.,Services,1989472.9,10/24/2019
Bnsf Railway Co.,Capital Purchases,65402.44,11/1/2019
Bnsf Railway Co.,Capital Purchases,408346.26,11/1/2019
Bnsf Railway Co.,Capital Purchases,29769.62,11/1/2019
Bnsf Railway Co.,Capital Purchases,159291.8,11/4/2019
Bnsf Railway Co.,Capital Purchases,21785.66,11/13/2019
Bnsf Railway Co.,Capital Purchases,379893.27,11/13/2019
Bnsf Railway Co.,Capital Purchases,13971.21,11/13/2019
Bnsf Railway Co.,Capital Purchases,152664.22,11/20/2019
Bnsf Railway Co.,Capital Purchases,210188.44,11/20/2019
Bnsf Railway Co.,Services,3879.23,11/21/2019
Bnsf Railway Co.,Capital Purchases,5365.42,11/25/2019
Bnsf Railway Co.,Services,3599841.5,11/25/2019
Bnsf Railway Co.,Services,1997717.9,11/25/2019
Bnsf Railway Co.,Capital Purchases,5224.95,12/2/2019
Bnsf Railway Co.,Capital Purchases,122593.17,12/2/2019
Bnsf Railway Co.,Services,3879.23,12/19/2019
Bnsf Railway Co.,Services,3072121,12/23/2019
Bnsf Railway Co.,Services,1798333.45,12/23/2019
Boma/Chicago,Services,2489,1/7/2019
Boma/Chicago,Services,2514,12/19/2019
Borislav Apostolov,Services,24.36,8/9/2019
Borkan & Scahill,Claims & Insurance,32636.15,8/9/2019
Borkan & Scahill,Claims & Insurance,26485,12/4/2019
"Bowman Barrett & Associates, Inc",Capital Purchases,3481.63,3/1/2019
Brabazon Pumpe Co.  Ltd.,Materials,1071.04,1/23/2019
Brabazon Pumpe Co.  Ltd.,Materials,14909.8,3/27/2019
Brabazon Pumpe Co.  Ltd.,Materials,13262.2,4/8/2019
Brabazon Pumpe Co.  Ltd.,Materials,1071.04,6/6/2019
Brabazon Pumpe Co.  Ltd.,Materials,12992,7/10/2019
Brabazon Pumpe Co.  Ltd.,Materials,12992,8/5/2019
Brabazon Pumpe Co.  Ltd.,Materials,308.8,8/20/2019
Brabazon Pumpe Co.  Ltd.,Materials,1071.04,9/16/2019
Brad Clark,Claims & Insurance,1862.27,5/7/2019
Brad Methling,Services,186.76,2/13/2019
Brad Methling,Services,83.52,4/11/2019
Brad Methling,Services,37.12,4/11/2019
Brad Methling,Services,37.12,5/15/2019
Brad Methling,Services,417.6,6/19/2019
Brad Methling,Services,74.24,6/19/2019
Brad Methling,Services,46.4,7/12/2019
Brad Methling,Services,120.64,7/12/2019
Brad Methling,Services,37.12,8/8/2019
Brad Methling,Services,60.32,9/13/2019
Brad Methling,Services,285.36,9/13/2019
Brad Methling,Services,114.84,9/13/2019
Brad Methling,Services,243.6,10/11/2019
Brad Methling,Services,191.4,11/1/2019
Bradken-Atchison/St. Joseph  Inc.,Capital Purchases,392232,8/13/2019
"Bradley E. Prendergast, Esq.",Claims & Insurance,1904.35,12/20/2019
Bradley L. Williams,Services,171.6,4/3/2019
Brandon M. Bush,Services,2643.44,8/29/2019
Brasco International  Inc.,Materials,25835,7/1/2019
Brasco International  Inc.,Materials,3975,7/1/2019
"Bratton Firm Subrogation Services, Inc.",Claims & Insurance,10650,4/10/2019
Brenda McCollum,Services,136.88,9/11/2019
Brendan A. Stejskal,Services,318.84,1/9/2019
Brendan A. Stejskal,Services,302.18,1/17/2019
Brendan A. Stejskal,Services,314.94,2/11/2019
Brendan A. Stejskal,Services,296.38,2/26/2019
Brendan A. Stejskal,Services,272.02,3/12/2019
Brendan A. Stejskal,Services,320.74,3/21/2019
Brendan A. Stejskal,Services,342.2,4/3/2019
Brendan A. Stejskal,Services,363.66,4/29/2019
Brendan A. Stejskal,Services,372.36,5/9/2019
Brendan A. Stejskal,Services,220.4,5/17/2019
Brendan A. Stejskal,Services,357.86,6/6/2019
Brendan A. Stejskal,Services,354.96,6/19/2019
Brendan A. Stejskal,Services,340.46,7/11/2019
Brendan A. Stejskal,Services,207.64,7/26/2019
Brendan A. Stejskal,Services,345.1,8/5/2019
Brendan A. Stejskal,Services,342.2,8/26/2019
Brendan A. Stejskal,Services,314.94,9/5/2019
Brendan A. Stejskal,Services,293.48,9/19/2019
Brendan A. Stejskal,Services,293.48,10/4/2019
Brendan A. Stejskal,Services,207.64,11/18/2019
Brendan A. Stejskal,Services,253.46,11/25/2019
Brendan A. Stejskal,Services,183.28,12/4/2019
Brendan A. Stejskal,Services,213.44,12/17/2019
Brendon Cotton,Services,201.84,10/14/2019
Brendon Cotton,Services,16.24,10/14/2019
Brendon Cotton,Services,139.2,11/12/2019
Brendon Cotton,Services,177.48,12/5/2019
Bresshenda Crudup,Services,134.07,1/14/2019
Bresshenda Crudup,Services,47.96,1/14/2019
Bresshenda Crudup,Services,61.04,1/14/2019
Bresshenda Crudup,Services,185.6,2/7/2019
Bresshenda Crudup,Services,38.28,2/7/2019
Bresshenda Crudup,Services,12.76,2/7/2019
Bresshenda Crudup,Services,62.64,3/6/2019
Bresshenda Crudup,Services,37.12,3/6/2019
Bresshenda Crudup,Services,25.52,3/6/2019
Bresshenda Crudup,Services,38.28,3/6/2019
Bresshenda Crudup,Services,155.44,5/10/2019
Bresshenda Crudup,Services,218.08,5/10/2019
Bresshenda Crudup,Services,64.96,5/10/2019
Bresshenda Crudup,Services,64.96,7/9/2019
Bresshenda Crudup,Services,155.44,7/9/2019
Bresshenda Crudup,Services,140.36,7/9/2019
Bresshenda Crudup,Services,64.96,7/9/2019
Bresshenda Crudup,Services,480.24,8/30/2019
Bresshenda Crudup,Services,187.92,8/30/2019
Brian C. Peters,Services,344.96,6/26/2019
Brian C. Peters,Services,137.5,6/26/2019
Brian Piper,Services,54,6/21/2019
Brian S Wimmer,Services,172.26,6/18/2019
Brian S Wimmer,Services,3.3,6/18/2019
Brian S Wimmer,Services,123.57,6/18/2019
Brian S Wimmer,Services,82.5,6/18/2019
Brian S Wimmer,Services,81.37,7/1/2019
Brian S Wimmer,Services,57,7/1/2019
Brian S Wimmer,Services,12,7/1/2019
Brian S Wimmer,Services,624.06,7/1/2019
Brian S Wimmer,Services,190,7/1/2019
Brian S Wimmer,Services,60,7/1/2019
Brian Simmons,Services,54,6/13/2019
Brian Simmons,Services,20.06,11/1/2019
Brian Simmons,Services,38.37,11/1/2019
Brian Simmons,Services,749.07,11/1/2019
Brian Simmons,Services,132,11/1/2019
Brianna Morrison,Claims & Insurance,962.83,8/9/2019
Briant C. Holloway,Services,336.59,1/10/2019
Briant C. Holloway,Services,492.54,2/13/2019
Briant C. Holloway,Services,335.82,3/13/2019
Briant C. Holloway,Services,156.72,4/12/2019
Briant C. Holloway,Services,201.49,5/10/2019
Briant C. Holloway,Services,89.55,6/13/2019
Briant C. Holloway,Services,156.72,7/16/2019
Briant C. Holloway,Services,44.78,9/18/2019
Brittany Harvard,Services,262.11,10/14/2019
Brittany Harvard,Services,133.27,10/22/2019
Brittany Harvard,Services,131.06,11/7/2019
Brittany Harvard,Services,218.43,11/13/2019
Brittany Harvard,Services,262.11,12/10/2019
Broadway Electric  Inc.,Capital Purchases,127372.5,2/1/2019
Broadway Electric  Inc.,Capital Purchases,169591.5,6/6/2019
Broadway Electric  Inc.,Capital Purchases,177073.73,10/9/2019
Broadway Electric  Inc.,Capital Purchases,65397.66,10/9/2019
Brooks C. Warren,Services,24.36,2/15/2019
Brotherhood Of Locomotive Engineers & Trainmen  Div. 815,Services,183,1/14/2019
Brotherhood Of Locomotive Engineers & Trainmen  Div. 815,Services,183,2/15/2019
Bruce  Marcheschi,Services,261,6/14/2019
Bruce  Marcheschi,Services,114,6/14/2019
Bruce  Marcheschi,Services,119,9/19/2019
Bruce  Marcheschi,Services,140.98,9/19/2019
Bruce  Marcheschi,Services,42.75,9/26/2019
Bruce  Marcheschi,Services,114,12/13/2019
Bruce  Marcheschi,Services,152.5,12/19/2019
Bruce Wesley,Services,1361.1,1/29/2019
"Bruckert, Gruenke & Long, PC",Services,605.37,3/15/2019
"Bruckert, Gruenke & Long, PC",Services,42.89,4/30/2019
"Bruckert, Gruenke & Long, PC",Services,648.39,5/15/2019
"Bruckert, Gruenke & Long, PC",Services,75.01,5/31/2019
Bryan Mack,Services,1882.5,1/8/2019
Bryan Mack,Services,230.44,6/26/2019
Bryan Mack,Services,137.5,6/26/2019
Bud's Ambulance Service,Claims & Insurance,6,10/28/2019
Bulk Equipment Corp.,Services,13640.93,3/5/2019
"Bullseye Engagement, LLC",Services,68015.5,6/3/2019
Bureau Veritas North America  Inc.,Capital Purchases,2361.29,1/2/2019
Bureau Veritas North America  Inc.,Capital Purchases,1289.73,1/29/2019
Bureau Veritas North America  Inc.,Capital Purchases,2792.54,4/11/2019
Bureau Veritas North America  Inc.,Capital Purchases,2362.82,4/12/2019
Bureau Veritas North America  Inc.,Capital Purchases,3231.3,8/22/2019
Bureau Veritas North America  Inc.,Capital Purchases,11683.16,10/24/2019
Bureau Veritas North America  Inc.,Capital Purchases,2163.57,11/20/2019
Bureau Veritas North America  Inc.,Services,1760.39,12/4/2019
Bureau Veritas North America  Inc.,Services,2399.02,12/4/2019
Bureau Veritas North America  Inc.,Services,1079.59,12/4/2019
Burns & Mcdonnell Engineering Co.,Capital Purchases,43535.49,3/5/2019
Burns & Mcdonnell Engineering Co.,Capital Purchases,32817.58,4/17/2019
Burns & Mcdonnell Engineering Co.,Capital Purchases,15209.19,5/1/2019
Burris Equipment Co.,Rental Expense,1814.4,5/1/2019
Burris Equipment Co.,Rental Expense,1814.4,5/1/2019
Burris Equipment Co.,Rental Expense,1814.4,5/9/2019
Burris Equipment Co.,Rental Expense,1814.4,5/20/2019
Burris Equipment Co.,Rental Expense,1814.4,6/17/2019
Burris Equipment Co.,Rental Expense,1814.4,7/10/2019
Burris Equipment Co.,Rental Expense,1814.4,7/10/2019
Burris Equipment Co.,Rental Expense,1814.4,8/1/2019
Burris Equipment Co.,Rental Expense,1814.4,8/20/2019
Burris Equipment Co.,Rental Expense,1814,8/20/2019
Burris Equipment Co.,Rental Expense,1814.4,9/16/2019
Burris Equipment Co.,Rental Expense,1814.4,9/16/2019
Burris Equipment Co.,Rental Expense,1814.4,10/9/2019
Burris Equipment Co.,Rental Expense,1814.4,10/9/2019
Burris Equipment Co.,Rental Expense,1814.4,11/6/2019
Burris Equipment Co.,Rental Expense,1814.4,11/6/2019
Buvanendran SC,Claims & Insurance,700,4/23/2019
Cadient LLC,Services,9216,9/20/2019
Cadient LLC,Services,2872,10/28/2019
Cadient LLC,Services,2872,11/22/2019
Calamp Wireless Networks Corp.,Capital Purchases,18295,2/4/2019
Calamp Wireless Networks Corp.,Capital Purchases,246554,3/13/2019
Calamp Wireless Networks Corp.,Capital Purchases,369831,4/24/2019
California State Disbursement Unit,Services,117.87,2/15/2019
California State Disbursement Unit,Services,117.87,2/28/2019
California State Disbursement Unit,Services,117.87,3/15/2019
California State Disbursement Unit,Services,117.87,3/31/2019
California State Disbursement Unit,Services,117.87,4/15/2019
California State Disbursement Unit,Services,117.87,4/30/2019
California State Disbursement Unit,Services,117.87,5/15/2019
California State Disbursement Unit,Services,117.87,5/31/2019
California State Disbursement Unit,Services,117.87,6/15/2019
California State Disbursement Unit,Services,117.87,6/30/2019
California State Disbursement Unit,Services,117.87,7/15/2019
California State Disbursement Unit,Services,117.87,7/31/2019
Calumet Harbor Lumber & Supplyco.,Materials,92796.23,4/22/2019
Calumet Harbor Lumber & Supplyco.,Materials,19914,10/18/2019
Calumet Harbor Lumber & Supplyco.,Materials,2255.62,11/1/2019
Calumet Lift Truck Service Co. Inc.,Services,1600,1/9/2019
Calumet Lift Truck Service Co. Inc.,Services,550,2/13/2019
Calumet Lift Truck Service Co. Inc.,Services,550,2/26/2019
Calumet Lift Truck Service Co. Inc.,Services,550,4/1/2019
Calvin Jackson,Services,148.9,1/14/2019
Canadian National Railroad,Services,137831.74,1/7/2019
Canadian National Railroad,Services,246126.55,1/7/2019
Canadian National Railroad,Services,137831.74,1/11/2019
Canadian National Railroad,Services,154921.44,1/11/2019
Canadian National Railroad,Rental Expense,51826.19,1/11/2019
Canadian National Railroad,Rental Expense,177.8,1/16/2019
Canadian National Railroad,Services,357.44,2/8/2019
Canadian National Railroad,Services,6891.31,2/13/2019
Canadian National Railroad,Services,285763,3/7/2019
Canadian National Railroad,Services,428644.53,3/7/2019
Canadian National Railroad,Services,2536.24,3/14/2019
Canadian National Railroad,Services,141198.26,4/8/2019
Canadian National Railroad,Services,257685,4/8/2019
Canadian National Railroad,Services,62967.42,4/18/2019
Canadian National Railroad,Services,6773.52,5/20/2019
Canadian National Railroad,Services,9362.4,5/20/2019
Canadian National Railroad,Rental Expense,202435,5/20/2019
Canadian National Railroad,Services,26697.32,5/30/2019
Canadian National Railroad,Services,141198.26,6/17/2019
Canadian National Railroad,Services,211797.4,6/17/2019
Canadian National Railroad,Services,141198.26,6/19/2019
Canadian National Railroad,Services,1527.16,6/19/2019
Canadian National Railroad,Services,54551.68,7/2/2019
Canadian National Railroad,Services,141198.26,7/9/2019
Canadian National Railroad,Services,211797.4,7/9/2019
Canadian National Railroad,Services,316.05,7/16/2019
Canadian National Railroad,Services,11861.11,7/24/2019
Canadian National Railroad,Services,141198.26,8/8/2019
Canadian National Railroad,Services,261214.81,8/8/2019
Canadian National Railroad,Services,44924.92,8/16/2019
Canadian National Railroad,Capital Purchases,709464.6,10/7/2019
Canadian National Railroad,Services,211797.4,10/7/2019
Canadian National Railroad,Services,282396.52,10/8/2019
Canadian National Railroad,Services,250304.48,10/8/2019
Canadian National Railroad,Services,63536.67,10/17/2019
Canadian National Railroad,Services,141198.26,11/7/2019
Canadian National Railroad,Services,211797.4,11/7/2019
Canadian National Railroad,Services,141198.26,12/5/2019
Canadian National Railroad,Services,3238.28,12/5/2019
Canadian National Railroad,Services,211797.4,12/5/2019
Canadian Pacific Railway Co.,Services,94960.6,1/23/2019
Canadian Pacific Railway Co.,Services,94219.16,3/19/2019
Canadian Pacific Railway Co.,Services,85297.71,3/22/2019
Canadian Pacific Railway Co.,Services,91635.89,5/23/2019
Canadian Pacific Railway Co.,Services,93234.4,5/24/2019
Canadian Pacific Railway Co.,Services,94219.16,6/27/2019
Canadian Pacific Railway Co.,Services,90149,7/15/2019
Canadian Pacific Railway Co.,Services,28964.6,7/17/2019
Canadian Pacific Railway Co.,Services,16112.6,7/17/2019
Canadian Pacific Railway Co.,Services,16692.3,7/17/2019
Canadian Pacific Railway Co.,Services,9792,7/17/2019
Canadian Pacific Railway Co.,Services,94219.16,8/23/2019
Canadian Pacific Railway Co.,Services,91965.57,9/20/2019
Canadian Pacific Railway Co.,Services,90892.45,11/8/2019
Canadian Pacific Railway Co.,Services,93717.02,11/14/2019
Canadian Pacific Railway Co.,Services,28228.5,12/12/2019
Canadian Pacific Railway Co.,Services,16916.7,12/12/2019
Canadian Pacific Railway Co.,Services,15997,12/12/2019
Canadian Pacific Railway Co.,Services,9928,12/12/2019
Canete Medina Consulting Group Inc.,Services,67381.96,1/2/2019
Canete Medina Consulting Group Inc.,Services,69117.43,3/8/2019
Canete Medina Consulting Group Inc.,Services,122758.12,4/24/2019
Canete Medina Consulting Group Inc.,Services,82315.4,5/20/2019
Canete Medina Consulting Group Inc.,Services,117420.49,6/27/2019
Canete Medina Consulting Group Inc.,Services,79069.66,10/3/2019
Canon Solutions America  Inc.,Services,79.12,1/23/2019
Canon Solutions America  Inc.,Services,1847.02,2/1/2019
Canon Solutions America  Inc.,Services,79.12,2/5/2019
Canon Solutions America  Inc.,Services,1911.47,3/29/2019
Canon Solutions America  Inc.,Services,3656.48,4/17/2019
Canon Solutions America  Inc.,Services,79.12,5/8/2019
Canon Solutions America  Inc.,Services,1685.55,5/24/2019
Canon Solutions America  Inc.,Services,1859.3,6/11/2019
Canon Solutions America  Inc.,Services,1746.89,7/1/2019
Canon Solutions America  Inc.,Services,79.12,7/18/2019
Canon Solutions America  Inc.,Services,1735.69,9/10/2019
Canon Solutions America  Inc.,Services,1677.36,9/13/2019
Canon Solutions America  Inc.,Services,1735.56,9/18/2019
Canon Solutions America  Inc.,Services,79.12,10/17/2019
Canon Solutions America  Inc.,Services,1730.33,11/21/2019
Canteen Refreshment Services,Materials,375.87,6/10/2019
Canteen Refreshment Services,Materials,707.46,6/11/2019
Canteen Refreshment Services,Materials,51.6,7/23/2019
Canteen Refreshment Services,Materials,1192.89,8/28/2019
Canteen Refreshment Services,Materials,110.16,10/7/2019
Canteen Refreshment Services,Materials,111.91,10/9/2019
Canteen Refreshment Services,Materials,939.93,11/27/2019
Canteen Refreshment Services,Materials,45.63,12/2/2019
Canteen Refreshment Services,Materials,1522.38,12/12/2019
Canton Drop Forge Inc.,Capital Purchases,28776,6/3/2019
Canton Drop Forge Inc.,Capital Purchases,34782,7/18/2019
Canton Drop Forge Inc.,Capital Purchases,17391,9/3/2019
Capricorn Communications,Services,4250,1/11/2019
Capricorn Communications,Services,4250,2/27/2019
Capricorn Communications,Services,4250,3/12/2019
Capricorn Communications,Services,4250,4/1/2019
Capricorn Communications,Services,4250,4/17/2019
Capricorn Communications,Services,4250,5/10/2019
Capricorn Communications,Services,4250,6/18/2019
Capricorn Communications,Services,4250,7/9/2019
Capricorn Communications,Services,4250,8/8/2019
Capricorn Communications,Services,4250,9/25/2019
Capricorn Communications,Services,4250,11/21/2019
Capricorn Communications,Services,4250,11/22/2019
Capricorn Communications,Services,4250,12/11/2019
Cardiac Science Corp.,Services,68193,9/11/2019
Cardinal Colorprint,Services,15080,1/2/2019
Cardinal Colorprint,Services,2253.75,2/1/2019
Cardinal Colorprint,Services,1591.5,2/25/2019
Cardinal Colorprint,Services,11526,3/1/2019
Cardinal Colorprint,Services,11199.5,4/1/2019
Cardinal Colorprint,Services,16313.75,5/15/2019
Cardinal Colorprint,Services,4116,5/21/2019
Cardinal Colorprint,Services,8495,6/3/2019
Cardinal Colorprint,Services,3961.25,6/6/2019
Cardinal Colorprint,Services,9385,6/21/2019
Cardinal Colorprint,Services,2973.75,7/9/2019
Cardinal Colorprint,Services,4216,7/24/2019
Cardinal Colorprint,Services,40100.51,9/10/2019
Cardinal Colorprint,Services,5511.88,9/18/2019
Cardinal Colorprint,Services,4551.88,10/4/2019
Cardinal Colorprint,Services,4442.15,10/10/2019
Cardinal Colorprint,Services,5512.5,10/21/2019
Cardinal Colorprint,Services,7998.75,10/29/2019
Cardinal Colorprint,Services,2756.25,11/20/2019
Cardinal Colorprint,Services,4134.38,12/12/2019
Carl Miehlke Jr.,Services,64.96,6/14/2019
Carl Miehlke Jr.,Services,62.64,6/21/2019
Carl Miehlke Jr.,Services,148.48,9/16/2019
Carl Miehlke Jr.,Services,62.64,10/1/2019
Carl Rinaldi,Services,577.92,10/1/2019
Carl Rinaldi,Services,247.5,10/1/2019
Carlos A. Del Toro,Services,48.72,2/13/2019
Carlos A. Del Toro,Services,182.12,4/1/2019
Carlos A. Del Toro,Services,375.84,5/1/2019
Carlos A. Del Toro,Services,203,5/6/2019
Carlos A. Del Toro,Services,104.4,7/12/2019
Carlos Degante,Services,54,6/13/2019
Carlos Lazaro,Services,314.64,3/21/2019
Carlos Lazaro,Services,903,3/21/2019
Carlos Lazaro,Services,549,3/21/2019
Carlos Lazaro,Services,125.28,8/12/2019
Carlos Magett,Services,75.16,1/24/2019
Carlos Preciado,Services,178.38,1/28/2019
Carlos Preciado,Services,551.15,2/7/2019
Carlos R Ochoa,Services,169.5,2/6/2019
Carlos Ross,Services,182.14,1/8/2019
Carlos Ross,Services,92.56,1/16/2019
Carmichael Leasing Co.  Inc.,Services,6604.28,1/7/2019
Carmichael Leasing Co.  Inc.,Services,789.99,1/9/2019
Carmichael Leasing Co.  Inc.,Services,695.51,1/15/2019
Carmichael Leasing Co.  Inc.,Services,775.2,1/16/2019
Carmichael Leasing Co.  Inc.,Services,406,1/16/2019
Carmichael Leasing Co.  Inc.,Services,398.87,1/24/2019
Carmichael Leasing Co.  Inc.,Services,8809.45,1/28/2019
Carmichael Leasing Co.  Inc.,Services,1016.49,2/11/2019
Carmichael Leasing Co.  Inc.,Services,203,2/25/2019
Carmichael Leasing Co.  Inc.,Services,9917.04,3/6/2019
Carmichael Leasing Co.  Inc.,Services,33,3/11/2019
Carmichael Leasing Co.  Inc.,Services,2612.37,3/13/2019
Carmichael Leasing Co.  Inc.,Services,40.6,3/13/2019
Carmichael Leasing Co.  Inc.,Services,1190.36,3/14/2019
Carmichael Leasing Co.  Inc.,Services,284.2,3/14/2019
Carmichael Leasing Co.  Inc.,Services,3986.24,3/27/2019
Carmichael Leasing Co.  Inc.,Services,477.39,4/3/2019
Carmichael Leasing Co.  Inc.,Services,3023.22,4/17/2019
Carmichael Leasing Co.  Inc.,Services,40.6,4/17/2019
Carmichael Leasing Co.  Inc.,Services,203,5/1/2019
Carmichael Leasing Co.  Inc.,Services,1736.4,5/2/2019
Carmichael Leasing Co.  Inc.,Services,555.26,5/14/2019
Carmichael Leasing Co.  Inc.,Services,1473.96,5/22/2019
Carmichael Leasing Co.  Inc.,Services,4224.31,6/3/2019
Carmichael Leasing Co.  Inc.,Services,330.84,6/7/2019
Carmichael Leasing Co.  Inc.,Services,6689.89,6/21/2019
Carmichael Leasing Co.  Inc.,Services,909.5,6/25/2019
Carmichael Leasing Co.  Inc.,Services,1233.37,6/27/2019
Carmichael Leasing Co.  Inc.,Services,240.53,7/3/2019
Carmichael Leasing Co.  Inc.,Services,406,7/3/2019
Carmichael Leasing Co.  Inc.,Services,3651.04,7/22/2019
Carmichael Leasing Co.  Inc.,Services,793.75,7/25/2019
Carmichael Leasing Co.  Inc.,Services,2555.95,8/1/2019
Carmichael Leasing Co.  Inc.,Services,400.32,8/6/2019
Carmichael Leasing Co.  Inc.,Services,40.6,8/7/2019
Carmichael Leasing Co.  Inc.,Services,8702.83,9/3/2019
Carmichael Leasing Co.  Inc.,Services,324.8,9/3/2019
Carmichael Leasing Co.  Inc.,Services,162.4,9/25/2019
Carmichael Leasing Co.  Inc.,Services,1432.11,9/26/2019
Carmichael Leasing Co.  Inc.,Services,81.2,9/26/2019
Carmichael Leasing Co.  Inc.,Services,807.55,10/7/2019
Carmichael Leasing Co.  Inc.,Services,2838.08,10/8/2019
Carmichael Leasing Co.  Inc.,Services,221.73,10/28/2019
Carmichael Leasing Co.  Inc.,Services,6246.93,10/28/2019
Carmichael Leasing Co.  Inc.,Services,1423.25,10/29/2019
Carmichael Leasing Co.  Inc.,Services,815.76,12/4/2019
Carmichael Leasing Co.  Inc.,Services,588.5,12/9/2019
Carmichael Leasing Co.  Inc.,Services,162.4,12/9/2019
Carmichael Leasing Co.  Inc.,Services,1446.81,12/23/2019
Carnow  Conibear & Assoc.  Ltd.,Services,2847.85,1/8/2019
Carnow  Conibear & Assoc.  Ltd.,Services,2525,2/4/2019
Carnow  Conibear & Assoc.  Ltd.,Services,515,2/4/2019
Carnow  Conibear & Assoc.  Ltd.,Services,4331.25,3/8/2019
Carnow  Conibear & Assoc.  Ltd.,Services,3120,3/11/2019
Carnow  Conibear & Assoc.  Ltd.,Services,600,3/13/2019
Carnow  Conibear & Assoc.  Ltd.,Services,940,3/20/2019
Carnow  Conibear & Assoc.  Ltd.,Services,835,3/20/2019
Carnow  Conibear & Assoc.  Ltd.,Services,7170,3/28/2019
Carnow  Conibear & Assoc.  Ltd.,Services,586,4/1/2019
Carnow  Conibear & Assoc.  Ltd.,Services,1480,4/12/2019
Carnow  Conibear & Assoc.  Ltd.,Services,835,4/18/2019
Carnow  Conibear & Assoc.  Ltd.,Services,1670,4/26/2019
Carnow  Conibear & Assoc.  Ltd.,Services,3480,5/1/2019
Carnow  Conibear & Assoc.  Ltd.,Services,835,5/16/2019
Carnow  Conibear & Assoc.  Ltd.,Services,835,5/20/2019
Carnow  Conibear & Assoc.  Ltd.,Services,515,6/3/2019
Carnow  Conibear & Assoc.  Ltd.,Services,835,7/1/2019
Carnow  Conibear & Assoc.  Ltd.,Services,850,7/9/2019
Carnow  Conibear & Assoc.  Ltd.,Services,1670,7/9/2019
Carnow  Conibear & Assoc.  Ltd.,Services,1510,8/1/2019
Carnow  Conibear & Assoc.  Ltd.,Services,3340,8/29/2019
Carnow  Conibear & Assoc.  Ltd.,Services,22937.7,10/1/2019
Carnow  Conibear & Assoc.  Ltd.,Services,835,10/1/2019
Carnow  Conibear & Assoc.  Ltd.,Services,1939.94,10/17/2019
Carnow  Conibear & Assoc.  Ltd.,Services,2505,10/17/2019
Carnow  Conibear & Assoc.  Ltd.,Services,7127.83,11/13/2019
Carnow  Conibear & Assoc.  Ltd.,Services,1385,12/2/2019
Carolyn W. Samuels,Claims & Insurance,3200,7/24/2019
Casimir J Sieronski,Services,42,1/9/2019
Casimir J Sieronski,Services,121,1/29/2019
Casimir J Sieronski,Services,79,2/11/2019
Casimir J Sieronski,Services,63,3/6/2019
Casimir J Sieronski,Services,61.25,3/11/2019
Casimir J Sieronski,Services,30,3/11/2019
Casimir J Sieronski,Services,52,3/11/2019
Casimir J Sieronski,Services,497.24,3/11/2019
Casimir J Sieronski,Services,266,3/11/2019
Casimir J Sieronski,Services,60,3/11/2019
Casimir J Sieronski,Services,79,3/12/2019
Casimir J Sieronski,Services,105,4/1/2019
Casimir J Sieronski,Services,58,4/12/2019
Casimir J Sieronski,Services,12.44,4/12/2019
Casimir J Sieronski,Services,88,4/29/2019
Casimir J Sieronski,Services,62.53,5/21/2019
Casimir J Sieronski,Services,24,5/21/2019
Casimir J Sieronski,Services,407.36,5/21/2019
Casimir J Sieronski,Services,396.46,5/21/2019
Casimir J Sieronski,Services,152.5,5/21/2019
Casimir J Sieronski,Services,118,5/24/2019
Casimir J Sieronski,Services,161,6/13/2019
Casimir J Sieronski,Services,118,7/3/2019
Casimir J Sieronski,Services,68,7/9/2019
Casimir J Sieronski,Services,62.93,7/24/2019
Casimir J Sieronski,Services,32,7/24/2019
Casimir J Sieronski,Services,783.69,7/24/2019
Casimir J Sieronski,Services,423.5,7/24/2019
Casimir J Sieronski,Services,30,7/24/2019
Casimir J Sieronski,Services,75,7/26/2019
Casimir J Sieronski,Services,125,8/8/2019
Casimir J Sieronski,Services,112,8/28/2019
Casimir J Sieronski,Services,91,9/13/2019
Casimir J Sieronski,Services,411.8,9/18/2019
Casimir J Sieronski,Services,50,9/18/2019
Casimir J Sieronski,Services,427.7,9/18/2019
Casimir J Sieronski,Services,190,9/18/2019
Casimir J Sieronski,Services,25,10/1/2019
Casimir J Sieronski,Services,93,10/14/2019
Casimir J Sieronski,Services,31,10/25/2019
Casimir J Sieronski,Services,64,11/12/2019
Casimir J Sieronski,Services,122,11/25/2019
Casimir J Sieronski,Services,44,12/10/2019
Cassandra Black,Services,485.03,1/14/2019
Catered Productions,Services,238.75,8/1/2019
Cavalry Fire Protection Svc. LLC,Services,891,1/14/2019
Cavalry Fire Protection Svc. LLC,Services,1000,1/14/2019
Cavalry Fire Protection Svc. LLC,Services,990.5,1/16/2019
Cavalry Fire Protection Svc. LLC,Services,836,1/22/2019
Cavalry Fire Protection Svc. LLC,Services,1277,1/24/2019
Cavalry Fire Protection Svc. LLC,Services,2474,2/1/2019
Cavalry Fire Protection Svc. LLC,Services,780,2/8/2019
Cavalry Fire Protection Svc. LLC,Services,1166,2/13/2019
Cavalry Fire Protection Svc. LLC,Services,685.5,2/13/2019
Cavalry Fire Protection Svc. LLC,Services,519,2/14/2019
Cavalry Fire Protection Svc. LLC,Services,445,2/22/2019
Cavalry Fire Protection Svc. LLC,Services,480,3/5/2019
Cavalry Fire Protection Svc. LLC,Services,858,3/5/2019
Cavalry Fire Protection Svc. LLC,Services,1152,3/11/2019
Cavalry Fire Protection Svc. LLC,Services,395,3/20/2019
Cavalry Fire Protection Svc. LLC,Services,493,3/27/2019
Cavalry Fire Protection Svc. LLC,Services,1554.5,4/10/2019
Cavalry Fire Protection Svc. LLC,Services,2113.5,4/10/2019
Cavalry Fire Protection Svc. LLC,Services,2575.5,4/11/2019
Cavalry Fire Protection Svc. LLC,Materials,3669,4/12/2019
Cavalry Fire Protection Svc. LLC,Services,2796.5,4/12/2019
Cavalry Fire Protection Svc. LLC,Services,70,4/16/2019
Cavalry Fire Protection Svc. LLC,Services,434.5,4/16/2019
Cavalry Fire Protection Svc. LLC,Services,187,4/16/2019
Cavalry Fire Protection Svc. LLC,Services,1423,4/26/2019
Cavalry Fire Protection Svc. LLC,Services,418,4/30/2019
Cavalry Fire Protection Svc. LLC,Materials,2510,5/7/2019
Cavalry Fire Protection Svc. LLC,Services,382,5/7/2019
Cavalry Fire Protection Svc. LLC,Services,667.5,5/8/2019
Cavalry Fire Protection Svc. LLC,Services,498,5/8/2019
Cavalry Fire Protection Svc. LLC,Services,1346,5/8/2019
Cavalry Fire Protection Svc. LLC,Services,3165,5/9/2019
Cavalry Fire Protection Svc. LLC,Services,3718,5/17/2019
Cavalry Fire Protection Svc. LLC,Services,492,6/4/2019
Cavalry Fire Protection Svc. LLC,Services,581,6/11/2019
Cavalry Fire Protection Svc. LLC,Services,690.5,6/11/2019
Cavalry Fire Protection Svc. LLC,Services,1825,6/11/2019
Cavalry Fire Protection Svc. LLC,Services,1075.5,6/11/2019
Cavalry Fire Protection Svc. LLC,Services,1001,6/26/2019
Cavalry Fire Protection Svc. LLC,Services,649,7/16/2019
Cavalry Fire Protection Svc. LLC,Services,456.5,7/23/2019
Cavalry Fire Protection Svc. LLC,Services,532,7/23/2019
Cavalry Fire Protection Svc. LLC,Services,512,7/25/2019
Cavalry Fire Protection Svc. LLC,Services,587,8/5/2019
Cavalry Fire Protection Svc. LLC,Materials,600,8/8/2019
Cavalry Fire Protection Svc. LLC,Services,35,8/8/2019
Cavalry Fire Protection Svc. LLC,Services,475.5,8/9/2019
Cavalry Fire Protection Svc. LLC,Services,433,8/9/2019
Cavalry Fire Protection Svc. LLC,Materials,780,9/9/2019
Cavalry Fire Protection Svc. LLC,Services,77,9/9/2019
Cavalry Fire Protection Svc. LLC,Materials,1241.5,9/10/2019
Cavalry Fire Protection Svc. LLC,Services,293,9/11/2019
Cavalry Fire Protection Svc. LLC,Services,609,9/20/2019
Cavalry Fire Protection Svc. LLC,Services,740,10/8/2019
Cavalry Fire Protection Svc. LLC,Services,586,10/8/2019
Cavalry Fire Protection Svc. LLC,Services,676,10/8/2019
Cavalry Fire Protection Svc. LLC,Services,2529,10/25/2019
Cavalry Fire Protection Svc. LLC,Services,2187,10/25/2019
Cavalry Fire Protection Svc. LLC,Services,909,10/28/2019
Cavalry Fire Protection Svc. LLC,Services,556,11/1/2019
Cavalry Fire Protection Svc. LLC,Services,3656,11/4/2019
Cavalry Fire Protection Svc. LLC,Services,160.5,11/13/2019
Cavalry Fire Protection Svc. LLC,Services,425,11/13/2019
Cavalry Fire Protection Svc. LLC,Services,661,11/14/2019
Cavalry Fire Protection Svc. LLC,Materials,5522,11/18/2019
Cavalry Fire Protection Svc. LLC,Services,732.5,11/18/2019
Cavalry Fire Protection Svc. LLC,Services,549,11/18/2019
Cavalry Fire Protection Svc. LLC,Services,555.5,11/22/2019
Cavalry Fire Protection Svc. LLC,Services,1282.5,12/9/2019
Cavalry Fire Protection Svc. LLC,Services,204,12/13/2019
Cavalry Fire Protection Svc. LLC,Services,424,12/18/2019
Cbre  Inc.,Services,2500,1/17/2019
Cbre  Inc.,Services,3600,7/9/2019
Cbre  Inc.,Services,2800,7/19/2019
Cbre  Inc.,Services,12000,12/2/2019
Cbt Nuggets Llc,Services,2995,9/12/2019
CDECI,Materials,264.89,1/15/2019
CDECI,Services,11968,1/15/2019
CDECI,Materials,3754.46,1/18/2019
CDECI,Services,13088,1/18/2019
CDECI,Materials,888.72,1/23/2019
CDECI,Services,18912,1/23/2019
CDECI,Materials,16192.52,2/8/2019
CDECI,Materials,229.34,2/19/2019
CDECI,Services,11264,2/19/2019
CDECI,Materials,2315.74,3/6/2019
CDECI,Services,13728,3/6/2019
CDECI,Materials,1636.7,3/14/2019
CDECI,Services,10560,3/14/2019
CDECI,Materials,11300.8,4/1/2019
CDECI,Services,12800,4/1/2019
CDECI,Materials,656.94,4/4/2019
CDECI,Services,14392,4/4/2019
CDECI,Materials,1813.01,4/9/2019
CDECI,Services,14496,4/9/2019
CDECI,Materials,10547.9,4/24/2019
CDECI,Services,14496,4/24/2019
CDECI,Services,14080,5/1/2019
CDECI,Materials,513.5,6/3/2019
CDECI,Services,11368,6/3/2019
CDECI,Materials,1068.94,6/13/2019
CDECI,Services,10560,6/13/2019
CDECI,Materials,107.66,7/2/2019
CDECI,Services,16896,7/2/2019
CDECI,Materials,2063.01,8/1/2019
CDECI,Services,9856,8/1/2019
CDECI,Materials,1552.85,8/5/2019
CDECI,Services,21120,8/5/2019
CDECI,Materials,4369.9,9/9/2019
CDECI,Services,17548,9/9/2019
CDECI,Materials,8113.31,10/3/2019
CDECI,Services,13104,10/3/2019
CDECI,Materials,534.74,10/11/2019
CDECI,Services,13104,10/11/2019
CDECI,Materials,4818.2,10/16/2019
CDECI,Services,10556,10/16/2019
CDECI,Materials,195.09,10/25/2019
CDECI,Services,13832,10/25/2019
CDECI,Materials,10690.64,10/28/2019
CDECI,Materials,19135.17,12/10/2019
CDECI,Materials,322.46,12/16/2019
CDECI,Services,14560,12/16/2019
CDECI,Materials,446.19,12/23/2019
CDECI,Services,15416,12/23/2019
Cdm Smith  Inc.,Capital Purchases,8291.71,3/20/2019
Cdm Smith  Inc.,Capital Purchases,10320.73,5/30/2019
Cdm Smith  Inc.,Capital Purchases,10758.46,11/14/2019
CDW Government  LLC,Materials,4010,1/2/2019
CDW Government  LLC,Capital Purchases,98468.25,2/1/2019
CDW Government  LLC,Capital Purchases,3208,3/1/2019
CDW Government  LLC,Services,74005.83,4/1/2019
CDW Government  LLC,Capital Purchases,2005,4/23/2019
CDW Government  LLC,Capital Purchases,5020,4/26/2019
CDW Government  LLC,Capital Purchases,401,5/1/2019
CDW Government  LLC,Services,8949.9,5/6/2019
CDW Government  LLC,Capital Purchases,272606.25,5/7/2019
CDW Government  LLC,Capital Purchases,3662.38,7/1/2019
CDW Government  LLC,Capital Purchases,1116.92,7/2/2019
CDW Government  LLC,Capital Purchases,15060,9/3/2019
CDW Government  LLC,Services,38149.5,9/9/2019
CDW Government  LLC,Materials,335.74,9/16/2019
CDW Government  LLC,Capital Purchases,13056,10/1/2019
CDW Government  LLC,Capital Purchases,0,10/7/2019
CDW Government  LLC,Capital Purchases,26133.92,10/7/2019
CDW Government  LLC,Capital Purchases,236258.75,10/17/2019
CDW Government  LLC,Capital Purchases,0,10/17/2019
CDW Government  LLC,Services,220991.05,11/6/2019
CDW Government  LLC,Capital Purchases,534143.94,12/23/2019
CED Technologies International Inc.,Claims & Insurance,330,4/16/2019
CED Technologies International Inc.,Claims & Insurance,2447.5,5/9/2019
CED Technologies International Inc.,Claims & Insurance,4109.4,7/16/2019
CED Technologies International Inc.,Claims & Insurance,784,8/16/2019
CED Technologies International Inc.,Claims & Insurance,302.5,8/26/2019
Cedric Hayes,Services,233.26,1/18/2019
Cedric Hayes,Services,34.88,1/18/2019
Cedric Hayes,Services,139.52,1/18/2019
Cedric Hayes,Services,125.28,2/11/2019
Cedric Hayes,Services,185.6,2/11/2019
Cedric Hayes,Services,12.76,2/11/2019
Cedric Hayes,Services,62.64,3/22/2019
Cedric Hayes,Services,185.6,3/22/2019
Cedric Hayes,Services,38.28,3/22/2019
Cedric Hayes,Services,185.6,4/16/2019
Cedric Hayes,Services,125.28,5/15/2019
Cedric Hayes,Services,111.36,5/15/2019
Cedric Hayes,Services,25.52,5/15/2019
Cedric Hayes,Services,37.12,6/13/2019
Cedric Hayes,Services,38.28,6/13/2019
Cedric Hayes,Services,187.92,7/11/2019
Cedric Hayes,Services,296.96,7/11/2019
Cedric Hayes,Services,25.52,7/11/2019
Cedric Hayes,Services,334.08,8/19/2019
Cedric Hayes,Services,371.2,9/12/2019
Cedric Hayes,Services,12.76,9/12/2019
Cedric Hayes,Services,37.12,10/11/2019
Cedric Hayes,Services,47.56,10/11/2019
Cedric Hayes,Services,37.12,12/5/2019
Cedric L Smith,Services,262.16,3/6/2019
Cedric L Smith,Services,85.84,5/9/2019
Celeste Industries Corp.,Materials,912,3/18/2019
Celeste Industries Corp.,Materials,912,5/1/2019
Celeste Industries Corp.,Materials,1140,5/21/2019
Celeste Industries Corp.,Materials,1140,8/20/2019
Celisse Willard,Claims & Insurance,30000,10/4/2019
Center for Primary Health Care,Claims & Insurance,41.74,6/21/2019
Central Sales & Service Inc.,Materials,7441.4,3/6/2019
Central Sales & Service Inc.,Materials,825.6,4/15/2019
Central Sales & Service Inc.,Materials,471.2,7/19/2019
Central Sales & Service Inc.,Materials,2108,10/1/2019
Central Sales & Service Inc.,Materials,2790,10/25/2019
Central Sales & Service Inc.,Materials,1806.28,12/16/2019
Certified Fleet Services  Inc.,Services,12848.16,1/8/2019
Certified Fleet Services  Inc.,Services,160.07,1/8/2019
Certified Fleet Services  Inc.,Services,475,1/8/2019
Certified Fleet Services  Inc.,Services,2987.51,1/15/2019
Certified Fleet Services  Inc.,Services,41.99,1/15/2019
Certified Fleet Services  Inc.,Services,3353.75,3/5/2019
Certified Fleet Services  Inc.,Services,50.03,3/5/2019
Certified Fleet Services  Inc.,Services,21452.53,3/14/2019
Certified Fleet Services  Inc.,Services,51.85,3/14/2019
Certified Fleet Services  Inc.,Services,910,3/14/2019
Certified Fleet Services  Inc.,Services,1966.92,4/3/2019
Certified Fleet Services  Inc.,Services,14253.52,4/17/2019
Certified Fleet Services  Inc.,Services,83.41,4/17/2019
Certified Fleet Services  Inc.,Services,450,4/17/2019
Certified Fleet Services  Inc.,Services,3182.77,5/1/2019
Certified Fleet Services  Inc.,Services,14.37,5/1/2019
Certified Fleet Services  Inc.,Services,475,5/1/2019
Certified Fleet Services  Inc.,Services,873,5/22/2019
Certified Fleet Services  Inc.,Services,8762.03,7/17/2019
Certified Fleet Services  Inc.,Services,108.81,7/17/2019
Certified Fleet Services  Inc.,Services,5684.05,9/12/2019
Certified Fleet Services  Inc.,Services,16.24,9/12/2019
Certified Fleet Services  Inc.,Services,475,9/12/2019
Certified Fleet Services  Inc.,Services,5360.74,10/7/2019
Certified Fleet Services  Inc.,Services,15.24,10/7/2019
Certified Fleet Services  Inc.,Services,4561.99,12/18/2019
Certified Fleet Services  Inc.,Services,15.04,12/18/2019
Certified Fleet Services  Inc.,Services,475,12/18/2019
Certified Languages International,Services,64.8,1/23/2019
Certified Languages International,Services,45.9,3/11/2019
Certified Languages International,Services,15.3,4/3/2019
Certified Languages International,Services,230.8,5/21/2019
Certified Languages International,Services,54,5/28/2019
Certified Languages International,Services,54.9,6/26/2019
Certified Languages International,Services,952.5,7/25/2019
Certified Languages International,Services,369,9/26/2019
Certified Languages International,Services,66.6,10/25/2019
Chandler Services  Inc.,Services,340.89,1/9/2019
Chandler Services  Inc.,Services,277.81,1/15/2019
Chandler Services  Inc.,Services,570,2/22/2019
Chandler Services  Inc.,Services,583.52,3/22/2019
Chandler Services  Inc.,Services,1459.49,3/28/2019
Chandler Services  Inc.,Services,1939.51,4/1/2019
Chandler Services  Inc.,Services,136.82,5/22/2019
"Channahon Tractor, LLC",Services,1004.25,9/20/2019
"Channahon Tractor, LLC",Services,5508.25,11/13/2019
Charles A. Wilson,Services,122.08,1/10/2019
Charles A. Wilson,Services,58.86,1/10/2019
Charles A. Wilson,Services,73.03,1/10/2019
Charles A. Wilson,Services,148.48,2/12/2019
Charles A. Wilson,Services,12.76,2/12/2019
Charles A. Wilson,Services,285.36,3/15/2019
Charles A. Wilson,Services,38.28,3/15/2019
Charles A. Wilson,Services,64.96,4/11/2019
Charles A. Wilson,Services,237.8,4/11/2019
Charles A. Wilson,Services,76.56,4/11/2019
Charles A. Wilson,Services,148.48,5/10/2019
Charles A. Wilson,Services,25.52,5/10/2019
Charles A. Wilson,Services,148.48,6/21/2019
Charles A. Wilson,Services,12.76,6/21/2019
Charles A. Wilson,Services,125.28,7/11/2019
Charles A. Wilson,Services,185.6,7/11/2019
Charles A. Wilson,Services,25.52,7/11/2019
Charles A. Wilson,Services,37.12,8/12/2019
Charles A. Wilson,Services,74.24,9/12/2019
Charles A. Wilson,Services,37.12,11/18/2019
Charles A. Wilson,Services,74.24,12/11/2019
Charles J. Harrison,Services,9,11/7/2019
Charles R. Cravatta,Services,169,6/20/2019
Charles R. Cravatta,Services,185.6,8/8/2019
Charles R. Lough Jr.,Services,12.76,2/11/2019
Chas A Arce,Services,78.48,1/9/2019
Chas A Arce,Services,11.99,1/9/2019
Chas A Arce,Services,37.12,3/6/2019
Chas A Arce,Services,12.76,3/6/2019
Chas A Arce,Services,75.4,3/18/2019
Chas A Arce,Services,12.76,3/18/2019
Chas A Arce,Services,62.64,4/15/2019
Chas A Arce,Services,47.56,4/15/2019
Chas A Arce,Services,37.12,6/7/2019
Chas A Arce,Services,109.04,6/24/2019
Chas A Arce,Services,47.56,7/9/2019
Chas A Arce,Services,46.4,7/22/2019
Chas A Arce,Services,37.12,7/22/2019
Chas A Arce,Services,37.12,8/9/2019
Chas A Arce,Services,149.64,8/29/2019
Chas A Arce,Services,92.8,11/1/2019
Chas A Arce,Services,37.12,11/1/2019
Chas A Arce,Services,92.8,12/11/2019
Chas A Arce,Services,74.24,12/11/2019
Chas A Arce,Services,47.56,12/11/2019
Chas A Arce,Services,62.64,12/13/2019
"Checkfluid, Inc",Materials,2587.15,8/1/2019
"Checkfluid, Inc",Services,25.82,8/1/2019
"Checkfluid, Inc",Materials,1955,10/15/2019
"Checkfluid, Inc",Materials,4110.5,11/7/2019
"Checkfluid, Inc",Materials,179.88,11/7/2019
"Checkfluid, Inc",Materials,180,12/2/2019
"Checkfluid, Inc",Materials,11.11,12/2/2019
"Checkfluid, Inc",Materials,750,12/3/2019
"Checkfluid, Inc",Materials,30.49,12/3/2019
"Checkfluid, Inc",Materials,9101,12/11/2019
"Checkfluid, Inc",Materials,80.2,12/11/2019
"Checkfluid, Inc",Materials,3012.61,12/18/2019
Chem & Consult  Inc.,Materials,2334.75,1/24/2019
Chem & Consult  Inc.,Materials,1867.8,4/17/2019
Chem & Consult  Inc.,Materials,1867.8,6/4/2019
Chem & Consult  Inc.,Materials,1867.8,10/21/2019
Cheri Franklin,Claims & Insurance,33.82,1/22/2019
Cherie J. Kizer,Services,60,3/21/2019
Cherie J. Kizer,Services,627.16,3/21/2019
Cherie J. Kizer,Services,148,3/21/2019
Cherie J. Kizer,Services,31.78,10/28/2019
Cherie J. Kizer,Services,749.07,10/28/2019
Cherie J. Kizer,Services,148.5,10/28/2019
Cheryl Scott,Claims & Insurance,25000,11/20/2019
Chestnut Ridge Foam Inc.,Materials,7376,3/11/2019
Chicago Area Public Affairs Group,Services,400,1/4/2019
Chicago Bar Assn.,Services,376,4/24/2019
Chicago Car Seal Co.,Materials,599.8,9/10/2019
Chicago Locksmith Service  Inc.,Materials,1327,6/3/2019
Chicago Locksmith Service  Inc.,Services,8368.5,6/3/2019
Chicago Locksmith Service  Inc.,Materials,181.6,10/1/2019
Chicago Locksmith Service  Inc.,Services,300,10/1/2019
Chicago Metal Maintenance  Inc.,Services,610,1/2/2019
Chicago Metal Maintenance  Inc.,Services,610,1/23/2019
Chicago Metal Maintenance  Inc.,Services,610,3/6/2019
Chicago Metal Maintenance  Inc.,Services,610,3/29/2019
Chicago Metal Maintenance  Inc.,Services,610,5/8/2019
Chicago Metal Maintenance  Inc.,Services,610,5/23/2019
Chicago Metal Maintenance  Inc.,Services,610,6/24/2019
Chicago Metal Maintenance  Inc.,Services,610,7/22/2019
Chicago Metal Maintenance  Inc.,Services,610,8/26/2019
Chicago Metal Maintenance  Inc.,Services,610,9/23/2019
Chicago Metal Maintenance  Inc.,Services,610,10/21/2019
Chicago Metal Maintenance  Inc.,Services,610,12/9/2019
Chicago Metal Maintenance  Inc.,Services,610,12/11/2019
Chicago Minority Supplier Devel. Council  Inc.,Services,2275,4/11/2019
Chicago Parts & Sound  Llc. Dba Police Department Systems,Services,97,1/3/2019
Chicago Parts & Sound  Llc. Dba Police Department Systems,Services,369.75,2/20/2019
Chicago Parts & Sound  Llc. Dba Police Department Systems,Services,331.75,3/22/2019
Chicago Parts & Sound  Llc. Dba Police Department Systems,Services,48.5,5/9/2019
Chicago Parts & Sound  Llc. Dba Police Department Systems,Services,137.75,5/16/2019
Chicago Parts & Sound  Llc. Dba Police Department Systems,Services,792.25,6/27/2019
Chicago Parts & Sound  Llc. Dba Police Department Systems,Services,388,7/16/2019
Chicago Parts & Sound  Llc. Dba Police Department Systems,Services,194,7/18/2019
Chicago Parts & Sound  Llc. Dba Police Department Systems,Services,48.5,7/29/2019
Chicago Parts & Sound  Llc. Dba Police Department Systems,Services,1391.42,7/30/2019
Chicago Parts & Sound  Llc. Dba Police Department Systems,Services,48.5,8/1/2019
Chicago Parts & Sound  Llc. Dba Police Department Systems,Services,2782.84,8/14/2019
Chicago Parts & Sound  Llc. Dba Police Department Systems,Services,48.5,8/16/2019
Chicago Parts & Sound  Llc. Dba Police Department Systems,Services,48.5,8/28/2019
Chicago Police Dept. Records Customer Service Section,Claims & Insurance,5,1/22/2019
Chicago Railroad Supply Inc.,Capital Purchases,5580,1/8/2019
Chicago Railroad Supply Inc.,Materials,3650,1/11/2019
Chicago Railroad Supply Inc.,Materials,1980,1/24/2019
Chicago Railroad Supply Inc.,Materials,678,2/1/2019
Chicago Railroad Supply Inc.,Materials,3420,2/13/2019
Chicago Railroad Supply Inc.,Materials,7725,2/21/2019
Chicago Railroad Supply Inc.,Materials,10225,3/11/2019
Chicago Railroad Supply Inc.,Capital Purchases,28120,4/11/2019
Chicago Railroad Supply Inc.,Materials,5139,4/30/2019
Chicago Railroad Supply Inc.,Materials,25100,6/3/2019
Chicago Railroad Supply Inc.,Materials,20800,10/4/2019
Chicago Railroad Supply Inc.,Materials,7500,10/18/2019
"Chicago Scaffolding, Inc.",Materials,48500,5/1/2019
"Chicago Scaffolding, Inc.",Capital Purchases,12750,8/1/2019
Chicago South Suburban Mass Transit District,Capital Purchases,87258.74,6/7/2019
Chicago Spence Tool & Rubber Co.,Materials,1420.5,10/23/2019
Chicago Sun-Times,Materials,623.2,1/9/2019
Chicago Sun-Times,Materials,2061.5,1/17/2019
Chicago Sun-Times,Services,416,1/22/2019
Chicago Sun-Times,Services,1653,3/11/2019
Chicago Sun-Times,Services,1491.5,4/3/2019
Chicago Tire Inc.,Services,271.47,1/2/2019
Chicago Tire Inc.,Services,405.92,1/7/2019
Chicago Tire Inc.,Services,1360,1/8/2019
Chicago Tire Inc.,Services,709.64,1/11/2019
Chicago Tire Inc.,Services,142.97,1/17/2019
Chicago Tire Inc.,Services,2106.34,1/29/2019
Chicago Tire Inc.,Services,60,2/6/2019
Chicago Tire Inc.,Services,122.36,2/6/2019
Chicago Tire Inc.,Services,85,2/8/2019
Chicago Tire Inc.,Services,145,2/15/2019
Chicago Tire Inc.,Services,3062.01,2/15/2019
Chicago Tire Inc.,Services,768.27,2/20/2019
Chicago Tire Inc.,Services,2653.1,2/22/2019
Chicago Tire Inc.,Services,1945.49,3/6/2019
Chicago Tire Inc.,Services,7130.38,3/11/2019
Chicago Tire Inc.,Services,211.26,3/13/2019
Chicago Tire Inc.,Services,1616.65,3/14/2019
Chicago Tire Inc.,Materials,1650,3/19/2019
Chicago Tire Inc.,Services,11662,3/19/2019
Chicago Tire Inc.,Services,1795.89,3/22/2019
Chicago Tire Inc.,Services,331.44,3/25/2019
Chicago Tire Inc.,Services,1715.88,3/29/2019
Chicago Tire Inc.,Services,481.4,4/3/2019
Chicago Tire Inc.,Services,485.42,4/4/2019
Chicago Tire Inc.,Services,722.33,4/5/2019
Chicago Tire Inc.,Services,260.7,4/23/2019
Chicago Tire Inc.,Services,215.11,4/23/2019
Chicago Tire Inc.,Services,199.83,5/1/2019
Chicago Tire Inc.,Services,388.2,5/7/2019
Chicago Tire Inc.,Services,125.96,5/10/2019
Chicago Tire Inc.,Services,3475.71,5/10/2019
Chicago Tire Inc.,Services,226.82,5/20/2019
Chicago Tire Inc.,Services,930.03,5/23/2019
Chicago Tire Inc.,Services,168.35,5/28/2019
Chicago Tire Inc.,Services,1574.77,6/3/2019
Chicago Tire Inc.,Services,60,6/7/2019
Chicago Tire Inc.,Services,1266.78,6/13/2019
Chicago Tire Inc.,Services,1602.13,6/17/2019
Chicago Tire Inc.,Services,2279.48,6/19/2019
Chicago Tire Inc.,Services,658.48,6/24/2019
Chicago Tire Inc.,Services,1023.52,6/25/2019
Chicago Tire Inc.,Services,966.36,6/27/2019
Chicago Tire Inc.,Services,540.44,7/1/2019
Chicago Tire Inc.,Services,273.6,7/3/2019
Chicago Tire Inc.,Services,2267.37,7/10/2019
Chicago Tire Inc.,Services,1799.18,7/16/2019
Chicago Tire Inc.,Services,20,7/17/2019
Chicago Tire Inc.,Services,588.82,7/19/2019
Chicago Tire Inc.,Services,178.82,7/23/2019
Chicago Tire Inc.,Services,36,7/30/2019
Chicago Tire Inc.,Services,250.97,7/31/2019
Chicago Tire Inc.,Services,1343.87,8/1/2019
Chicago Tire Inc.,Services,1736.61,8/6/2019
Chicago Tire Inc.,Services,211.83,8/16/2019
Chicago Tire Inc.,Services,267.89,8/20/2019
Chicago Tire Inc.,Services,12,8/28/2019
Chicago Tire Inc.,Services,4861.85,8/28/2019
Chicago Tire Inc.,Services,407.67,8/29/2019
Chicago Tire Inc.,Services,562.94,9/3/2019
Chicago Tire Inc.,Services,708.95,9/10/2019
Chicago Tire Inc.,Services,4430.2,9/17/2019
Chicago Tire Inc.,Services,754.9,9/25/2019
Chicago Tire Inc.,Services,789.48,10/9/2019
Chicago Tire Inc.,Services,798.92,10/15/2019
Chicago Tire Inc.,Services,518.85,10/28/2019
Chicago Tire Inc.,Services,128.48,11/4/2019
Chicago Tire Inc.,Services,1816.19,11/4/2019
Chicago Tire Inc.,Services,6192.12,11/12/2019
Chicago Tire Inc.,Services,2925.44,11/18/2019
Chicago Tire Inc.,Services,2399.86,11/19/2019
Chicago Transit Authority,Services,90554.75,1/24/2019
Chicago Transit Authority,Services,96164.75,2/22/2019
Chicago Transit Authority,Services,95183,3/25/2019
Chicago Transit Authority,Services,95276.5,4/29/2019
Chicago Transit Authority,Services,1397,5/15/2019
Chicago Transit Authority,Services,58563,5/17/2019
Chicago Transit Authority,Services,96258.25,5/28/2019
Chicago Transit Authority,Services,92798.75,6/26/2019
Chicago Transit Authority,Services,90040.5,7/25/2019
Chicago Transit Authority,Services,87048.5,8/28/2019
Chicago Transit Authority,Services,87703,9/27/2019
Chicago Transit Authority,Services,85926.5,10/24/2019
Chicago Transit Authority,Services,87375.75,11/22/2019
Chicago Transit Authority,Services,3933.32,12/20/2019
Chicago Transit Authority,Services,87048.5,12/23/2019
Chicago Tribune,Services,351,3/27/2019
Chicago Tribune,Services,353.54,10/24/2019
Chicago Uniform Co.,Services,7194.21,1/9/2019
Chicago Uniform Co.,Services,1516.99,2/4/2019
Chicago Uniform Co.,Services,25,2/13/2019
Chicago Uniform Co.,Services,1374.5,5/20/2019
Chicago Uniform Co.,Services,1354.5,5/21/2019
Chicago Uniform Co.,Services,1886.75,5/22/2019
Chicago Uniform Co.,Services,687.25,8/20/2019
Chicago United Industries  Ltd.,Materials,2851.36,1/4/2019
Chicago United Industries  Ltd.,Materials,262,5/1/2019
Chicago United Industries  Ltd.,Materials,145,6/3/2019
Chicago United Industries  Ltd.,Materials,1297.15,8/1/2019
Chicago United Industries  Ltd.,Materials,215,8/1/2019
Chicago United Industries  Ltd.,Materials,528,8/2/2019
Chicago United Industries  Ltd.,Materials,538,8/2/2019
Chicago United Industries  Ltd.,Materials,549,8/20/2019
Chicago United Industries  Ltd.,Materials,215,9/3/2019
Chicago United Industries  Ltd.,Materials,471.45,10/7/2019
Chicago United Industries  Ltd.,Materials,963.7,10/8/2019
Chicago United Industries  Ltd.,Materials,279,10/11/2019
Chicago United Industries  Ltd.,Materials,769,10/11/2019
Chicago United Industries  Ltd.,Services,10,10/11/2019
Chicago United Industries  Ltd.,Materials,779,10/15/2019
Chicago United Industries  Ltd.,Materials,815.3,10/23/2019
Chicago United Industries  Ltd.,Materials,528,11/1/2019
Chicago United Industries  Ltd.,Materials,2319.4,11/12/2019
Chicago United Industries  Ltd.,Services,399,12/5/2019
Chicago United Industries  Ltd.,Materials,769,12/9/2019
Chicagoland Equipment Services,Services,4076.88,3/18/2019
Chicagoland Equipment Services,Services,1920.04,3/25/2019
Chicagoland Equipment Services,Services,529.24,4/3/2019
Chicagoland Equipment Services,Services,6337.07,4/11/2019
Chicagoland Equipment Services,Services,7057.25,4/23/2019
Chicagoland Equipment Services,Services,191.32,4/24/2019
Chicagoland Equipment Services,Services,200.95,5/1/2019
Chicagoland Equipment Services,Services,4129.79,6/27/2019
Chicagoland Equipment Services,Rental Expense,4750,6/27/2019
Chicagoland Equipment Services,Services,4538.62,7/16/2019
Chicagoland Equipment Services,Services,13765.67,8/2/2019
Chicagoland Equipment Services,Services,1502.65,8/28/2019
Chicagoland Equipment Services,Services,1434.62,9/9/2019
Chicagoland Equipment Services,Services,6780.49,9/25/2019
Chicagoland Equipment Services,Services,4186.82,11/4/2019
Chicagoland Equipment Services,Services,2374.3,12/13/2019
Chicagoland Paving Contractors Inc.,Capital Purchases,37272.6,2/14/2019
Chicagoland Paving Contractors Inc.,Capital Purchases,20756.4,3/1/2019
Chicagoland Paving Contractors Inc.,Capital Purchases,128892.06,4/10/2019
Chicagoland Paving Contractors Inc.,Capital Purchases,0.38,4/10/2019
Chicagoland Paving Contractors Inc.,Capital Purchases,25647.3,6/5/2019
Chicagoland Paving Contractors Inc.,Services,15466.15,6/17/2019
Chicagoland Paving Contractors Inc.,Capital Purchases,149596.66,7/1/2019
Chicagoland Paving Contractors Inc.,Capital Purchases,26526.15,7/1/2019
Chicagoland Paving Contractors Inc.,Capital Purchases,21472.5,8/19/2019
Chicagoland Paving Contractors Inc.,Capital Purchases,391736.33,9/3/2019
Chicagoland Paving Contractors Inc.,Services,35998.38,9/3/2019
Chicagoland Paving Contractors Inc.,Capital Purchases,7121.1,9/12/2019
Chicagoland Paving Contractors Inc.,Capital Purchases,64413.57,9/12/2019
Chicagoland Paving Contractors Inc.,Capital Purchases,101825.94,10/1/2019
Chicagoland Paving Contractors Inc.,Materials,4794.36,10/1/2019
Chicagoland Paving Contractors Inc.,Capital Purchases,22168.2,10/10/2019
Chicagoland Paving Contractors Inc.,Capital Purchases,44964.75,10/11/2019
Chicagoland Paving Contractors Inc.,Capital Purchases,54437.67,11/1/2019
Chicagoland Paving Contractors Inc.,Capital Purchases,3756.42,11/1/2019
Chicagoland Paving Contractors Inc.,Capital Purchases,233241.5,11/14/2019
Chicagoland Paving Contractors Inc.,Capital Purchases,19315.8,11/21/2019
Chicagoland Paving Contractors Inc.,Capital Purchases,36642.48,12/2/2019
Chicagoland Paving Contractors Inc.,Capital Purchases,91350.51,12/3/2019
Chicagoland Paving Contractors Inc.,Capital Purchases,11358.9,12/10/2019
Chicagoland Truck Parts LLC,Materials,1985.93,5/14/2019
Chicagoland Truck Parts LLC,Materials,165,5/16/2019
Chicagoland Truck Parts LLC,Materials,19.66,5/31/2019
Chicagoland Truck Parts LLC,Materials,246.96,6/4/2019
Chicagoland Truck Parts LLC,Materials,315.31,7/16/2019
Chicagoland Truck Parts LLC,Materials,188.14,7/29/2019
Chicagoland Truck Parts LLC,Materials,64.8,8/1/2019
Chicagoland Truck Parts LLC,Materials,1252.74,8/7/2019
Chicagoland Truck Parts LLC,Materials,202.5,8/9/2019
Chicagoland Truck Parts LLC,Materials,1728.5,8/15/2019
Chicagoland Truck Parts LLC,Materials,527.14,8/22/2019
Chicagoland Truck Parts LLC,Materials,189.9,8/26/2019
Chicagoland Truck Parts LLC,Materials,1947.75,8/28/2019
Chicagoland Truck Parts LLC,Materials,225,9/3/2019
Chicagoland Truck Parts LLC,Materials,276.48,9/12/2019
Chicagoland Truck Parts LLC,Materials,27.9,9/16/2019
Chicagoland Truck Parts LLC,Materials,150,9/18/2019
Chicagoland Truck Parts LLC,Materials,164.5,9/20/2019
Chicagoland Truck Parts LLC,Materials,141,9/26/2019
Chicagoland Truck Parts LLC,Materials,1300,10/3/2019
Chicagoland Truck Parts LLC,Materials,397.2,10/11/2019
Chicagoland Truck Parts LLC,Materials,195.33,10/23/2019
Chicagoland Truck Parts LLC,Materials,522,10/28/2019
Chicagoland Truck Parts LLC,Materials,302.49,11/1/2019
Chicagoland Truck Parts LLC,Materials,104,11/12/2019
Chicagoland Truck Parts LLC,Materials,44.25,11/22/2019
Chicagoland Truck Parts LLC,Materials,369.54,12/3/2019
Chicagoland Truck Parts LLC,Materials,29.9,12/11/2019
Chicagoland Truck Parts LLC,Materials,147.5,12/16/2019
Chicagoland Truck Parts LLC,Materials,635.4,12/23/2019
Christian Maxwell Ramos,Services,25.93,4/26/2019
Christian Maxwell Ramos,Services,18.41,4/26/2019
Christian Maxwell Ramos,Services,569.51,4/26/2019
Christian Maxwell Ramos,Services,520.96,4/26/2019
Christian Maxwell Ramos,Services,252,4/26/2019
Christian Maxwell Ramos,Services,60,4/26/2019
Christian Maxwell Ramos,Services,66.12,12/4/2019
Christian Velazquez,Services,577.92,10/1/2019
Christian Velazquez,Services,247.5,10/1/2019
Christopher Blanford,Services,82.12,9/12/2019
Christopher Blanford,Services,160,9/12/2019
Christopher Blanford,Services,439.2,9/12/2019
Christopher Blanford,Services,228,9/12/2019
Christopher Blanford,Services,675.92,9/12/2019
Christopher Chambers,Services,69.6,3/22/2019
Christopher Chambers,Services,22.04,3/22/2019
Christopher Krakar,Services,118,1/30/2019
Christopher Krakar,Services,1172,1/30/2019
Christopher Krakar,Services,297,1/30/2019
Christopher Krakar,Services,225.4,1/30/2019
Christopher Krakar,Services,28.42,10/3/2019
Christopher Krakar,Services,10,10/3/2019
Christopher Krakar,Services,337.18,10/3/2019
Christopher Krakar,Services,266,10/3/2019
Christopher Krakar,Services,30,10/3/2019
Christopher Krakar,Services,68.49,10/16/2019
Christopher L. Perdue,Services,34.8,8/8/2019
Christopher S Jackson,Services,23.2,5/10/2019
Christopher S Jackson,Services,35,5/10/2019
Christopher S Jackson,Services,49.88,6/13/2019
Christopher S Jackson,Services,12,6/13/2019
Christopher S Jackson,Services,33.64,9/23/2019
Christopher S Jackson,Services,105,9/23/2019
Christopher S Jackson,Services,33.8,9/23/2019
Christopher S Jackson,Services,2285.11,9/23/2019
Christopher S Jackson,Services,494,9/23/2019
Christopher S Jackson,Services,34.92,11/26/2019
Christopher S Jackson,Services,105,11/26/2019
Christopher S Jackson,Services,161.85,11/26/2019
Christopher S Jackson,Services,1217.16,11/26/2019
Christopher S Jackson,Services,429,11/26/2019
Christy Webber & Co.,Services,3791,1/2/2019
Christy Webber & Co.,Services,5987,1/2/2019
Christy Webber & Co.,Services,7582,6/24/2019
Christy Webber & Co.,Services,11974,6/24/2019
Christy Webber & Co.,Services,3791,7/16/2019
Christy Webber & Co.,Services,5987,7/16/2019
Christy Webber & Co.,Services,3791,8/1/2019
Christy Webber & Co.,Services,5987,8/1/2019
Christy Webber & Co.,Services,3791,9/9/2019
Christy Webber & Co.,Services,5987,9/9/2019
Christy Webber & Co.,Services,6026,10/7/2019
Christy Webber & Co.,Services,3752,10/7/2019
Christy Webber & Co.,Services,2868,11/6/2019
Christy Webber & Co.,Services,5987,11/6/2019
Christy Webber & Co.,Services,923,11/6/2019
Christy Webber & Co.,Services,3791,12/12/2019
Christy Webber & Co.,Services,5987,12/12/2019
Church & Fisher LLC,Claims & Insurance,111485.56,11/12/2019
Church & Fisher LLC,Claims & Insurance,29282.47,11/12/2019
Ciera Stipe,Services,111.36,5/28/2019
Ciera Stipe,Services,426.88,8/30/2019
Ciera Stipe,Services,22.04,8/30/2019
Ciera Stipe,Services,320.16,9/11/2019
Cindi Mazzoni,Claims & Insurance,28.62,6/3/2019
"CIOX Health, LLC",Claims & Insurance,109.72,1/17/2019
"CIOX Health, LLC",Claims & Insurance,109.37,3/12/2019
"CIOX Health, LLC",Claims & Insurance,81.86,4/1/2019
"CIOX Health, LLC",Claims & Insurance,61.53,4/12/2019
"CIOX Health, LLC",Claims & Insurance,61.53,5/1/2019
"CIOX Health, LLC",Claims & Insurance,95.11,5/24/2019
"CIOX Health, LLC",Claims & Insurance,28.44,6/24/2019
"CIOX Health, LLC",Claims & Insurance,63.63,7/12/2019
"CIOX Health, LLC",Claims & Insurance,35.09,7/16/2019
"CIOX Health, LLC",Claims & Insurance,81.14,7/19/2019
"CIOX Health, LLC",Claims & Insurance,30.81,7/22/2019
"CIOX Health, LLC",Claims & Insurance,92.53,8/7/2019
"CIOX Health, LLC",Claims & Insurance,3.8,9/17/2019
"CIOX Health, LLC",Claims & Insurance,129.1,11/20/2019
Circuit Court Clerk Of Kankakee,Services,598,2/15/2019
Circuit Court Clerk Of Kankakee,Services,598,2/28/2019
Circuit Court Clerk Of Kankakee,Services,598,3/15/2019
Circuit Court Clerk Of Kankakee,Services,598,3/31/2019
Circuit Court Clerk Of Kankakee,Services,598,4/15/2019
Circuit Court Clerk Of Kankakee,Services,598,4/30/2019
Circuit Court Clerk Of Kankakee,Services,598,5/15/2019
Circuit Court Clerk Of Kankakee,Services,598,5/31/2019
Circuit Court Clerk Of Kankakee,Services,598,6/15/2019
Circuit Court Clerk Of Kankakee,Services,598,6/30/2019
Circuit Court Clerk Of Kankakee,Services,598,7/15/2019
Circuit Court Clerk Of Kankakee,Services,598,7/31/2019
City Club Of Chicago,Services,50,4/11/2019
City of Aurora,Services,50000,12/2/2019
City Of Blue Island,Utilities,148.35,1/4/2019
City Of Blue Island,Utilities,613.18,1/4/2019
City Of Blue Island,Utilities,19.78,1/4/2019
City Of Blue Island,Utilities,247.25,1/4/2019
City Of Blue Island,Utilities,148.35,1/4/2019
City Of Blue Island,Utilities,659.25,1/4/2019
City Of Blue Island,Utilities,19.78,1/4/2019
City Of Blue Island,Utilities,148.35,2/7/2019
City Of Blue Island,Utilities,593.4,2/7/2019
City Of Blue Island,Utilities,19.78,2/7/2019
City Of Blue Island,Utilities,19.78,2/7/2019
City Of Blue Island,Utilities,148.35,2/7/2019
City Of Blue Island,Utilities,659.25,2/7/2019
City Of Blue Island,Utilities,19.78,2/7/2019
City Of Blue Island,Utilities,148.35,3/6/2019
City Of Blue Island,Utilities,19.78,3/6/2019
City Of Blue Island,Utilities,19.78,3/6/2019
City Of Blue Island,Utilities,19.78,3/6/2019
City Of Blue Island,Services,316.48,3/15/2019
City Of Blue Island,Utilities,543.95,3/15/2019
City Of Blue Island,Utilities,148.35,3/15/2019
City Of Blue Island,Utilities,412,3/15/2019
City Of Blue Island,Utilities,148.35,4/4/2019
City Of Blue Island,Utilities,454.94,4/4/2019
City Of Blue Island,Utilities,19.78,4/4/2019
City Of Blue Island,Utilities,19.78,4/4/2019
City Of Blue Island,Utilities,163.19,4/4/2019
City Of Blue Island,Utilities,732.1,4/4/2019
City Of Blue Island,Utilities,19.78,4/4/2019
City Of Blue Island,Utilities,148.35,5/13/2019
City Of Blue Island,Utilities,524.17,5/13/2019
City Of Blue Island,Utilities,19.78,5/13/2019
City Of Blue Island,Utilities,19.78,5/13/2019
City Of Blue Island,Utilities,148.35,5/13/2019
City Of Blue Island,Utilities,728.48,5/13/2019
City Of Blue Island,Utilities,19.78,5/13/2019
City Of Blue Island,Utilities,148.35,6/5/2019
City Of Blue Island,Utilities,514.28,6/5/2019
City Of Blue Island,Utilities,19.78,6/5/2019
City Of Blue Island,Utilities,19.78,6/5/2019
City Of Blue Island,Utilities,148.35,6/5/2019
City Of Blue Island,Utilities,728.48,6/5/2019
City Of Blue Island,Utilities,19.78,6/5/2019
City Of Blue Island,Utilities,148.35,7/9/2019
City Of Blue Island,Utilities,662.63,7/9/2019
City Of Blue Island,Utilities,19.78,7/9/2019
City Of Blue Island,Utilities,19.78,7/9/2019
City Of Blue Island,Utilities,148.35,7/9/2019
City Of Blue Island,Utilities,787.82,7/9/2019
City Of Blue Island,Utilities,19.78,7/9/2019
City Of Blue Island,Utilities,151.8,8/9/2019
City Of Blue Island,Utilities,495.88,8/9/2019
City Of Blue Island,Utilities,20.24,8/9/2019
City Of Blue Island,Utilities,20.24,8/9/2019
City Of Blue Island,Utilities,151.8,8/9/2019
City Of Blue Island,Utilities,2932.23,8/9/2019
City Of Blue Island,Utilities,20.24,8/9/2019
City Of Blue Island,Utilities,151.8,9/12/2019
City Of Blue Island,Utilities,354.2,9/12/2019
City Of Blue Island,Utilities,20.24,9/12/2019
City Of Blue Island,Utilities,20.24,9/12/2019
City Of Blue Island,Utilities,151.8,9/12/2019
City Of Blue Island,Utilities,573.3,9/12/2019
City Of Blue Island,Utilities,20.24,9/12/2019
City Of Blue Island,Utilities,151.8,10/9/2019
City Of Blue Island,Utilities,20.24,10/9/2019
City Of Blue Island,Utilities,20.24,10/9/2019
City Of Blue Island,Utilities,151.8,10/9/2019
City Of Blue Island,Utilities,573.3,10/9/2019
City Of Blue Island,Utilities,20.24,10/9/2019
City Of Blue Island,Utilities,394.68,10/17/2019
City Of Blue Island,Utilities,151.8,11/13/2019
City Of Blue Island,Utilities,344.08,11/13/2019
City Of Blue Island,Utilities,20.24,11/13/2019
City Of Blue Island,Utilities,20.24,11/13/2019
City Of Blue Island,Utilities,151.8,11/13/2019
City Of Blue Island,Utilities,573.3,11/13/2019
City Of Blue Island,Utilities,20.24,11/13/2019
City Of Blue Island,Utilities,151.8,12/12/2019
City Of Blue Island,Utilities,455.4,12/12/2019
City Of Blue Island,Utilities,20.24,12/12/2019
City Of Blue Island,Utilities,20.24,12/12/2019
City Of Blue Island,Utilities,151.8,12/12/2019
City Of Blue Island,Utilities,573.3,12/12/2019
City Of Blue Island,Utilities,20.24,12/12/2019
City of Chicago,Capital Purchases,143900,2/14/2019
City of Chicago,Capital Purchases,1446.12,4/22/2019
City of Chicago,Capital Purchases,6889.94,4/22/2019
City of Chicago,Claims & Insurance,15000,5/1/2019
City of Chicago,Capital Purchases,3000,7/23/2019
City Of Crystal Lake,Services,5000,3/28/2019
City Of Elgin,Utilities,183.63,1/4/2019
City Of Elgin,Utilities,40.25,1/10/2019
City Of Elgin,Utilities,710.36,1/10/2019
City Of Elgin,Utilities,225.97,2/7/2019
City Of Elgin,Utilities,41.22,2/11/2019
City Of Elgin,Utilities,731.44,2/11/2019
City Of Elgin,Utilities,194.65,2/27/2019
City Of Elgin,Utilities,58.68,3/11/2019
City Of Elgin,Utilities,1171.14,3/11/2019
City Of Elgin,Utilities,187.94,3/29/2019
City Of Elgin,Utilities,57,4/10/2019
City Of Elgin,Utilities,870.4,4/10/2019
City Of Elgin,Utilities,221.5,5/6/2019
City Of Elgin,Utilities,65.38,5/13/2019
City Of Elgin,Utilities,891.53,5/13/2019
City Of Elgin,Utilities,209.23,5/28/2019
City Of Elgin,Utilities,49.29,6/10/2019
City Of Elgin,Utilities,736.61,6/10/2019
City Of Elgin,Utilities,194.65,6/27/2019
City Of Elgin,Utilities,66.72,7/11/2019
City Of Elgin,Utilities,894.45,7/11/2019
City Of Elgin,Utilities,214.78,8/1/2019
City Of Elgin,Utilities,58.54,8/9/2019
City Of Elgin,Utilities,763.07,8/9/2019
City Of Elgin,Utilities,201.36,8/28/2019
City Of Elgin,Utilities,60.3,9/12/2019
City Of Elgin,Utilities,788.77,9/12/2019
City Of Elgin,Utilities,223.18,10/1/2019
City Of Elgin,Utilities,59.63,10/9/2019
City Of Elgin,Utilities,841.91,10/9/2019
City Of Elgin,Utilities,201.36,10/29/2019
City Of Elgin,Utilities,54.18,11/13/2019
City Of Elgin,Utilities,774.8,11/13/2019
City Of Elgin,Utilities,187.94,12/3/2019
City Of Elgin,Utilities,60.64,12/12/2019
City Of Elgin,Utilities,897.89,12/12/2019
City Of Harvey Water Department,Utilities,33.12,1/10/2019
City Of Harvey Water Department,Utilities,36.53,2/11/2019
City Of Harvey Water Department,Utilities,29.82,3/6/2019
City Of Harvey Water Department,Utilities,33.14,4/9/2019
City Of Harvey Water Department,Utilities,188.27,5/13/2019
City Of Harvey Water Department,Utilities,33.24,6/13/2019
City Of Harvey Water Department,Utilities,36.67,7/11/2019
City Of Harvey Water Department,Utilities,33.44,8/9/2019
City Of Harvey Water Department,Utilities,33.45,9/6/2019
City Of Harvey Water Department,Utilities,36.04,10/7/2019
City Of Harvey Water Department,Utilities,37.65,11/7/2019
City Of Harvey Water Department,Utilities,42.23,12/6/2019
City Of Highland Park,Utilities,27.8,3/13/2019
City Of Highland Park,Utilities,27.8,6/13/2019
City Of Highland Park,Utilities,27.8,9/17/2019
City Of Highland Park,Utilities,27.8,12/12/2019
City Of Joliet,Utilities,7.47,1/17/2019
City Of Joliet,Utilities,101.2,2/19/2019
City Of Joliet,Utilities,92.93,3/18/2019
City Of Joliet,Utilities,184.96,5/20/2019
City Of Joliet,Utilities,92.59,6/20/2019
City Of Joliet,Utilities,28.95,7/19/2019
City Of Joliet,Utilities,18.3,8/21/2019
City Of Joliet,Utilities,18.7,9/19/2019
City Of Joliet,Utilities,20.02,10/18/2019
City Of Joliet,Utilities,18.36,11/20/2019
City Of Joliet,Utilities,18.66,12/27/2019
City Of Oak Forest Ill.,Utilities,57.2,1/15/2019
City Of Oak Forest Ill.,Utilities,57.2,4/17/2019
City Of Oak Forest Ill.,Utilities,58.12,7/19/2019
City Of Oak Forest Ill.,Utilities,69.35,10/17/2019
City of West Chicago,Services,10000,4/10/2019
City Of Wheaton,Services,38307.18,12/16/2019
Claeven  Ltd.,Services,437.5,1/4/2019
Claeven  Ltd.,Services,62.5,1/11/2019
Claeven  Ltd.,Services,1162.5,1/11/2019
Claeven  Ltd.,Services,937.5,1/15/2019
Claeven  Ltd.,Services,750,1/15/2019
Claeven  Ltd.,Services,687.5,1/15/2019
Claeven  Ltd.,Services,437.5,1/25/2019
Claeven  Ltd.,Services,312.5,1/31/2019
Claeven  Ltd.,Services,437.5,2/1/2019
Claeven  Ltd.,Services,1250,2/1/2019
Claeven  Ltd.,Services,1687.5,2/11/2019
Claeven  Ltd.,Services,437.5,2/15/2019
Claeven  Ltd.,Services,1125,2/19/2019
Claeven  Ltd.,Services,2187.5,2/19/2019
Claeven  Ltd.,Services,281.25,2/19/2019
Claeven  Ltd.,Services,437.5,2/21/2019
Claeven  Ltd.,Services,687.5,2/21/2019
Claeven  Ltd.,Services,562.5,2/25/2019
Claeven  Ltd.,Services,937.5,3/5/2019
Claeven  Ltd.,Services,437.5,3/5/2019
Claeven  Ltd.,Services,1250,3/5/2019
Claeven  Ltd.,Services,875,3/11/2019
Claeven  Ltd.,Services,2037.5,3/11/2019
Claeven  Ltd.,Services,687.5,3/11/2019
Claeven  Ltd.,Services,812.5,3/15/2019
Claeven  Ltd.,Services,875,3/15/2019
Claeven  Ltd.,Services,943.75,3/18/2019
Claeven  Ltd.,Services,937.5,3/18/2019
Claeven  Ltd.,Services,437.5,3/20/2019
Claeven  Ltd.,Services,437.5,3/25/2019
Claeven  Ltd.,Services,812.5,3/27/2019
Claeven  Ltd.,Services,437.5,4/11/2019
Claeven  Ltd.,Services,1125,4/11/2019
Claeven  Ltd.,Services,1437.5,4/11/2019
Claeven  Ltd.,Services,437.5,4/15/2019
Claeven  Ltd.,Services,687.5,4/18/2019
Claeven  Ltd.,Services,631.25,4/18/2019
Claeven  Ltd.,Services,750,4/22/2019
Claeven  Ltd.,Services,312.5,4/22/2019
Claeven  Ltd.,Services,750,4/22/2019
Claeven  Ltd.,Services,437.5,4/23/2019
Claeven  Ltd.,Services,437.5,4/23/2019
Claeven  Ltd.,Services,1937.5,4/24/2019
Claeven  Ltd.,Services,312.5,4/25/2019
Claeven  Ltd.,Services,687.5,4/26/2019
Claeven  Ltd.,Services,1375,4/29/2019
Claeven  Ltd.,Services,812.5,4/29/2019
Claeven  Ltd.,Services,562.5,4/30/2019
Claeven  Ltd.,Services,437.5,5/1/2019
Claeven  Ltd.,Services,1250,5/1/2019
Claeven  Ltd.,Services,281.25,5/1/2019
Claeven  Ltd.,Services,1250,5/1/2019
Claeven  Ltd.,Services,437.5,5/6/2019
Claeven  Ltd.,Services,437.5,5/9/2019
Claeven  Ltd.,Services,875,5/10/2019
Claeven  Ltd.,Services,437.5,5/14/2019
Claeven  Ltd.,Services,350,5/14/2019
Claeven  Ltd.,Services,87.5,5/14/2019
Claeven  Ltd.,Services,662.5,5/14/2019
Claeven  Ltd.,Services,437.5,5/16/2019
Claeven  Ltd.,Services,312.5,5/17/2019
Claeven  Ltd.,Services,437.5,5/20/2019
Claeven  Ltd.,Services,750,5/28/2019
Claeven  Ltd.,Services,687.5,5/29/2019
Claeven  Ltd.,Services,1162.5,5/30/2019
Claeven  Ltd.,Services,437.5,5/31/2019
Claeven  Ltd.,Services,437.5,6/3/2019
Claeven  Ltd.,Services,312.5,6/5/2019
Claeven  Ltd.,Services,437.5,6/5/2019
Claeven  Ltd.,Services,312.5,6/6/2019
Claeven  Ltd.,Services,437.5,6/11/2019
Claeven  Ltd.,Services,687.5,6/11/2019
Claeven  Ltd.,Services,743.75,6/13/2019
Claeven  Ltd.,Services,937.5,6/13/2019
Claeven  Ltd.,Services,437.5,6/17/2019
Claeven  Ltd.,Services,437.5,6/17/2019
Claeven  Ltd.,Services,687.5,6/17/2019
Claeven  Ltd.,Services,812.5,6/17/2019
Claeven  Ltd.,Services,687.5,6/21/2019
Claeven  Ltd.,Services,437.5,6/21/2019
Claeven  Ltd.,Services,312.5,6/21/2019
Claeven  Ltd.,Services,687.5,6/24/2019
Claeven  Ltd.,Services,437.5,6/27/2019
Claeven  Ltd.,Services,312.5,7/1/2019
Claeven  Ltd.,Services,750,7/2/2019
Claeven  Ltd.,Services,437.5,7/8/2019
Claeven  Ltd.,Services,687.5,7/8/2019
Claeven  Ltd.,Services,1343.75,7/8/2019
Claeven  Ltd.,Services,437.5,7/8/2019
Claeven  Ltd.,Services,812.5,7/10/2019
Claeven  Ltd.,Services,437.5,7/16/2019
Claeven  Ltd.,Services,812.5,7/19/2019
Claeven  Ltd.,Services,437.5,7/19/2019
Claeven  Ltd.,Services,312.5,7/22/2019
Claeven  Ltd.,Services,750,7/25/2019
Claeven  Ltd.,Services,312.5,7/25/2019
Claeven  Ltd.,Services,1000,7/29/2019
Claeven  Ltd.,Services,937.5,7/29/2019
Claeven  Ltd.,Services,312.5,7/29/2019
Claeven  Ltd.,Services,437.5,7/29/2019
Claeven  Ltd.,Services,837.5,8/1/2019
Claeven  Ltd.,Services,437.5,8/2/2019
Claeven  Ltd.,Services,812.5,8/5/2019
Claeven  Ltd.,Services,750,8/8/2019
Claeven  Ltd.,Services,437.5,8/9/2019
Claeven  Ltd.,Services,845,8/12/2019
Claeven  Ltd.,Services,1170,8/12/2019
Claeven  Ltd.,Services,937.5,8/13/2019
Claeven  Ltd.,Services,715,8/14/2019
Claeven  Ltd.,Services,437.5,8/16/2019
Claeven  Ltd.,Services,1495,8/20/2019
Claeven  Ltd.,Services,1560,8/27/2019
Claeven  Ltd.,Services,455,8/29/2019
Claeven  Ltd.,Materials,655,9/9/2019
Claeven  Ltd.,Services,715,9/9/2019
Claeven  Ltd.,Services,455,9/10/2019
Claeven  Ltd.,Materials,655,9/11/2019
Claeven  Ltd.,Services,455,9/13/2019
Claeven  Ltd.,Services,1495,9/18/2019
Claeven  Ltd.,Services,845,9/18/2019
Claeven  Ltd.,Services,455,9/18/2019
Claeven  Ltd.,Services,455,9/18/2019
Claeven  Ltd.,Services,455,9/20/2019
Claeven  Ltd.,Services,845,9/23/2019
Claeven  Ltd.,Services,1300,9/23/2019
Claeven  Ltd.,Services,455,9/23/2019
Claeven  Ltd.,Services,975,10/1/2019
Claeven  Ltd.,Services,325,10/1/2019
Claeven  Ltd.,Materials,455,10/2/2019
Claeven  Ltd.,Services,1040,10/2/2019
Claeven  Ltd.,Services,325,10/3/2019
Claeven  Ltd.,Services,975,10/4/2019
Claeven  Ltd.,Services,2827.5,10/4/2019
Claeven  Ltd.,Services,910,10/4/2019
Claeven  Ltd.,Services,455,10/7/2019
Claeven  Ltd.,Services,845,10/8/2019
Claeven  Ltd.,Services,455,10/11/2019
Claeven  Ltd.,Services,1105,10/11/2019
Claeven  Ltd.,Services,845,10/11/2019
Claeven  Ltd.,Services,1260,10/14/2019
Claeven  Ltd.,Services,455,10/17/2019
Claeven  Ltd.,Services,910,10/18/2019
Claeven  Ltd.,Services,455,10/21/2019
Claeven  Ltd.,Services,455,10/23/2019
Claeven  Ltd.,Services,325,10/23/2019
Claeven  Ltd.,Services,494,10/24/2019
Claeven  Ltd.,Services,455,10/24/2019
Claeven  Ltd.,Services,910,10/24/2019
Claeven  Ltd.,Materials,1105,10/25/2019
Claeven  Ltd.,Services,975,10/28/2019
Claeven  Ltd.,Services,715,11/1/2019
Claeven  Ltd.,Services,325,11/1/2019
Claeven  Ltd.,Services,1170,11/1/2019
Claeven  Ltd.,Services,650,11/6/2019
Claeven  Ltd.,Services,455,11/8/2019
Claeven  Ltd.,Services,910,11/13/2019
Claeven  Ltd.,Services,780,11/18/2019
Claeven  Ltd.,Services,845,11/19/2019
Claeven  Ltd.,Services,1105,12/5/2019
Claeven  Ltd.,Services,715,12/5/2019
Claeven  Ltd.,Services,715,12/9/2019
Claeven  Ltd.,Services,1495,12/12/2019
Claeven  Ltd.,Services,455,12/16/2019
Claeven  Ltd.,Services,234,12/16/2019
Claeven  Ltd.,Services,845,12/16/2019
Claeven  Ltd.,Services,555,12/16/2019
Claeven  Ltd.,Services,715,12/23/2019
Claeven  Ltd.,Services,325,12/23/2019
Claeven  Ltd.,Services,1690,12/23/2019
Claeven  Ltd.,Services,689,12/23/2019
Clarity Partners  Llc,Services,23340.52,2/1/2019
Clarity Partners  Llc,Services,22092.38,2/14/2019
Clarity Partners  Llc,Services,3371.25,2/14/2019
Clarity Partners  Llc,Services,21717.95,3/15/2019
Clarity Partners  Llc,Services,5300,3/15/2019
Clarity Partners  Llc,Services,20580.08,4/17/2019
Clarity Partners  Llc,Services,3060,4/17/2019
Clarity Partners  Llc,Services,1569.85,5/22/2019
Clarity Partners  Llc,Services,6598.75,5/22/2019
Clarity Partners  Llc,Services,1569.85,6/21/2019
Clarity Partners  Llc,Services,8416.25,6/21/2019
Clarity Partners  Llc,Services,1793.85,7/10/2019
Clarity Partners  Llc,Services,4870,7/10/2019
Clarity Partners  Llc,Services,2297.85,8/28/2019
Clarity Partners  Llc,Services,9206.25,8/28/2019
Clarity Partners  Llc,Services,1793.85,9/11/2019
Clarity Partners  Llc,Services,17128.75,9/11/2019
Clarity Partners  Llc,Services,3529.85,10/15/2019
Clarity Partners  Llc,Services,21315,10/15/2019
Clarity Partners  Llc,Services,1569.84,11/12/2019
Clarity Partners  Llc,Services,22861.25,11/12/2019
Clarity Partners  Llc,Services,1737.84,12/18/2019
Clarity Partners  Llc,Services,5031.25,12/18/2019
Clark D. Barkley,Services,101.09,2/26/2019
Clark Filter C/O Unity Railway Supply Co.  Inc.,Materials,1963.68,1/9/2019
Clark Filter C/O Unity Railway Supply Co.  Inc.,Materials,1604.8,2/11/2019
Clark Filter C/O Unity Railway Supply Co.  Inc.,Materials,1079.04,2/13/2019
Clark Filter C/O Unity Railway Supply Co.  Inc.,Materials,4389.84,2/27/2019
Clark Filter C/O Unity Railway Supply Co.  Inc.,Materials,687.54,3/6/2019
Clark Filter C/O Unity Railway Supply Co.  Inc.,Materials,1964.52,3/11/2019
Clark Filter C/O Unity Railway Supply Co.  Inc.,Materials,2607.8,3/22/2019
Clark Filter C/O Unity Railway Supply Co.  Inc.,Materials,418.08,4/4/2019
Clark Filter C/O Unity Railway Supply Co.  Inc.,Materials,6141.38,4/11/2019
Clark Filter C/O Unity Railway Supply Co.  Inc.,Materials,8375.48,4/25/2019
Clark Filter C/O Unity Railway Supply Co.  Inc.,Materials,1375.2,4/29/2019
Clark Filter C/O Unity Railway Supply Co.  Inc.,Materials,1555.62,5/8/2019
Claybourne Miller,Services,209.28,1/14/2019
Claybourne Miller,Services,259.84,1/24/2019
Claybourne Miller,Services,148.48,2/13/2019
Claybourne Miller,Services,148.48,2/25/2019
Claybourne Miller,Services,148.48,3/6/2019
Claybourne Miller,Services,148.48,3/21/2019
Claybourne Miller,Services,185.6,4/11/2019
Claybourne Miller,Services,185.6,4/26/2019
Claybourne Miller,Services,280.72,5/10/2019
Claybourne Miller,Services,291.16,6/7/2019
Claybourne Miller,Services,243.6,6/26/2019
Claybourne Miller,Services,280.72,7/11/2019
Claybourne Miller,Services,280.72,7/18/2019
Claybourne Miller,Services,233.16,7/29/2019
Claybourne Miller,Services,243.6,8/13/2019
Claybourne Miller,Services,243.6,8/22/2019
Claybourne Miller,Services,169.36,9/11/2019
Claybourne Miller,Services,280.72,9/24/2019
Claybourne Miller,Services,317.84,10/11/2019
Claybourne Miller,Services,243.6,10/30/2019
Claybourne Miller,Services,291.16,11/6/2019
Claybourne Miller,Services,243.6,11/26/2019
Claybourne Miller,Services,196.04,12/9/2019
Cle L Shaw,Services,26.16,1/4/2019
Cle Shaw,Services,26.16,1/4/2019
Cleaning Specialist  Inc.,Services,5460,1/2/2019
Cleaning Specialist  Inc.,Services,5507.5,1/9/2019
Cleaning Specialist  Inc.,Capital Purchases,1050,2/1/2019
Cleaning Specialist  Inc.,Services,1553,2/20/2019
Cleaning Specialist  Inc.,Services,1264,3/1/2019
Cleaning Specialist  Inc.,Services,2247,3/6/2019
Cleaning Specialist  Inc.,Services,2151,3/22/2019
Cleaning Specialist  Inc.,Services,11749,3/25/2019
Cleaning Specialist  Inc.,Services,3682,4/4/2019
Cleaning Specialist  Inc.,Capital Purchases,2800,4/12/2019
Cleaning Specialist  Inc.,Services,1272,4/16/2019
Cleaning Specialist  Inc.,Services,3636,5/1/2019
Cleaning Specialist  Inc.,Services,522,5/9/2019
Cleaning Specialist  Inc.,Services,2316,5/17/2019
Cleaning Specialist  Inc.,Services,1777,5/23/2019
Cleaning Specialist  Inc.,Capital Purchases,2100,6/13/2019
Cleaning Specialist  Inc.,Services,8203,7/8/2019
Cleaning Specialist  Inc.,Services,6559,7/26/2019
Cleaning Specialist  Inc.,Services,3183,7/30/2019
Cleaning Specialist  Inc.,Capital Purchases,700,8/12/2019
Cleaning Specialist  Inc.,Services,3462,8/15/2019
Cleaning Specialist  Inc.,Capital Purchases,350,8/16/2019
Cleaning Specialist  Inc.,Capital Purchases,2100,8/26/2019
Cleaning Specialist  Inc.,Services,512,8/26/2019
Cleaning Specialist  Inc.,Capital Purchases,700,9/16/2019
Cleaning Specialist  Inc.,Capital Purchases,2100,10/7/2019
Cleaning Specialist  Inc.,Services,2447,10/8/2019
Cleaning Specialist  Inc.,Services,660,10/9/2019
Cleaning Specialist  Inc.,Services,3950,10/10/2019
Cleaning Specialist  Inc.,Services,2324,10/14/2019
Cleaning Specialist  Inc.,Capital Purchases,350,10/24/2019
Cleaning Specialist  Inc.,Capital Purchases,350,10/24/2019
Cleaning Specialist  Inc.,Capital Purchases,2800,12/10/2019
Clerk of Lake,Services,446.69,5/31/2019
Clerk of Lake,Services,338.47,6/15/2019
Clerk of Lake,Services,372.32,6/30/2019
Clerk of Lake,Services,388.95,7/15/2019
Clerk of Lake,Services,376.96,7/31/2019
Clerk of Lake,Services,382.73,8/15/2019
Clerk of the Circuit Court of Cook County,Claims & Insurance,198.5,9/6/2019
Clerk of the Circuit Court of Cook County,Claims & Insurance,3.5,9/6/2019
Clerk of the Circuit Court of Cook County,Claims & Insurance,11.5,9/10/2019
Clerk of the Circuit Court of Cook County,Claims & Insurance,10.5,9/10/2019
Clerk of the Circuit Court of Cook County,Claims & Insurance,12.5,9/13/2019
Clerk of the Circuit Court of Cook County,Claims & Insurance,2,9/13/2019
Clerk Of The Circuit Court Of Kane County,Services,850,2/15/2019
Clerk Of The Circuit Court Of Kane County,Services,850,2/28/2019
Clerk Of The Circuit Court Of Kane County,Services,850,3/15/2019
Clerk Of The Circuit Court Of Kane County,Services,850,3/31/2019
Clerk Of The Circuit Court Of Kane County,Services,850,4/15/2019
Clerk Of The Circuit Court Of Kane County,Services,850,4/30/2019
Clerk Of The Circuit Court Of Kane County,Services,850,5/15/2019
Clerk Of The Circuit Court Of Kane County,Services,850,5/31/2019
Clerk Of The Circuit Court Of Kane County,Services,850,6/15/2019
Clerk Of The Circuit Court Of Kane County,Services,850,6/30/2019
Clerk Of The Circuit Court Of Kane County,Services,850,7/15/2019
Clerk Of The Circuit Court Of Kane County,Services,850,7/31/2019
"Clerk, Porter Superior Court",Services,250,10/15/2019
Cleveland Punch & Die,Materials,607.8,12/18/2019
Cleveland Punch & Die,Services,22,12/18/2019
Clever Devices Ltd.,Capital Purchases,151754.52,6/12/2019
Clever Devices Ltd.,Capital Purchases,118989.33,7/31/2019
Clever Devices Ltd.,Capital Purchases,131060.72,11/12/2019
Clever Devices Ltd.,Capital Purchases,519644.26,12/13/2019
"CMI-Promex, Inc.",Capital Purchases,358000,9/17/2019
Code 4 Public Safety Emblems,Services,4025,12/18/2019
"Cogan and Power, P. C.",Claims & Insurance,60000,2/15/2019
"Cogan and Power, P. C.",Claims & Insurance,60000,2/15/2019
"Cogan and Power, P. C.",Claims & Insurance,350000,6/3/2019
"Cogan and Power, P. C.",Claims & Insurance,126584.92,7/3/2019
"Cogan and Power, P. C.",Claims & Insurance,495000,7/16/2019
"Cogan and Power, P. C.",Claims & Insurance,347528.55,8/5/2019
"Cogan and Power, P. C.",Claims & Insurance,352752.19,9/12/2019
"Cogan and Power, P. C.",Claims & Insurance,537500,12/3/2019
Collins Bargione & Vukovich,Claims & Insurance,824.25,7/29/2019
Collins Bargione & Vukovich,Claims & Insurance,103.86,9/3/2019
Collins Bargione & Vukovich,Claims & Insurance,6.85,9/3/2019
Columbia Pipe & Supply,Capital Purchases,52308.7,10/9/2019
Columbia Pipe & Supply,Capital Purchases,0,10/9/2019
Com Ed-Real Estate Dept.  4Th Fl.,Rental Expense,519.96,1/23/2019
Com Ed-Real Estate Dept.  4Th Fl.,Rental Expense,1065.92,1/24/2019
Com Ed-Real Estate Dept.  4Th Fl.,Rental Expense,545.96,3/13/2019
Com Ed-Real Estate Dept.  4Th Fl.,Rental Expense,5985.45,3/22/2019
Com Ed-Real Estate Dept.  4Th Fl.,Rental Expense,545.96,4/11/2019
Com Ed-Real Estate Dept.  4Th Fl.,Rental Expense,1683.55,5/10/2019
Com Ed-Real Estate Dept.  4Th Fl.,Rental Expense,1261.8,5/10/2019
Com Ed-Real Estate Dept.  4Th Fl.,Rental Expense,62.98,5/22/2019
Com Ed-Real Estate Dept.  4Th Fl.,Rental Expense,545.96,5/22/2019
Com Ed-Real Estate Dept.  4Th Fl.,Rental Expense,545.96,7/9/2019
Com Ed-Real Estate Dept.  4Th Fl.,Rental Expense,545.96,8/1/2019
Com Ed-Real Estate Dept.  4Th Fl.,Rental Expense,545.96,9/3/2019
Com Ed-Real Estate Dept.  4Th Fl.,Rental Expense,545.96,10/1/2019
Com Ed-Real Estate Dept.  4Th Fl.,Rental Expense,545.96,11/4/2019
Com Ed-Real Estate Dept.  4Th Fl.,Rental Expense,545.96,11/27/2019
Comcast,Services,4300.82,1/11/2019
Comcast,Services,540,1/11/2019
Comcast,Services,4310.16,2/6/2019
Comcast,Services,1350,2/6/2019
Comcast,Services,4338.5,3/15/2019
Comcast,Services,900,3/15/2019
Comcast,Services,4359.34,4/11/2019
Comcast,Services,1300,4/11/2019
Comcast,Services,4167.83,5/7/2019
Comcast,Services,1300,5/7/2019
Comcast,Services,4726.54,6/6/2019
Comcast,Services,1300,6/6/2019
Comcast,Services,4347.7,7/15/2019
Comcast,Services,1300,7/15/2019
Comcast,Utilities,4350.55,8/7/2019
Comcast,Utilities,1300,8/7/2019
Comcast,Utilities,4350.55,9/13/2019
Comcast,Utilities,1300,9/13/2019
Comcast,Utilities,4352.73,10/4/2019
Comcast,Utilities,1300,10/4/2019
Comcast,Utilities,4354.09,11/4/2019
Comcast,Utilities,1300,11/4/2019
Comcast,Utilities,4364.97,12/10/2019
Comcast,Utilities,1300,12/10/2019
Comcast Business,Utilities,34742.49,1/11/2019
Comcast Business,Utilities,13450,1/11/2019
Comcast Business,Utilities,33957.49,2/26/2019
Comcast Business,Utilities,13140,2/26/2019
Comcast Business,Utilities,33957.49,3/15/2019
Comcast Business,Utilities,13140,3/15/2019
Comcast Business,Utilities,33938.43,4/17/2019
Comcast Business,Utilities,13130,4/17/2019
Comcast Business,Utilities,33938.43,5/22/2019
Comcast Business,Utilities,13130,5/22/2019
Comcast Business,Utilities,36682.68,6/13/2019
Comcast Business,Utilities,14195,6/13/2019
Comcast Business,Utilities,35984.5,7/18/2019
Comcast Business,Utilities,13925,7/18/2019
Comcast Business,Utilities,35984.5,8/15/2019
Comcast Business,Utilities,13925,8/15/2019
Comcast Business,Utilities,36029.45,9/13/2019
Comcast Business,Utilities,13925,9/13/2019
Comcast Business,Utilities,36239.62,10/14/2019
Comcast Business,Utilities,14023.37,10/14/2019
Comcast Business,Utilities,36239.62,11/18/2019
Comcast Business,Utilities,14023.37,11/18/2019
Comcast Business,Utilities,36239.62,12/12/2019
Comcast Business,Utilities,14023.37,12/12/2019
Commercial Group Lifting Products,Services,140,10/30/2019
Commercial Group Lifting Products,Services,210,12/10/2019
Commercial Tire Service,Services,797.28,1/2/2019
Commercial Tire Service,Services,1380.4,1/8/2019
Commercial Tire Service,Services,135,1/17/2019
Commercial Tire Service,Services,2016.53,1/18/2019
Commercial Tire Service,Services,311.61,1/23/2019
Commercial Tire Service,Services,297.99,1/24/2019
Commercial Tire Service,Services,87.5,2/1/2019
Commercial Tire Service,Services,419,2/8/2019
Commercial Tire Service,Services,142.11,2/15/2019
Commercial Tire Service,Services,1162.06,2/15/2019
Commercial Tire Service,Services,567.23,2/20/2019
Commercial Tire Service,Services,20,3/6/2019
Commercial Tire Service,Services,437.62,3/6/2019
Commercial Tire Service,Services,1039.13,3/22/2019
Commercial Tire Service,Services,135,3/25/2019
Commercial Tire Service,Services,2696.32,4/3/2019
Commercial Tire Service,Services,449,4/26/2019
Commercial Tire Service,Services,993,4/29/2019
Commercial Tire Service,Services,135,5/1/2019
Commercial Tire Service,Services,771.39,5/6/2019
Commercial Tire Service,Services,322.72,5/7/2019
Commercial Tire Service,Services,149.8,5/9/2019
Commercial Tire Service,Services,854.53,5/16/2019
Commercial Tire Service,Services,584,5/23/2019
Commercial Tire Service,Services,905.58,6/3/2019
Commercial Tire Service,Services,3251.46,6/7/2019
Commercial Tire Service,Services,974.22,6/17/2019
Commercial Tire Service,Services,535.44,6/24/2019
Commercial Tire Service,Services,1673.29,6/27/2019
Commercial Tire Service,Services,1000.11,7/3/2019
Commercial Tire Service,Services,297.5,7/16/2019
Commercial Tire Service,Services,270,7/22/2019
Commercial Tire Service,Services,311.61,7/24/2019
Commercial Tire Service,Services,620.12,8/6/2019
Commercial Tire Service,Services,135,8/7/2019
Commercial Tire Service,Services,571.61,8/7/2019
Commercial Tire Service,Services,647.38,8/8/2019
Commercial Tire Service,Services,1433.96,8/16/2019
Commercial Tire Service,Services,135,8/26/2019
Commercial Tire Service,Services,1749.25,8/28/2019
Commercial Tire Service,Services,1063.32,8/29/2019
Commercial Tire Service,Services,1935.76,9/3/2019
Commercial Tire Service,Services,642.44,9/9/2019
Commercial Tire Service,Services,233.72,9/12/2019
Commercial Tire Service,Services,434.48,9/17/2019
Commercial Tire Service,Services,165,9/25/2019
Commercial Tire Service,Services,2603.22,9/25/2019
Commercial Tire Service,Services,540.94,10/8/2019
Commercial Tire Service,Services,25,10/9/2019
Commercial Tire Service,Services,3,10/15/2019
Commercial Tire Service,Services,726.92,10/15/2019
Commercial Tire Service,Services,20,10/18/2019
Commercial Tire Service,Services,297.74,10/21/2019
Commercial Tire Service,Services,135,10/25/2019
Commercial Tire Service,Services,359.43,10/28/2019
Commercial Tire Service,Services,162.5,11/1/2019
Commercial Tire Service,Services,1628.9,11/1/2019
Commercial Tire Service,Services,140.5,11/6/2019
Commercial Tire Service,Services,911.97,11/6/2019
Commercial Tire Service,Services,3180.73,11/8/2019
Commercial Tire Service,Services,1125.71,11/12/2019
Commercial Tire Service,Services,488.14,11/18/2019
Commercial Tire Service,Services,294.5,12/11/2019
Commonwealth Edison,Utilities,96287.82,1/2/2019
Commonwealth Edison,Utilities,585.2,1/2/2019
Commonwealth Edison,Utilities,147.01,1/2/2019
Commonwealth Edison,Utilities,922.41,1/2/2019
Commonwealth Edison,Utilities,184.88,1/4/2019
Commonwealth Edison,Utilities,181.99,1/4/2019
Commonwealth Edison,Utilities,182.74,1/7/2019
Commonwealth Edison,Utilities,126.17,1/7/2019
Commonwealth Edison,Utilities,404.96,1/10/2019
Commonwealth Edison,Utilities,392.8,1/10/2019
Commonwealth Edison,Utilities,171.63,1/10/2019
Commonwealth Edison,Utilities,990.67,1/10/2019
Commonwealth Edison,Utilities,130.82,1/10/2019
Commonwealth Edison,Utilities,517.8,1/11/2019
Commonwealth Edison,Utilities,624.07,1/11/2019
